Date Incurred,Directorate,Beneficiary,Purpose,Amount,Non Recoverable VAT,Supplier Type
01/04/2020,Children and Young People Corporate Director -CYPS (DCS),Allen Lane Recruitment,PROFESSIONAL SERVICES - GENERAL,"2,871.00",0,Supplier
01/04/2020,Children and Young People Operations & Safeguarding,Redacted - Personal Data,SPECIAL GUARDIANSHIP,475,0,Foster Carers
01/04/2020,Children and Young People Operations & Safeguarding,Redacted - Personal Data,SPECIAL GUARDIANSHIP,475,0,Foster Carers
01/04/2020,Children and Young People Operations & Safeguarding,Redacted - Personal Data,SPECIAL GUARDIANSHIP,475,0,Foster Carers
01/04/2020,Children and Young People Operations & Safeguarding,Redacted - Personal Data,SPECIAL GUARDIANSHIP,475,0,Foster Carers
01/04/2020,Children and Young People Inclusion & Achievement,Redacted - Personal Data,DOMICILIARY CARE - THIRD PARTY,967,0,Individuals
01/04/2020,Children and Young People Operations & Safeguarding,Redacted - Personal Data,ADOPTION ALLOWANCE - PRIVATE CONTRACTORS PAYMENT,465.88,0,Foster Carers
01/04/2020,Children and Young People Operations & Safeguarding,Redacted - Personal Data,ADOPTION ALLOWANCE - PRIVATE CONTRACTORS PAYMENT,465.88,0,Foster Carers
01/04/2020,Children and Young People Operations & Safeguarding,Redacted - Personal Data,ADOPTION ALLOWANCE - PRIVATE CONTRACTORS PAYMENT,459.76,0,Foster Carers
01/04/2020,Children and Young People Operations & Safeguarding,Redacted - Personal Data,ADOPTION ALLOWANCE - PRIVATE CONTRACTORS PAYMENT,459.76,0,Foster Carers
01/04/2020,"People, Policy and Performance People, Policy and Performance",CCS Media Limited.,ICT HARDWARE,"2,541.00",0,Commercial Supplier
01/04/2020,oneSource oS ICT Services,CCS Media Limited.,ICT HARDWARE,764.5,0,Commercial Supplier
01/04/2020,oneSource oS ICT Services,CCS Media Limited.,ICT HARDWARE,278,0,Commercial Supplier
01/04/2020,oneSource oS ICT Services,CCS Media Limited.,ICT HARDWARE,"1,838.00",0,Commercial Supplier
01/04/2020,Housing Revenue Account HRA,CEL Solicitors,LEGAL FEES,"1,032.20",0,Commercial Supplier
01/04/2020,Children and Young People Operations & Safeguarding,Redacted - Personal Data,SPECIAL GUARDIANSHIP,383,0,Foster Carers
01/04/2020,Children and Young People Operations & Safeguarding,Redacted - Personal Data,SPECIAL GUARDIANSHIP,383,0,Foster Carers
01/04/2020,Children and Young People Operations & Safeguarding,Carter Brown The Expert Service Ltd,CONSULTANCY FEES,"2,000.00",0,Commercial Supplier
01/04/2020,Children and Young People Operations & Safeguarding,Carter Brown The Expert Service Ltd,CONSULTANCY FEES,"2,500.00",0,Commercial Supplier
01/04/2020,Children and Young People Operations & Safeguarding,Carter Brown The Expert Service Ltd,CONSULTANCY FEES,"2,500.00",0,Commercial Supplier
01/04/2020,Children and Young People Operations & Safeguarding,Carter Brown The Expert Service Ltd,CONSULTANCY FEES,"2,500.00",0,Commercial Supplier
01/04/2020,Children and Young People Operations & Safeguarding,Redacted - Personal Data,SPECIAL GUARDIANSHIP,553.84,0,Foster Carers
01/04/2020,Children and Young People Operations & Safeguarding,Redacted - Personal Data,SPECIAL GUARDIANSHIP,553.84,0,Foster Carers
01/04/2020,Children and Young People Operations & Safeguarding,Redacted - Personal Data,ADOPTION ALLOWANCE - PRIVATE CONTRACTORS PAYMENT,323.5,0,Foster Carers
01/04/2020,Children and Young People Operations & Safeguarding,Redacted - Personal Data,ADOPTION ALLOWANCE - PRIVATE CONTRACTORS PAYMENT,323.5,0,Foster Carers
01/04/2020,Children and Young People Operations & Safeguarding,Redacted - Personal Data,IN HOUSE FOSTER CARE PLACEMENTS - PRIVATE CONTRACTORS PAYMENT,"1,642.93",0,Individuals
01/04/2020,Children and Young People Operations & Safeguarding,Redacted - Personal Data,SPECIAL GUARDIANSHIP,291.11,0,Foster Carers
01/04/2020,Children and Young People Operations & Safeguarding,Redacted - Personal Data,SPECIAL GUARDIANSHIP,291.11,0,Foster Carers
01/04/2020,"Environment and Sustainable Transport Recycling, Refuse and Street Cleansing",Danfo (Uk) Limited,CLEANING SERVICES,"2,407.33",0,Supplier
01/04/2020,"Environment and Sustainable Transport Recycling, Refuse and Street Cleansing",Danfo (Uk) Limited,CLEANING SERVICES,"2,407.33",0,Supplier
01/04/2020,Children and Young People Operations & Safeguarding,Redacted - Personal Data,SPECIAL GUARDIANSHIP,"1,042.77",0,Foster Carers
01/04/2020,Children and Young People Operations & Safeguarding,Redacted - Personal Data,SPECIAL GUARDIANSHIP,"1,042.77",0,Foster Carers
01/04/2020,Children and Young People Operations & Safeguarding,Redacted - Personal Data,EQUIPMENT & ADAPTATION - PRIVATE CONTRACTORS PAYMENT,650,0,Foster Carers
01/04/2020,Children and Young People Operations & Safeguarding,Redacted - Personal Data,ADOPTION ALLOWANCE - PRIVATE CONTRACTORS PAYMENT,321.22,0,Foster Carers
01/04/2020,Children and Young People Operations & Safeguarding,Redacted - Personal Data,ADOPTION ALLOWANCE - PRIVATE CONTRACTORS PAYMENT,321.22,0,Foster Carers
01/04/2020,Children and Young People Operations & Safeguarding,Redacted - Personal Data,ADOPTION ALLOWANCE - PRIVATE CONTRACTORS PAYMENT,284.62,0,Foster Carers
01/04/2020,Children and Young People Operations & Safeguarding,Redacted - Personal Data,ADOPTION ALLOWANCE - PRIVATE CONTRACTORS PAYMENT,284.62,0,Foster Carers
01/04/2020,Children and Young People Operations & Safeguarding,Redacted - Personal Data,ADOPTION ALLOWANCE - PRIVATE CONTRACTORS PAYMENT,284.62,0,Foster Carers
01/04/2020,Children and Young People Operations & Safeguarding,Redacted - Personal Data,ADOPTION ALLOWANCE - PRIVATE CONTRACTORS PAYMENT,284.62,0,Foster Carers
01/04/2020,Children and Young People Operations & Safeguarding,Redacted - Personal Data,ADOPTION ALLOWANCE - PRIVATE CONTRACTORS PAYMENT,284.62,0,Foster Carers
01/04/2020,Children and Young People Operations & Safeguarding,Redacted - Personal Data,ADOPTION ALLOWANCE - PRIVATE CONTRACTORS PAYMENT,284.62,0,Foster Carers
01/04/2020,Housing Revenue Account HRA,Driscoll Kingston Solicitors,LEGAL FEES,"2,000.00",0,Non Commercial Supplier
01/04/2020,"Adults & Health Commissioning, Health & Social Care",Dynamic Childrens Serv Ltd,PROFESSIONAL SERVICES - GENERAL,350,0,Commercial Supplier
01/04/2020,Children and Young People Operations & Safeguarding,Redacted - Personal Data,LOOKED AFTER COST OTHER,600,0,Individuals
01/04/2020,Children and Young People Operations & Safeguarding,GatenbySanderson Ltd,PROFESSIONAL SERVICES - GENERAL,"3,825.00",0,Commercial Supplier
01/04/2020,oneSource - Non Shared Asset Management,Harding Bros Electrical Ltd,BUILDING ALTERATIONS AND MATERIALS,"1,692.00",0,CIS
01/04/2020,Environment and Sustainable Transport Parks and Open Spaces,Harding Bros Electrical Ltd,BUILDING ALTERATIONS AND MATERIALS,"1,626.61",0,CIS
01/04/2020,oneSource - Non Shared Asset Management,Harding Bros Electrical Ltd,BUILDING ALTERATIONS AND MATERIALS,"1,036.68",0,CIS
01/04/2020,Children and Young People Operations & Safeguarding,Redacted - Personal Data,ADOPTION ALLOWANCE - PRIVATE CONTRACTORS PAYMENT,291.11,0,Foster Carers
01/04/2020,Children and Young People Operations & Safeguarding,Redacted - Personal Data,ADOPTION ALLOWANCE - PRIVATE CONTRACTORS PAYMENT,291.11,0,Foster Carers
01/04/2020,Children and Young People Operations & Safeguarding,Redacted - Personal Data,CLIENT EXPENSES - THIRD PARTY,"2,000.00",0,Foster Carers
01/04/2020,oneSource - Non Shared Asset Management,Identification Systems Uk Ltd,PROFESSIONAL SERVICES - GENERAL,860,0,Supplier
01/04/2020,Housing Revenue Account HRA,J.A. Steel & Son Ltd,STORAGE AND ARCHIVING,"1,665.00",0,Commercial Supplier
01/04/2020,Housing Revenue Account HRA,J.A. Steel & Son Ltd,STORAGE AND ARCHIVING,490,0,Commercial Supplier
01/04/2020,Housing Revenue Account HRA,J.A. Steel & Son Ltd,STORAGE AND ARCHIVING,635,0,Commercial Supplier
01/04/2020,Children and Young People Operations & Safeguarding,Redacted - Personal Data,SPECIAL GUARDIANSHIP,386.85,0,Foster Carers
01/04/2020,Children and Young People Operations & Safeguarding,Redacted - Personal Data,SPECIAL GUARDIANSHIP,386.85,0,Foster Carers
01/04/2020,Children and Young People Operations & Safeguarding,Redacted - Personal Data,LOOKED AFTER COST OTHER,500,0,Individuals
01/04/2020,Children and Young People Operations & Safeguarding,Redacted - Personal Data,CLIENT EXPENSES - THIRD PARTY,"2,000.00",0,Individuals
01/04/2020,Children and Young People Operations & Safeguarding,Redacted - Personal Data,SPECIAL GUARDIANSHIP,300.3,0,Individuals
01/04/2020,Children and Young People Operations & Safeguarding,Redacted - Personal Data,SPECIAL GUARDIANSHIP,300.3,0,Individuals
01/04/2020,Children and Young People Inclusion & Achievement,Lathom Primary,CATERING SERVICES,"55,518.75",0,Supplier
01/04/2020,Children and Young People Operations & Safeguarding,Redacted - Personal Data,SPECIAL GUARDIANSHIP,345,0,Foster Carers
01/04/2020,Children and Young People Operations & Safeguarding,Redacted - Personal Data,SPECIAL GUARDIANSHIP,345,0,Foster Carers
01/04/2020,"Adults & Health Commissioning, Health & Social Care",Laville Ltd T/A Britannia Pharmacy,PAYMENT TO HEALTH AUTHORITIES,446,0,Supplier
01/04/2020,"Adults & Health Commissioning, Health & Social Care",Laville Ltd T/A Britannia Pharmacy,PAYMENT TO HEALTH AUTHORITIES,446,0,Supplier
01/04/2020,"People, Policy and Performance Policy & Communications",Local Government Information Unit,CONSULTANCY FEES,"1,705.20",0,Commercial Supplier
01/04/2020,Children and Young People Operations & Safeguarding,Redacted - Personal Data,SPECIAL GUARDIANSHIP,345,0,Foster Carers
01/04/2020,Children and Young People Operations & Safeguarding,Redacted - Personal Data,SPECIAL GUARDIANSHIP,345,0,Foster Carers
01/04/2020,Children and Young People Operations & Safeguarding,Redacted - Personal Data,CLIENT EXPENSES - THIRD PARTY,"1,700.00",0,Individuals
01/04/2020,Children and Young People Operations & Safeguarding,Redacted - Personal Data,LOOKED AFTER COST OTHER,300,0,Individuals
01/04/2020,Children and Young People Operations & Safeguarding,Redacted - Personal Data,ADOPTION ALLOWANCE - PRIVATE CONTRACTORS PAYMENT,301.11,0,Foster Carers
01/04/2020,Children and Young People Operations & Safeguarding,Redacted - Personal Data,ADOPTION ALLOWANCE - PRIVATE CONTRACTORS PAYMENT,301.11,0,Foster Carers
01/04/2020,oneSource - Non Shared Asset Management,Newham Learning Partnership (Project Co) Limited,"MAINTENANCE - EQUIPMENT, FURNITURE AND MATERIALS","300,501.41",0,Supplier
01/04/2020,oneSource - Non Shared Asset Management,Newham Learning Partnership (Project Co) Limited,"MAINTENANCE - EQUIPMENT, FURNITURE AND MATERIALS","17,423.00",0,Supplier
01/04/2020,oneSource - Non Shared Asset Management,Newham Learning Partnership (Project Co) Limited,"MAINTENANCE - EQUIPMENT, FURNITURE AND MATERIALS","24,640.00",0,Supplier
01/04/2020,Children and Young People Operations & Safeguarding,Redacted - Personal Data,SPECIAL GUARDIANSHIP,346,0,Foster Carers
01/04/2020,Children and Young People Operations & Safeguarding,Redacted - Personal Data,SPECIAL GUARDIANSHIP,346,0,Foster Carers
01/04/2020,Children and Young People Operations & Safeguarding,Redacted - Personal Data,SPECIAL GUARDIANSHIP,346,0,Foster Carers
01/04/2020,Children and Young People Operations & Safeguarding,Redacted - Personal Data,SPECIAL GUARDIANSHIP,346,0,Foster Carers
01/04/2020,Children and Young People Operations & Safeguarding,Redacted - Personal Data,LOOKED AFTER COST OTHER,"1,650.00",0,Individuals
01/04/2020,Housing Revenue Account HRA,PHD London Ltd,"MAINTENANCE - EQUIPMENT, FURNITURE AND MATERIALS","4,096.72",0,Commercial Supplier
01/04/2020,Children and Young People Operations & Safeguarding,Redacted - Personal Data,ADOPTION ALLOWANCE - PRIVATE CONTRACTORS PAYMENT,307.71,0,Foster Carers
01/04/2020,Children and Young People Operations & Safeguarding,Redacted - Personal Data,ADOPTION ALLOWANCE - PRIVATE CONTRACTORS PAYMENT,307.71,0,Foster Carers
01/04/2020,Housing Revenue Account HRA,Pinnacle Essex,COMPENSATION,400,0,Supplier
01/04/2020,"Adults & Health Commissioning, Health & Social Care",Plex Properties Ltd,PRIVATE CONTRACTORS PAYMENT - OTHER,"3,675.00",0,Commercial Supplier
01/04/2020,Inclusive Economy & Housing Community Wealth Building,Public Practice,PROFESSIONAL SERVICES - GENERAL,"5,000.00",0,Commercial Supplier
01/04/2020,Inclusive Economy & Housing Community Wealth Building,Public Practice,PROFESSIONAL SERVICES - GENERAL,"5,000.00",0,Commercial Supplier
01/04/2020,Inclusive Economy & Housing Community Wealth Building,Public Practice,PROFESSIONAL SERVICES - GENERAL,"5,000.00",0,Commercial Supplier
01/04/2020,Inclusive Economy & Housing Community Wealth Building,Public Practice,PROFESSIONAL SERVICES - GENERAL,"5,000.00",0,Commercial Supplier
01/04/2020,Inclusive Economy & Housing Community Wealth Building,Public Practice,PROFESSIONAL SERVICES - GENERAL,"5,000.00",0,Commercial Supplier
01/04/2020,Children and Young People Operations & Safeguarding,Redacted - Personal Data,ADOPTION ALLOWANCE - PRIVATE CONTRACTORS PAYMENT,334.08,0,Foster Carers
01/04/2020,Children and Young People Operations & Safeguarding,Redacted - Personal Data,ADOPTION ALLOWANCE - PRIVATE CONTRACTORS PAYMENT,334.08,0,Foster Carers
01/04/2020,Children and Young People Operations & Safeguarding,Redacted - Personal Data,ADOPTION ALLOWANCE - PRIVATE CONTRACTORS PAYMENT,317.33,0,Foster Carers
01/04/2020,Children and Young People Operations & Safeguarding,Redacted - Personal Data,ADOPTION ALLOWANCE - PRIVATE CONTRACTORS PAYMENT,317.33,0,Foster Carers
01/04/2020,"People, Policy and Performance Resident Engagement & Participation",Staples,STATIONERY,476.24,0,Non Commercial Supplier
01/04/2020,"Adults & Health Commissioning, Health & Social Care",Supply Chain Coordination Ltd (SCCL),SPECIALIST EQUIPMENT FOR SERVICE PROVISION,714.05,0,NHS Bodies
01/04/2020,"Adults & Health Commissioning, Health & Social Care",Supply Chain Coordination Ltd (SCCL),SPECIALIST EQUIPMENT FOR SERVICE PROVISION,922.74,0,NHS Bodies
01/04/2020,"Adults & Health Commissioning, Health & Social Care",Supply Chain Coordination Ltd (SCCL),SPECIALIST EQUIPMENT FOR SERVICE PROVISION,822.77,0,NHS Bodies
01/04/2020,"Adults & Health Commissioning, Health & Social Care",Supply Chain Coordination Ltd (SCCL),SPECIALIST EQUIPMENT FOR SERVICE PROVISION,532.6,0,NHS Bodies
01/04/2020,Children and Young People Operations & Safeguarding,Redacted - Personal Data,ADOPTION ALLOWANCE - PRIVATE CONTRACTORS PAYMENT,288.18,0,Foster Carers
01/04/2020,Children and Young People Operations & Safeguarding,Redacted - Personal Data,ADOPTION ALLOWANCE - PRIVATE CONTRACTORS PAYMENT,268.44,0,Foster Carers
01/04/2020,Children and Young People Operations & Safeguarding,Redacted - Personal Data,ADOPTION ALLOWANCE - PRIVATE CONTRACTORS PAYMENT,288.18,0,Foster Carers
01/04/2020,Children and Young People Operations & Safeguarding,Redacted - Personal Data,ADOPTION ALLOWANCE - PRIVATE CONTRACTORS PAYMENT,268.44,0,Foster Carers
01/04/2020,"Environment and Sustainable Transport Recycling, Refuse and Street Cleansing",The Forklift Company,VEHICLE HIRE,346.66,0,Commercial Supplier
01/04/2020,Children and Young People Operations & Safeguarding,Redacted - Personal Data,SPECIAL GUARDIANSHIP,332.15,0,Foster Carers
01/04/2020,Children and Young People Operations & Safeguarding,Redacted - Personal Data,SPECIAL GUARDIANSHIP,332.15,0,Foster Carers
01/04/2020,Children and Young People Operations & Safeguarding,Redacted - Personal Data,ADOPTION ALLOWANCE - PRIVATE CONTRACTORS PAYMENT,369.33,0,Foster Carers
01/04/2020,Children and Young People Operations & Safeguarding,Redacted - Personal Data,ADOPTION ALLOWANCE - PRIVATE CONTRACTORS PAYMENT,369.33,0,Foster Carers
02/04/2020,"Adults & Health Commissioning, Health & Social Care",Action On Hearing Loss,DAYCARE - PRIVATE CONTRACTORS PAYMENT,"1,113.60",0,Commercial Supplier
02/04/2020,"Adults & Health Commissioning, Health & Social Care",Advance Housing & Support Ltd,DAYCARE - PRIVATE CONTRACTORS PAYMENT,"1,122.00",0,Supplier
02/04/2020,"Adults & Health Commissioning, Health & Social Care",Advance Housing & Support Ltd,SUPPORTED OTHER ACCOMMODATION - PRIVATE CONTRACTORS PAYMENT,895.44,0,Supplier
02/04/2020,"Adults & Health Commissioning, Health & Social Care",Advance Housing & Support Ltd,SUPPORTED OTHER ACCOMMODATION - PRIVATE CONTRACTORS PAYMENT,"6,667.80",0,Supplier
02/04/2020,"Adults & Health Commissioning, Health & Social Care",Advance Housing & Support Ltd,SUPPORTED OTHER ACCOMMODATION - PRIVATE CONTRACTORS PAYMENT,"1,294.12",0,Supplier
02/04/2020,"Adults & Health Commissioning, Health & Social Care",Advance Housing & Support Ltd,SUPPORTED OTHER ACCOMMODATION - PRIVATE CONTRACTORS PAYMENT,"6,667.80",0,Supplier
02/04/2020,"Adults & Health Commissioning, Health & Social Care",Advance Housing & Support Ltd,SUPPORTED OTHER ACCOMMODATION - PRIVATE CONTRACTORS PAYMENT,"5,836.40",0,Supplier
02/04/2020,"Adults & Health Commissioning, Health & Social Care",Advance Housing & Support Ltd,HOME CARE - PRIVATE CONTRACTORS PAYMENT,264,0,Supplier
02/04/2020,"Adults & Health Commissioning, Health & Social Care",Advance Housing & Support Ltd,DAYCARE - PRIVATE CONTRACTORS PAYMENT,"1,188.00",0,Supplier
02/04/2020,"Adults & Health Commissioning, Health & Social Care",Advance Housing & Support Ltd,DAYCARE - PRIVATE CONTRACTORS PAYMENT,990,0,Supplier
02/04/2020,"Adults & Health Commissioning, Health & Social Care",Advance Housing & Support Ltd,DAYCARE - PRIVATE CONTRACTORS PAYMENT,660,0,Supplier
02/04/2020,"Adults & Health Commissioning, Health & Social Care",Advance Housing & Support Ltd,DAYCARE - PRIVATE CONTRACTORS PAYMENT,594,0,Supplier
02/04/2020,Adults & Health Operations,Advanced Building & Maintenance Services Limited,PRIVATE CONTRACTORS PAYMENT - OTHER,"1,800.00",0,CIS
02/04/2020,Children and Young People Operations & Safeguarding,Affinity Fostering Svcs Ltd,RESIDENTIAL PLACEMENTS - PRIVATE CONTRACTORS PAYMENT,"3,520.67",0,Supplier
02/04/2020,Children and Young People Operations & Safeguarding,Redacted - Personal Data,IN HOUSE FOSTER CARE PLACEMENTS - PRIVATE CONTRACTORS PAYMENT,725,0,Direct Payments
02/04/2020,Children and Young People Operations & Safeguarding,Redacted - Personal Data,IN HOUSE FOSTER CARE PLACEMENTS - PRIVATE CONTRACTORS PAYMENT,725,0,Direct Payments
02/04/2020,"People, Policy and Performance Change & PMO",Allen Lane Recruitment,PROFESSIONAL SERVICES - GENERAL,"2,200.00",0,Supplier
02/04/2020,"Adults & Health Commissioning, Health & Social Care",Apasen.,DAYCARE - PRIVATE CONTRACTORS PAYMENT,450,0,Commercial Supplier
02/04/2020,"Adults & Health Commissioning, Health & Social Care",Apasen.,DAYCARE - PRIVATE CONTRACTORS PAYMENT,550,0,Commercial Supplier
02/04/2020,"Environment and Sustainable Transport Recycling, Refuse and Street Cleansing",Associated Systems,PREMISES HIRE - FACILITIES,"8,400.00",0,Commercial Supplier
02/04/2020,"Environment and Sustainable Transport Recycling, Refuse and Street Cleansing",Associated Systems,PREMISES HIRE - FACILITIES,"3,345.00",0,Commercial Supplier
02/04/2020,Inclusive Economy & Housing Chief Planning Officer,BNP Paribas Real Estate Advisory,CONSULTANCY FEES,"3,200.00",0,Supplier
02/04/2020,"Adults & Health Commissioning, Health & Social Care",Bettertogether Limited,ADULT PLACEMENT SCHEME - PRIVATE CONTRACTORS PAYMENT,812,0,Non Commercial Supplier
02/04/2020,"Adults & Health Commissioning, Health & Social Care",Bettertogether Limited,ADULT PLACEMENT SCHEME - PRIVATE CONTRACTORS PAYMENT,"2,688.00",0,Non Commercial Supplier
02/04/2020,"Adults & Health Commissioning, Health & Social Care",Bettertogether Limited,ADULT PLACEMENT SCHEME - PRIVATE CONTRACTORS PAYMENT,"2,688.00",0,Non Commercial Supplier
02/04/2020,"Adults & Health Commissioning, Health & Social Care",Bettertogether Limited,ADULT PLACEMENT SCHEME - PRIVATE CONTRACTORS PAYMENT,"2,688.00",0,Non Commercial Supplier
02/04/2020,"Adults & Health Commissioning, Health & Social Care",Bettertogether Limited,ADULT PLACEMENT SCHEME - PRIVATE CONTRACTORS PAYMENT,348,0,Non Commercial Supplier
02/04/2020,"Adults & Health Commissioning, Health & Social Care",Bettertogether Limited,ADULT PLACEMENT SCHEME - PRIVATE CONTRACTORS PAYMENT,580,0,Non Commercial Supplier
02/04/2020,oneSource - Non Shared Asset Management,Beveridge Associates,CONSULTANCY FEES,"1,840.00",0,Supplier
02/04/2020,CYP Commissioner ? Brighter Futures Early Help and Childrens Health,Bloom Procurement Services Ltd,CONSULTANCY FEES,"5,800.00",0,Commercial Supplier
02/04/2020,CYP Commissioner ? Brighter Futures Early Help and Childrens Health,Bloom Procurement Services Ltd,CONSULTANCY FEES,"5,800.00",0,Commercial Supplier
02/04/2020,"Adults & Health Commissioning, Health & Social Care",Blossom House Specialized Care & Support Services Ltd,DAYCARE - PRIVATE CONTRACTORS PAYMENT,"1,080.00",0,Supplier
02/04/2020,"Adults & Health Commissioning, Health & Social Care",Blossom House Specialized Care & Support Services Ltd,DAYCARE - PRIVATE CONTRACTORS PAYMENT,"1,080.00",0,Supplier
02/04/2020,"Adults & Health Commissioning, Health & Social Care",Bluebird Care (Barking and Dagenham),HOME CARE - PRIVATE CONTRACTORS PAYMENT,273.55,0,Commercial Supplier
02/04/2020,"Adults & Health Commissioning, Health & Social Care",Bluebird Care (Barking and Dagenham),HOME CARE - PRIVATE CONTRACTORS PAYMENT,259,0,Commercial Supplier
02/04/2020,Children and Young People Operations & Safeguarding,Broadlands Hall,RESIDENTIAL PLACEMENTS - PRIVATE CONTRACTORS PAYMENT,"20,980.00",0,Commercial Supplier
02/04/2020,Children and Young People Operations & Safeguarding,Broadlands Hall,RESIDENTIAL PLACEMENTS - PRIVATE CONTRACTORS PAYMENT,"15,857.00",0,Commercial Supplier
02/04/2020,Children and Young People Operations & Safeguarding,Broadlands Hall,RESIDENTIAL PLACEMENTS - PRIVATE CONTRACTORS PAYMENT,"20,100.00",0,Commercial Supplier
02/04/2020,Housing Revenue Account HRA,CDH Building Services Ltd,FACILITIES MANAGEMENT,"1,870.00",0,CIS
02/04/2020,"Adults & Health Commissioning, Health & Social Care",Care Central Ltd,RESPITE CARE - PRIVATE CONTRACTORS PAYMENT,"1,845.00",0,Supplier
02/04/2020,"Adults & Health Commissioning, Health & Social Care",Care Central Ltd,DAYCARE - PRIVATE CONTRACTORS PAYMENT,"4,041.00",0,Supplier
02/04/2020,"Adults & Health Commissioning, Health & Social Care",Care Central Ltd,HOME CARE - PRIVATE CONTRACTORS PAYMENT,"39,554.10",0,Supplier
02/04/2020,"Adults & Health Commissioning, Health & Social Care",Care Central Ltd,PRIVATE CONTRACTORS PAYMENT - OTHER,"1,638.00",0,Supplier
02/04/2020,"Adults & Health Commissioning, Health & Social Care",Care Central Ltd,HOME CARE - PRIVATE CONTRACTORS PAYMENT,"7,290.00",0,Supplier
02/04/2020,"Adults & Health Commissioning, Health & Social Care",Christies Care Ltd,HOME CARE - PRIVATE CONTRACTORS PAYMENT,"3,772.00",0,Commercial Supplier
02/04/2020,Children and Young People Operations & Safeguarding,Redacted - Personal Data,IN HOUSE FOSTER CARE PLACEMENTS - PRIVATE CONTRACTORS PAYMENT,363,0,Individuals
02/04/2020,Children and Young People Operations & Safeguarding,Redacted - Personal Data,IN HOUSE FOSTER CARE PLACEMENTS - PRIVATE CONTRACTORS PAYMENT,363,0,Individuals
02/04/2020,"People, Policy and Performance Policy & Communications",Civica UK Ltd,ICT SOFTWARE,"8,423.25",0,Commercial Supplier
02/04/2020,Dedicated Schools Budget Dedicated Schools Budget,Community Links Academy Trust,PROFESSIONAL SERVICES - GENERAL,"12,667.00",0,Supplier
02/04/2020,Dedicated Schools Budget Dedicated Schools Budget,Community Links Academy Trust,PROFESSIONAL SERVICES - GENERAL,"12,667.00",0,Supplier
02/04/2020,"Adults & Health Commissioning, Health & Social Care",Cornerstone Care Services,DAYCARE - PRIVATE CONTRACTORS PAYMENT,772.8,0,Commercial Supplier
02/04/2020,"Adults & Health Commissioning, Health & Social Care",Cornerstone Care Services,PRIVATE CONTRACTORS PAYMENT - OTHER,"1,021.20",0,Commercial Supplier
02/04/2020,"Adults & Health Commissioning, Health & Social Care",Cornerstone Care Services,HOME CARE - PRIVATE CONTRACTORS PAYMENT,386.4,0,Commercial Supplier
02/04/2020,"Adults & Health Commissioning, Health & Social Care",Cornerstone Care Services,HOME CARE - PRIVATE CONTRACTORS PAYMENT,"1,738.80",0,Commercial Supplier
02/04/2020,"Adults & Health Commissioning, Health & Social Care",Cornerstone Care Services,HOME CARE - PRIVATE CONTRACTORS PAYMENT,"1,214.40",0,Commercial Supplier
02/04/2020,CYP Commissioner ? Brighter Futures Youth Empowerment,Craig Pinkney T/A Solve Global Limited,STAFF DEVELOPMENT AND TRAINING,582,0,Commercial Supplier
02/04/2020,Children and Young People Operations & Safeguarding,Dormwell Ltd T/A Street Support,SUPPORTED OTHER ACCOMMODATION - PRIVATE CONTRACTORS PAYMENT,"1,400.00",0,Foster Carers
02/04/2020,Children and Young People Operations & Safeguarding,Dormwell Ltd T/A Street Support,SUPPORTED OTHER ACCOMMODATION - PRIVATE CONTRACTORS PAYMENT,"1,500.00",0,Foster Carers
02/04/2020,Children and Young People Operations & Safeguarding,Dormwell Ltd T/A Street Support,CLIENT SUPPORT - THIRD PARTY,"1,400.00",0,Foster Carers
02/04/2020,Children and Young People Operations & Safeguarding,Dormwell Ltd T/A Street Support,CLIENT SUPPORT - THIRD PARTY,"1,300.00",0,Foster Carers
02/04/2020,Children and Young People Operations & Safeguarding,Dormwell Ltd T/A Street Support,IN HOUSE FOSTER CARE PLACEMENTS - PRIVATE CONTRACTORS PAYMENT,"1,400.00",0,Foster Carers
02/04/2020,Children and Young People Operations & Safeguarding,Dormwell Ltd T/A Street Support,SUPPORTED OTHER ACCOMMODATION - PRIVATE CONTRACTORS PAYMENT,"1,800.00",0,Foster Carers
02/04/2020,Children and Young People Operations & Safeguarding,Dormwell Ltd T/A Street Support,SUPPORTED OTHER ACCOMMODATION - PRIVATE CONTRACTORS PAYMENT,"1,071.43",0,Foster Carers
02/04/2020,Children and Young People Operations & Safeguarding,Dormwell Ltd T/A Street Support,SUPPORTED OTHER ACCOMMODATION - PRIVATE CONTRACTORS PAYMENT,"1,400.00",0,Foster Carers
02/04/2020,Children and Young People Operations & Safeguarding,Dormwell Ltd T/A Street Support,SUPPORTED OTHER ACCOMMODATION - PRIVATE CONTRACTORS PAYMENT,"1,300.00",0,Foster Carers
02/04/2020,Children and Young People Operations & Safeguarding,Dormwell Ltd T/A Street Support,SUPPORTED OTHER ACCOMMODATION - PRIVATE CONTRACTORS PAYMENT,"1,400.00",0,Foster Carers
02/04/2020,Children and Young People Operations & Safeguarding,Dormwell Ltd T/A Street Support,SUPPORTED OTHER ACCOMMODATION - PRIVATE CONTRACTORS PAYMENT,"1,700.00",0,Foster Carers
02/04/2020,Children and Young People Operations & Safeguarding,Dormwell Ltd T/A Street Support,SUPPORTED OTHER ACCOMMODATION - PRIVATE CONTRACTORS PAYMENT,"1,900.00",0,Foster Carers
02/04/2020,Children and Young People Operations & Safeguarding,Dormwell Ltd T/A Street Support,SUPPORTED OTHER ACCOMMODATION - PRIVATE CONTRACTORS PAYMENT,"3,500.00",0,Foster Carers
02/04/2020,Children and Young People Operations & Safeguarding,Dormwell Ltd T/A Street Support,CLIENT SUPPORT - THIRD PARTY,"1,400.00",0,Foster Carers
02/04/2020,Children and Young People Operations & Safeguarding,Dormwell Ltd T/A Street Support,SUPPORTED OTHER ACCOMMODATION - PRIVATE CONTRACTORS PAYMENT,"1,400.00",0,Foster Carers
02/04/2020,Children and Young People Operations & Safeguarding,Dormwell Ltd T/A Street Support,CLIENT SUPPORT - THIRD PARTY,"1,400.00",0,Foster Carers
02/04/2020,Children and Young People Operations & Safeguarding,Dormwell Ltd T/A Street Support,SUPPORTED OTHER ACCOMMODATION - PRIVATE CONTRACTORS PAYMENT,"3,400.00",0,Foster Carers
02/04/2020,Children and Young People Operations & Safeguarding,Dormwell Ltd T/A Street Support,SUPPORTED OTHER ACCOMMODATION - PRIVATE CONTRACTORS PAYMENT,"18,500.00",0,Foster Carers
02/04/2020,Children and Young People Operations & Safeguarding,Dormwell Ltd T/A Street Support,SUPPORTED OTHER ACCOMMODATION - PRIVATE CONTRACTORS PAYMENT,"1,700.00",0,Foster Carers
02/04/2020,Children and Young People Operations & Safeguarding,Dormwell Ltd T/A Street Support,CLIENT SUPPORT - THIRD PARTY,"1,700.00",0,Foster Carers
02/04/2020,Children and Young People Operations & Safeguarding,Dormwell Ltd T/A Street Support,CLIENT SUPPORT - THIRD PARTY,"2,200.00",0,Foster Carers
02/04/2020,Children and Young People Operations & Safeguarding,Dormwell Ltd T/A Street Support,CLIENT SUPPORT - THIRD PARTY,"1,400.00",0,Foster Carers
02/04/2020,Children and Young People Operations & Safeguarding,Dormwell Ltd T/A Street Support,CLIENT SUPPORT - THIRD PARTY,"1,300.00",0,Foster Carers
02/04/2020,Children and Young People Operations & Safeguarding,Dormwell Ltd T/A Street Support,CLIENT SUPPORT - THIRD PARTY,"1,300.00",0,Foster Carers
02/04/2020,"Adults & Health Commissioning, Health & Social Care",East London Care And Support Limited,DAYCARE - PRIVATE CONTRACTORS PAYMENT,"16,092.00",0,Supplier
02/04/2020,"Adults & Health Commissioning, Health & Social Care",East London Care And Support Limited,RESPITE CARE - PRIVATE CONTRACTORS PAYMENT,"1,296.00",0,Supplier
02/04/2020,"Adults & Health Commissioning, Health & Social Care",East London Care And Support Limited,HOME CARE - PRIVATE CONTRACTORS PAYMENT,"6,615.00",0,Supplier
02/04/2020,"Adults & Health Commissioning, Health & Social Care",East London Care And Support Limited,PRIVATE CONTRACTORS PAYMENT - OTHER,"1,354.50",0,Supplier
02/04/2020,Children and Young People Operations & Safeguarding,Ecass - Evolve Care And Support Service,SUPPORTED OTHER ACCOMMODATION - PRIVATE CONTRACTORS PAYMENT,"1,540.00",0,Commercial Supplier
02/04/2020,Children and Young People Operations & Safeguarding,Ecass - Evolve Care And Support Service,SUPPORTED OTHER ACCOMMODATION - PRIVATE CONTRACTORS PAYMENT,"1,400.00",0,Commercial Supplier
02/04/2020,Children and Young People Operations & Safeguarding,Ecass - Evolve Care And Support Service,SUPPORTED OTHER ACCOMMODATION - PRIVATE CONTRACTORS PAYMENT,"1,400.00",0,Commercial Supplier
02/04/2020,Children and Young People Operations & Safeguarding,Elliot Leigh TLC Ltd,SUPPORTED OTHER ACCOMMODATION - PRIVATE CONTRACTORS PAYMENT,680,0,Commercial Supplier
02/04/2020,Children and Young People Operations & Safeguarding,Family Works Fostering,RESIDENTIAL PLACEMENTS - PRIVATE CONTRACTORS PAYMENT,"5,080.04",0,Commercial Supplier
02/04/2020,Children and Young People Operations & Safeguarding,Family Works Fostering,RESIDENTIAL PLACEMENTS - PRIVATE CONTRACTORS PAYMENT,"3,799.88",0,Commercial Supplier
02/04/2020,Children and Young People Operations & Safeguarding,Family Works Fostering,RESIDENTIAL PLACEMENTS - PRIVATE CONTRACTORS PAYMENT,"3,799.88",0,Commercial Supplier
02/04/2020,Children and Young People Operations & Safeguarding,Family Works Fostering,RESIDENTIAL PLACEMENTS - PRIVATE CONTRACTORS PAYMENT,"3,400.04",0,Commercial Supplier
02/04/2020,Children and Young People Operations & Safeguarding,Forest Care Services Ltd,CLIENT SUPPORT - THIRD PARTY,364.21,0,Non Commercial Supplier
02/04/2020,Children and Young People Operations & Safeguarding,Forest Care Services Ltd,SUPPORTED OTHER ACCOMMODATION - PRIVATE CONTRACTORS PAYMENT,"1,199.80",0,Non Commercial Supplier
02/04/2020,Children and Young People Operations & Safeguarding,Forest Care Services Ltd,SUPPORTED OTHER ACCOMMODATION - PRIVATE CONTRACTORS PAYMENT,"1,199.80",0,Non Commercial Supplier
02/04/2020,Children and Young People Operations & Safeguarding,Forest Care Services Ltd,SUPPORTED OTHER ACCOMMODATION - PRIVATE CONTRACTORS PAYMENT,"1,199.80",0,Non Commercial Supplier
02/04/2020,Children and Young People Operations & Safeguarding,Forest Care Services Ltd,SUPPORTED OTHER ACCOMMODATION - PRIVATE CONTRACTORS PAYMENT,"1,199.80",0,Non Commercial Supplier
02/04/2020,Children and Young People Operations & Safeguarding,Forest Care Services Ltd,SUPPORTED OTHER ACCOMMODATION - PRIVATE CONTRACTORS PAYMENT,"1,199.80",0,Non Commercial Supplier
02/04/2020,Children and Young People Operations & Safeguarding,Forest Care Services Ltd,SUPPORTED OTHER ACCOMMODATION - PRIVATE CONTRACTORS PAYMENT,364.21,0,Non Commercial Supplier
02/04/2020,Children and Young People Operations & Safeguarding,Forest Care Services Ltd,CLIENT SUPPORT - THIRD PARTY,"1,199.80",0,Non Commercial Supplier
02/04/2020,Children and Young People Operations & Safeguarding,Forest Care Services Ltd,CLIENT SUPPORT - THIRD PARTY,"1,199.80",0,Non Commercial Supplier
02/04/2020,Children and Young People Operations & Safeguarding,Forest Care Services Ltd,CLIENT SUPPORT - THIRD PARTY,"1,199.80",0,Non Commercial Supplier
02/04/2020,"People, Policy and Performance Resident Engagement & Participation",Redacted - Personal Data,ARTS AND LEISURE COSTS,400,0,Non Commercial Supplier
02/04/2020,Children and Young People Operations & Safeguarding,Redacted - Personal Data,IN HOUSE FOSTER CARE PLACEMENTS - PRIVATE CONTRACTORS PAYMENT,322.9,0,Individuals
02/04/2020,Children and Young People Operations & Safeguarding,Redacted - Personal Data,IN HOUSE FOSTER CARE PLACEMENTS - PRIVATE CONTRACTORS PAYMENT,322.9,0,Individuals
02/04/2020,"Adults & Health Commissioning, Health & Social Care",Golden Key Support Ltd,HOME CARE - PRIVATE CONTRACTORS PAYMENT,357.75,0,Commercial Supplier
02/04/2020,oneSource oS ICT Services,Green's Data Services,ICT SOFTWARE,"5,910.00",0,Commercial Supplier
02/04/2020,oneSource oS ICT Services,Green's Data Services,ICT SOFTWARE,340,0,Commercial Supplier
02/04/2020,Housing Revenue Account HRA,Greener Solutions,BUILDING ALTERATIONS AND MATERIALS,"5,325.00",0,Supplier
02/04/2020,"Environment and Sustainable Transport Recycling, Refuse and Street Cleansing",Harvest Energy Ltd,TRANSPORT FUEL,"17,036.26",0,Commercial Supplier
02/04/2020,Inclusive Economy & Housing Community Wealth Building,Hays Specialist Recruitment Ltd,PROFESSIONAL SERVICES - GENERAL,"2,631.55",0,Supplier
02/04/2020,Inclusive Economy & Housing Community Wealth Building,Hays Specialist Recruitment Ltd,PROFESSIONAL SERVICES - GENERAL,263.16,0,Supplier
02/04/2020,Inclusive Economy & Housing Community Wealth Building,Hays Specialist Recruitment Ltd,PROFESSIONAL SERVICES - GENERAL,"2,617.80",0,Supplier
02/04/2020,Inclusive Economy & Housing Community Wealth Building,Hays Specialist Recruitment Ltd,PROFESSIONAL SERVICES - GENERAL,"3,157.86",0,Supplier
02/04/2020,Inclusive Economy & Housing Community Wealth Building,Hays Specialist Recruitment Ltd,PROFESSIONAL SERVICES - GENERAL,"2,356.00",0,Supplier
02/04/2020,"Adults & Health Commissioning, Health & Social Care",Helping Hands Home Care,HOME CARE - PRIVATE CONTRACTORS PAYMENT,"4,780.00",0,Non Commercial Supplier
02/04/2020,"Adults & Health Commissioning, Health & Social Care",Hibiscus Caribbean Elderly Association,DAYCARE - PRIVATE CONTRACTORS PAYMENT,483,0,Supplier
02/04/2020,"Adults & Health Commissioning, Health & Social Care",Hibiscus Caribbean Elderly Association,DAYCARE - PRIVATE CONTRACTORS PAYMENT,"1,460.00",0,Supplier
02/04/2020,"Adults & Health Commissioning, Health & Social Care",Hibiscus Caribbean Elderly Association,DAYCARE - PRIVATE CONTRACTORS PAYMENT,880,0,Supplier
02/04/2020,"Adults & Health Commissioning, Health & Social Care",Hibiscus Caribbean Elderly Association,DAYCARE - PRIVATE CONTRACTORS PAYMENT,"1,736.00",0,Supplier
02/04/2020,"Adults & Health Commissioning, Health & Social Care",Hibiscus Caribbean Elderly Association,DAYCARE - PRIVATE CONTRACTORS PAYMENT,"1,915.00",0,Supplier
02/04/2020,"Adults & Health Commissioning, Health & Social Care",Hibiscus Caribbean Elderly Association,DAYCARE - PRIVATE CONTRACTORS PAYMENT,"1,363.00",0,Supplier
02/04/2020,"Adults & Health Commissioning, Health & Social Care",Hibiscus Caribbean Elderly Association,DAYCARE - PRIVATE CONTRACTORS PAYMENT,"1,777.00",0,Supplier
02/04/2020,Children and Young People Inclusion & Achievement,Hope Superjobs Ltd,ADDITIONAL PLACEMENTS - THIRD PARTY,518,0,Commercial Supplier
02/04/2020,Children and Young People Inclusion & Achievement,Hope Superjobs Ltd,ADDITIONAL PLACEMENTS - THIRD PARTY,518,0,Commercial Supplier
02/04/2020,Children and Young People Inclusion & Achievement,Hope Superjobs Ltd,ADDITIONAL PLACEMENTS - THIRD PARTY,492.1,0,Commercial Supplier
02/04/2020,Children and Young People Operations & Safeguarding,Horizan Residential Care Ltd,RESIDENTIAL PLACEMENTS - PRIVATE CONTRACTORS PAYMENT,"10,000.00",0,Commercial Supplier
02/04/2020,Children and Young People Operations & Safeguarding,Horizan Residential Care Ltd,RESIDENTIAL PLACEMENTS - PRIVATE CONTRACTORS PAYMENT,"9,400.00",0,Commercial Supplier
02/04/2020,Children and Young People Operations & Safeguarding,Horizan Residential Care Ltd,RESIDENTIAL PLACEMENTS - PRIVATE CONTRACTORS PAYMENT,"3,024.00",0,Commercial Supplier
02/04/2020,Children and Young People Operations & Safeguarding,Housing Enterprise Solutions Ltd,CLIENT SUPPORT - THIRD PARTY,"1,620.00",0,Non Commercial Supplier
02/04/2020,"Adults & Health Commissioning, Health & Social Care",ICare Resource Limited,HOME CARE - PRIVATE CONTRACTORS PAYMENT,"1,785.00",0,Individuals
02/04/2020,"Adults & Health Commissioning, Health & Social Care",Invicta Law,LEGAL FEES,255,0,Commercial Supplier
02/04/2020,Housing Revenue Account HRA,J Redpath Buchanan & Co Ltd,FACILITIES MANAGEMENT,"1,845.75",0,CIS
02/04/2020,Housing Revenue Account HRA,J Redpath Buchanan & Co Ltd,FACILITIES MANAGEMENT,640,0,CIS
02/04/2020,Housing Revenue Account HRA,J.A. Steel & Son Ltd,STORAGE AND ARCHIVING,740,0,Commercial Supplier
02/04/2020,Housing Revenue Account HRA,J.A. Steel & Son Ltd,STORAGE AND ARCHIVING,480,0,Commercial Supplier
02/04/2020,"Adults & Health Commissioning, Health & Social Care",J.C.Michael Groups Ltd,DAYCARE - PRIVATE CONTRACTORS PAYMENT,"5,017.50",0,Non Commercial Supplier
02/04/2020,"Adults & Health Commissioning, Health & Social Care",J.C.Michael Groups Ltd,HOME CARE - PRIVATE CONTRACTORS PAYMENT,"61,025.40",0,Non Commercial Supplier
02/04/2020,"Adults & Health Commissioning, Health & Social Care",J.C.Michael Groups Ltd,RESPITE CARE - PRIVATE CONTRACTORS PAYMENT,810,0,Non Commercial Supplier
02/04/2020,"Adults & Health Commissioning, Health & Social Care",J.C.Michael Groups Ltd,PRIVATE CONTRACTORS PAYMENT - OTHER,"2,227.50",0,Non Commercial Supplier
02/04/2020,"Adults & Health Commissioning, Health & Social Care",J.C.Michael Groups Ltd,HOME CARE - PRIVATE CONTRACTORS PAYMENT,"1,026.00",0,Non Commercial Supplier
02/04/2020,Children and Young People Operations & Safeguarding,Jasper Education And Support Services Limited,RESIDENTIAL PLACEMENTS - PRIVATE CONTRACTORS PAYMENT,"27,864.22",0,Commercial Supplier
02/04/2020,Children and Young People Operations & Safeguarding,Jasper Education And Support Services Limited,RESIDENTIAL PLACEMENTS - PRIVATE CONTRACTORS PAYMENT,"16,714.32",0,Commercial Supplier
02/04/2020,Children and Young People Inclusion & Achievement,Redacted - Personal Data,GRANTS AND CONTRIBUTIONS,349,0,Individuals
02/04/2020,Children and Young People Inclusion & Achievement,Redacted - Personal Data,GRANTS AND CONTRIBUTIONS,894,0,Individuals
02/04/2020,Children and Young People Young Offenders,Juniper Ventures Ltd,CLEANING SERVICES,801.23,0,Commercial Supplier
02/04/2020,"Adults & Health Commissioning, Health & Social Care",Kaf Healthcare Training Ltd,PRIVATE CONTRACTORS PAYMENT - OTHER,"2,058.00",0,Supplier
02/04/2020,"Adults & Health Commissioning, Health & Social Care",Kaf Healthcare Training Ltd,HOME CARE - PRIVATE CONTRACTORS PAYMENT,"19,930.60",0,Supplier
02/04/2020,"Adults & Health Commissioning, Health & Social Care",Kaf Healthcare Training Ltd,DAYCARE - PRIVATE CONTRACTORS PAYMENT,"1,568.00",0,Supplier
02/04/2020,Children and Young People Operations & Safeguarding,Keys Education & Care Ltd,RESIDENTIAL PLACEMENTS - PRIVATE CONTRACTORS PAYMENT,"17,492.86",0,Supplier
02/04/2020,Children and Young People Operations & Safeguarding,Keys Education & Care Ltd,RESIDENTIAL PLACEMENTS - PRIVATE CONTRACTORS PAYMENT,"4,180.00",0,Supplier
02/04/2020,Children and Young People Operations & Safeguarding,Keys Education & Care Ltd,RESIDENTIAL PLACEMENTS - PRIVATE CONTRACTORS PAYMENT,"3,800.00",0,Supplier
02/04/2020,"Adults & Health Commissioning, Health & Social Care",Kisimul Group Ltd,RESIDENTIAL PLACEMENTS - PRIVATE CONTRACTORS PAYMENT,"12,204.52",0,Commercial Supplier
02/04/2020,"Adults & Health Commissioning, Health & Social Care",Kisimul Group Ltd,RESIDENTIAL PLACEMENTS - PRIVATE CONTRACTORS PAYMENT,"17,425.06",0,Commercial Supplier
02/04/2020,Resources Finance Service,Law Morgan Ltd,AGENCY STAFF,919.54,0,Commercial Supplier
02/04/2020,Resources Finance Service,Law Morgan Ltd,AGENCY STAFF,"2,298.85",0,Commercial Supplier
02/04/2020,Resources Finance Service,Law Morgan Ltd,AGENCY STAFF,"2,298.85",0,Commercial Supplier
02/04/2020,Resources Finance Service,Law Morgan Ltd,AGENCY STAFF,"2,298.85",0,Commercial Supplier
02/04/2020,Resources Finance Service,Law Morgan Ltd,AGENCY STAFF,"2,298.85",0,Commercial Supplier
02/04/2020,Inclusive Economy & Housing Community Wealth Building,Law Morgan Ltd,AGENCY STAFF,"4,023.95",0,Commercial Supplier
02/04/2020,Resources Finance Service,Law Morgan Ltd,AGENCY STAFF,"3,218.39",0,Commercial Supplier
02/04/2020,Resources Finance Service,Law Morgan Ltd,AGENCY STAFF,"2,298.85",0,Commercial Supplier
02/04/2020,Resources Finance Service,Law Morgan Ltd,AGENCY STAFF,"2,298.85",0,Commercial Supplier
02/04/2020,Resources Finance Service,Law Morgan Ltd,AGENCY STAFF,"2,298.85",0,Commercial Supplier
02/04/2020,Resources Finance Service,Law Morgan Ltd,AGENCY STAFF,"2,298.85",0,Commercial Supplier
02/04/2020,Dedicated Schools Budget Dedicated Schools Budget,Law Morgan Ltd,AGENCY STAFF,"4,597.70",0,Commercial Supplier
02/04/2020,Dedicated Schools Budget Dedicated Schools Budget,Law Morgan Ltd,AGENCY STAFF,"1,724.15",0,Commercial Supplier
02/04/2020,Dedicated Schools Budget Dedicated Schools Budget,Law Morgan Ltd,AGENCY STAFF,"2,298.85",0,Commercial Supplier
02/04/2020,Inclusive Economy & Housing Community Wealth Building,Law Morgan Ltd,AGENCY STAFF,"3,449.10",0,Commercial Supplier
02/04/2020,Resources Finance Service,Law Morgan Ltd,AGENCY STAFF,"2,298.85",0,Commercial Supplier
02/04/2020,Resources Finance Service,Law Morgan Ltd,AGENCY STAFF,"2,298.85",0,Commercial Supplier
02/04/2020,oneSource oS Finance,Law Morgan Ltd,AGENCY STAFF,"2,126.45",0,Commercial Supplier
02/04/2020,oneSource oS Finance,Law Morgan Ltd,AGENCY STAFF,"3,735.55",0,Commercial Supplier
02/04/2020,oneSource oS Finance,Law Morgan Ltd,AGENCY STAFF,"2,155.15",0,Commercial Supplier
02/04/2020,Resources Finance Service,Law Morgan Ltd,AGENCY STAFF,"2,298.85",0,Commercial Supplier
02/04/2020,Resources Finance Service,Law Morgan Ltd,AGENCY STAFF,"2,298.85",0,Commercial Supplier
02/04/2020,Resources Finance Service,Law Morgan Ltd,AGENCY STAFF,"2,298.85",0,Commercial Supplier
02/04/2020,Children and Young People Operations & Safeguarding,Lextox,LEGAL FEES,574.25,0,Commercial Supplier
02/04/2020,"Adults & Health Commissioning, Health & Social Care",Liberty Centre Ltd,DAYCARE - PRIVATE CONTRACTORS PAYMENT,"5,628.00",0,Commercial Supplier
02/04/2020,Children and Young People Operations & Safeguarding,Redacted - Personal Data,NO RECOURSE TO PUBLIC FUNDS - PRIVATE CONTRACTORS PAYMENT,300,0,Individuals
02/04/2020,"Adults & Health Commissioning, Health & Social Care",Metro Homecare Ltd,DAYCARE - PRIVATE CONTRACTORS PAYMENT,"14,652.00",0,Commercial Supplier
02/04/2020,"Adults & Health Commissioning, Health & Social Care",Metro Homecare Ltd,DAYCARE - PRIVATE CONTRACTORS PAYMENT,432,0,Commercial Supplier
02/04/2020,"Adults & Health Commissioning, Health & Social Care",Metro Homecare Ltd,PRIVATE CONTRACTORS PAYMENT - OTHER,"3,519.00",0,Commercial Supplier
02/04/2020,"Adults & Health Commissioning, Health & Social Care",Metro Homecare Ltd,HOME CARE - PRIVATE CONTRACTORS PAYMENT,"5,796.00",0,Commercial Supplier
02/04/2020,"Adults & Health Commissioning, Health & Social Care",Metro Homecare Ltd,DAYCARE - PRIVATE CONTRACTORS PAYMENT,288,0,Commercial Supplier
02/04/2020,"Adults & Health Commissioning, Health & Social Care",Metro Homecare Ltd,RESPITE CARE - PRIVATE CONTRACTORS PAYMENT,"3,168.00",0,Commercial Supplier
02/04/2020,Children and Young People Operations & Safeguarding,Redacted - Personal Data,IN HOUSE FOSTER CARE PLACEMENTS - PRIVATE CONTRACTORS PAYMENT,431,0,Individuals
02/04/2020,Children and Young People Operations & Safeguarding,Redacted - Personal Data,IN HOUSE FOSTER CARE PLACEMENTS - PRIVATE CONTRACTORS PAYMENT,431,0,Individuals
02/04/2020,Children and Young People Operations & Safeguarding,Redacted - Personal Data,NO RECOURSE TO PUBLIC FUNDS - PRIVATE CONTRACTORS PAYMENT,288,0,Individuals
02/04/2020,Children and Young People Operations & Safeguarding,Redacted - Personal Data,NO RECOURSE TO PUBLIC FUNDS - PRIVATE CONTRACTORS PAYMENT,288,0,Individuals
02/04/2020,Children and Young People Operations & Safeguarding,Mosaic Foster Care Ltd,RESIDENTIAL PLACEMENTS - PRIVATE CONTRACTORS PAYMENT,"6,400.00",0,Commercial Supplier
02/04/2020,Children and Young People Operations & Safeguarding,Moving Up Care,SUPPORTED OTHER ACCOMMODATION - PRIVATE CONTRACTORS PAYMENT,"14,000.00",0,Commercial Supplier
02/04/2020,Children and Young People Operations & Safeguarding,Redacted - Personal Data,IN HOUSE FOSTER CARE PLACEMENTS - PRIVATE CONTRACTORS PAYMENT,595,0,Individuals
02/04/2020,Children and Young People Operations & Safeguarding,Redacted - Personal Data,IN HOUSE FOSTER CARE PLACEMENTS - PRIVATE CONTRACTORS PAYMENT,595,0,Individuals
02/04/2020,Children and Young People Inclusion & Achievement,NCYPE t/a Young Epilepsy,ADDITIONAL PLACEMENTS - THIRD PARTY,"49,603.33",0,Non Commercial Supplier
02/04/2020,Children and Young People Inclusion & Achievement,NCYPE t/a Young Epilepsy,ADDITIONAL PLACEMENTS - THIRD PARTY,"49,603.34",0,Non Commercial Supplier
02/04/2020,Children and Young People Operations & Safeguarding,National Fostering Agency,RESIDENTIAL PLACEMENTS - PRIVATE CONTRACTORS PAYMENT,"2,498.54",0,Commercial Supplier
02/04/2020,Children and Young People Operations & Safeguarding,National Fostering Agency,RESIDENTIAL PLACEMENTS - PRIVATE CONTRACTORS PAYMENT,"2,996.00",0,Commercial Supplier
02/04/2020,Children and Young People Operations & Safeguarding,National Fostering Agency,RESIDENTIAL PLACEMENTS - PRIVATE CONTRACTORS PAYMENT,"4,116.00",0,Commercial Supplier
02/04/2020,Children and Young People Operations & Safeguarding,National Fostering Agency,RESIDENTIAL PLACEMENTS - PRIVATE CONTRACTORS PAYMENT,"1,680.00",0,Commercial Supplier
02/04/2020,Children and Young People Operations & Safeguarding,National Fostering Agency,RESIDENTIAL PLACEMENTS - PRIVATE CONTRACTORS PAYMENT,"3,179.96",0,Commercial Supplier
02/04/2020,Children and Young People Operations & Safeguarding,National Fostering Agency,RESIDENTIAL PLACEMENTS - PRIVATE CONTRACTORS PAYMENT,"3,120.04",0,Commercial Supplier
02/04/2020,Children and Young People Operations & Safeguarding,National Fostering Agency,RESIDENTIAL PLACEMENTS - PRIVATE CONTRACTORS PAYMENT,"3,179.96",0,Commercial Supplier
02/04/2020,Children and Young People Operations & Safeguarding,National Fostering Agency,RESIDENTIAL PLACEMENTS - PRIVATE CONTRACTORS PAYMENT,"3,179.96",0,Commercial Supplier
02/04/2020,Children and Young People Operations & Safeguarding,National Fostering Agency,RESIDENTIAL PLACEMENTS - PRIVATE CONTRACTORS PAYMENT,"3,179.96",0,Commercial Supplier
02/04/2020,Children and Young People Operations & Safeguarding,National Fostering Agency,RESIDENTIAL PLACEMENTS - PRIVATE CONTRACTORS PAYMENT,"3,179.96",0,Commercial Supplier
02/04/2020,Children and Young People Operations & Safeguarding,National Fostering Agency,RESIDENTIAL PLACEMENTS - PRIVATE CONTRACTORS PAYMENT,"4,033.68",0,Commercial Supplier
02/04/2020,Children and Young People Operations & Safeguarding,National Fostering Agency,RESIDENTIAL PLACEMENTS - PRIVATE CONTRACTORS PAYMENT,"4,033.68",0,Commercial Supplier
02/04/2020,Children and Young People Operations & Safeguarding,National Fostering Agency,RESIDENTIAL PLACEMENTS - PRIVATE CONTRACTORS PAYMENT,"3,179.96",0,Commercial Supplier
02/04/2020,Children and Young People Operations & Safeguarding,Netpex Limited,SUPPORTED OTHER ACCOMMODATION - PRIVATE CONTRACTORS PAYMENT,"2,558.70",0,Supplier
02/04/2020,"Adults & Health Commissioning, Health & Social Care",New Horizons Broad Oak Limited,DAYCARE - PRIVATE CONTRACTORS PAYMENT,768,0,Commercial Supplier
02/04/2020,"Adults & Health Commissioning, Health & Social Care",Oasis Care & Training Agency,HOME CARE - PRIVATE CONTRACTORS PAYMENT,852.4,0,Commercial Supplier
02/04/2020,Environment and Sustainable Transport Highways and Sustainable Transport,Openview Security Solutions Ltd,SECURITY SERVICES (EXCLUDING PREMISES),"2,307.20",0,Commercial Supplier
02/04/2020,Environment and Sustainable Transport Highways and Sustainable Transport,Openview Security Solutions Ltd,SECURITY SERVICES (EXCLUDING PREMISES),"10,806.67",0,Commercial Supplier
02/04/2020,Environment and Sustainable Transport Community Safety,Openview Security Solutions Ltd,SECURITY SERVICES (EXCLUDING PREMISES),"5,010.67",0,Commercial Supplier
02/04/2020,Children and Young People Operations & Safeguarding,Orchid Place Ltd,CLIENT SUPPORT - THIRD PARTY,"1,280.00",0,Supplier
02/04/2020,Children and Young People Operations & Safeguarding,Orchid Place Ltd,SUPPORTED OTHER ACCOMMODATION - PRIVATE CONTRACTORS PAYMENT,"3,200.00",0,Supplier
02/04/2020,Children and Young People Operations & Safeguarding,Orchid Place Ltd,SUPPORTED OTHER ACCOMMODATION - PRIVATE CONTRACTORS PAYMENT,"3,200.00",0,Supplier
02/04/2020,Children and Young People Operations & Safeguarding,Orchid Place Ltd,SUPPORTED OTHER ACCOMMODATION - PRIVATE CONTRACTORS PAYMENT,"3,200.00",0,Supplier
02/04/2020,Children and Young People Operations & Safeguarding,Orchid Place Ltd,SUPPORTED OTHER ACCOMMODATION - PRIVATE CONTRACTORS PAYMENT,"1,200.00",0,Supplier
02/04/2020,Children and Young People Operations & Safeguarding,Orchid Place Ltd,SUPPORTED OTHER ACCOMMODATION - PRIVATE CONTRACTORS PAYMENT,"1,200.00",0,Supplier
02/04/2020,Children and Young People Operations & Safeguarding,Orchid Place Ltd,SUPPORTED OTHER ACCOMMODATION - PRIVATE CONTRACTORS PAYMENT,"1,280.00",0,Supplier
02/04/2020,Children and Young People Operations & Safeguarding,Orchid Place Ltd,SUPPORTED OTHER ACCOMMODATION - PRIVATE CONTRACTORS PAYMENT,"1,460.00",0,Supplier
02/04/2020,Children and Young People Operations & Safeguarding,Orchid Place Ltd,SUPPORTED OTHER ACCOMMODATION - PRIVATE CONTRACTORS PAYMENT,"3,200.00",0,Supplier
02/04/2020,Children and Young People Operations & Safeguarding,Orchid Place Ltd,SUPPORTED OTHER ACCOMMODATION - PRIVATE CONTRACTORS PAYMENT,"3,200.00",0,Supplier
02/04/2020,Children and Young People Operations & Safeguarding,Orchid Place Ltd,SUPPORTED OTHER ACCOMMODATION - PRIVATE CONTRACTORS PAYMENT,"3,200.00",0,Supplier
02/04/2020,Children and Young People Operations & Safeguarding,Orchid Place Ltd,SUPPORTED OTHER ACCOMMODATION - PRIVATE CONTRACTORS PAYMENT,"3,200.00",0,Supplier
02/04/2020,Children and Young People Operations & Safeguarding,Orchid Place Ltd,SUPPORTED OTHER ACCOMMODATION - PRIVATE CONTRACTORS PAYMENT,"1,071.42",0,Supplier
02/04/2020,Children and Young People Operations & Safeguarding,Orchid Place Ltd,SUPPORTED OTHER ACCOMMODATION - PRIVATE CONTRACTORS PAYMENT,"3,200.00",0,Supplier
02/04/2020,Children and Young People Operations & Safeguarding,Orchid Place Ltd,CLIENT SUPPORT - THIRD PARTY,"1,280.00",0,Supplier
02/04/2020,Children and Young People Inclusion & Achievement,Orchid Place Ltd,PRIVATE CONTRACTORS PAYMENT - OTHER,"3,400.00",0,Supplier
02/04/2020,Children and Young People Inclusion & Achievement,Orchid Place Ltd,PRIVATE CONTRACTORS PAYMENT - OTHER,"3,400.00",0,Supplier
02/04/2020,Children and Young People Operations & Safeguarding,Orchid Place Ltd,SUPPORTED OTHER ACCOMMODATION - PRIVATE CONTRACTORS PAYMENT,"3,000.00",0,Supplier
02/04/2020,Children and Young People Operations & Safeguarding,Orchid Place Ltd,SUPPORTED OTHER ACCOMMODATION - PRIVATE CONTRACTORS PAYMENT,"3,200.00",0,Supplier
02/04/2020,Children and Young People Operations & Safeguarding,Orchid Place Ltd,SUPPORTED OTHER ACCOMMODATION - PRIVATE CONTRACTORS PAYMENT,"3,200.00",0,Supplier
02/04/2020,Children and Young People Operations & Safeguarding,Orchid Place Ltd,SUPPORTED OTHER ACCOMMODATION - PRIVATE CONTRACTORS PAYMENT,"1,200.00",0,Supplier
02/04/2020,Children and Young People Operations & Safeguarding,Orchid Place Ltd,SUPPORTED OTHER ACCOMMODATION - PRIVATE CONTRACTORS PAYMENT,"3,200.00",0,Supplier
02/04/2020,Children and Young People Operations & Safeguarding,Orchid Place Ltd,SUPPORTED OTHER ACCOMMODATION - PRIVATE CONTRACTORS PAYMENT,"3,200.00",0,Supplier
02/04/2020,Children and Young People Operations & Safeguarding,Orchid Place Ltd,SUPPORTED OTHER ACCOMMODATION - PRIVATE CONTRACTORS PAYMENT,"1,280.00",0,Supplier
02/04/2020,Children and Young People Operations & Safeguarding,Orchid Place Ltd,SUPPORTED OTHER ACCOMMODATION - PRIVATE CONTRACTORS PAYMENT,"1,460.00",0,Supplier
02/04/2020,Children and Young People Operations & Safeguarding,Orchid Place Ltd,SUPPORTED OTHER ACCOMMODATION - PRIVATE CONTRACTORS PAYMENT,"3,000.00",0,Supplier
02/04/2020,Children and Young People Corporate Director -CYPS (DCS),Penna Plc.,"ADVERTISING, PUBLICITY AND MARKETING","11,883.75",0,Supplier
02/04/2020,Children and Young People Inclusion & Achievement,Permanent Futures Ltd,CONSULTANCY FEES,"1,400.00",0,Commercial Supplier
02/04/2020,Children and Young People Inclusion & Achievement,Permanent Futures Ltd,CONSULTANCY FEES,"1,350.00",0,Commercial Supplier
02/04/2020,Environment and Sustainable Transport Highways and Sustainable Transport,Project Centre Ltd,PROFESSIONAL SERVICES - GENERAL,"4,760.80",0,Commercial Supplier
02/04/2020,Inclusive Economy & Housing Community Wealth Building,RCCG New Wine Assembly,PROFESSIONAL SERVICES - GENERAL,540,0,Non Commercial Supplier
02/04/2020,"Adults & Health Commissioning, Health & Social Care",Reed Employment Plc,HOME CARE - PRIVATE CONTRACTORS PAYMENT,"11,928.00",0,Commercial Supplier
02/04/2020,"Adults & Health Commissioning, Health & Social Care",Rhythmic Care UK Ltd,RESPITE CARE - PRIVATE CONTRACTORS PAYMENT,592.95,0,Commercial Supplier
02/04/2020,"Adults & Health Commissioning, Health & Social Care",Rhythmic Care UK Ltd,PRIVATE CONTRACTORS PAYMENT - OTHER,"4,626.35",0,Commercial Supplier
02/04/2020,"Adults & Health Commissioning, Health & Social Care",Rhythmic Care UK Ltd,HOME CARE - PRIVATE CONTRACTORS PAYMENT,"56,099.10",0,Commercial Supplier
02/04/2020,"Adults & Health Commissioning, Health & Social Care",Rhythmic Care UK Ltd,DAYCARE - PRIVATE CONTRACTORS PAYMENT,"7,741.85",0,Commercial Supplier
02/04/2020,Children and Young People Operations & Safeguarding,Right Choice Services Ltd,SUPPORTED OTHER ACCOMMODATION - PRIVATE CONTRACTORS PAYMENT,"1,280.00",0,Foster Carers
02/04/2020,Children and Young People Operations & Safeguarding,Right Choice Services Ltd,SUPPORTED OTHER ACCOMMODATION - PRIVATE CONTRACTORS PAYMENT,"2,600.00",0,Foster Carers
02/04/2020,Children and Young People Operations & Safeguarding,Right Choice Services Ltd,SUPPORTED OTHER ACCOMMODATION - PRIVATE CONTRACTORS PAYMENT,"2,600.00",0,Foster Carers
02/04/2020,Children and Young People Operations & Safeguarding,Right Choice Services Ltd,SUPPORTED OTHER ACCOMMODATION - PRIVATE CONTRACTORS PAYMENT,"2,600.00",0,Foster Carers
02/04/2020,Children and Young People Operations & Safeguarding,Right Choice Services Ltd,SUPPORTED OTHER ACCOMMODATION - PRIVATE CONTRACTORS PAYMENT,"2,600.00",0,Foster Carers
02/04/2020,Children and Young People Operations & Safeguarding,Right Choice Services Ltd,SUPPORTED OTHER ACCOMMODATION - PRIVATE CONTRACTORS PAYMENT,"2,600.00",0,Foster Carers
02/04/2020,Inclusive Economy & Housing Housing,Site Sales Marketing Ltd,"ADVERTISING, PUBLICITY AND MARKETING","1,206.00",0,Commercial Supplier
02/04/2020,Inclusive Economy & Housing Housing,Site Sales Marketing Ltd,"ADVERTISING, PUBLICITY AND MARKETING","1,197.60",0,Commercial Supplier
02/04/2020,Inclusive Economy & Housing Housing,Site Sales Marketing Ltd,"ADVERTISING, PUBLICITY AND MARKETING",808,0,Commercial Supplier
02/04/2020,Inclusive Economy & Housing Housing,Site Sales Marketing Ltd,"ADVERTISING, PUBLICITY AND MARKETING",808,0,Commercial Supplier
02/04/2020,Inclusive Economy & Housing Housing,Site Sales Marketing Ltd,"ADVERTISING, PUBLICITY AND MARKETING","1,206.00",0,Commercial Supplier
02/04/2020,Inclusive Economy & Housing Housing,Site Sales Marketing Ltd,"ADVERTISING, PUBLICITY AND MARKETING","1,206.00",0,Commercial Supplier
02/04/2020,Inclusive Economy & Housing Housing,Site Sales Marketing Ltd,"ADVERTISING, PUBLICITY AND MARKETING","1,159.20",0,Commercial Supplier
02/04/2020,Inclusive Economy & Housing Housing,Site Sales Marketing Ltd,"ADVERTISING, PUBLICITY AND MARKETING","1,138.80",0,Commercial Supplier
02/04/2020,Children and Young People Operations & Safeguarding,Redacted - Personal Data,IN HOUSE FOSTER CARE PLACEMENTS - PRIVATE CONTRACTORS PAYMENT,400,0,Individuals
02/04/2020,Children and Young People Operations & Safeguarding,Redacted - Personal Data,IN HOUSE FOSTER CARE PLACEMENTS - PRIVATE CONTRACTORS PAYMENT,400,0,Individuals
02/04/2020,"Environment and Sustainable Transport Recycling, Refuse and Street Cleansing",Something Different (UK) Limited,EVENTS,952.25,0,Commercial Supplier
02/04/2020,"Adults & Health Commissioning, Health & Social Care",St Mark's Day Service,DAYCARE - PRIVATE CONTRACTORS PAYMENT,"4,480.00",0,Supplier
02/04/2020,Children and Young People Operations & Safeguarding,Sunbeam Fostering Agency Ltd,RESIDENTIAL PLACEMENTS - PRIVATE CONTRACTORS PAYMENT,"3,069.00",0,Commercial Supplier
02/04/2020,Children and Young People Operations & Safeguarding,Sunbeam Fostering Agency Ltd,RESIDENTIAL PLACEMENTS - PRIVATE CONTRACTORS PAYMENT,"3,069.00",0,Commercial Supplier
02/04/2020,Children and Young People Inclusion & Achievement,Teaching Support Ltd,PRIVATE CONTRACTORS PAYMENT - OTHER,"1,050.00",0,Commercial Supplier
02/04/2020,"Adults & Health Commissioning, Health & Social Care",The Nelson House Recovery Trust,PAYMENT TO HEALTH AUTHORITIES,617.16,0,Supplier
02/04/2020,"Adults & Health Commissioning, Health & Social Care",The Nelson House Recovery Trust,PAYMENT TO HEALTH AUTHORITIES,"2,760.00",0,Supplier
02/04/2020,"Adults & Health Commissioning, Health & Social Care",The Nelson House Recovery Trust,PAYMENT TO HEALTH AUTHORITIES,"1,080.00",0,Supplier
02/04/2020,Adults & Health Operations,Topman Construction Ltd,PRIVATE CONTRACTORS PAYMENT - OTHER,"5,878.34",0,CIS
02/04/2020,Adults & Health Operations,Topman Construction Ltd,PRIVATE CONTRACTORS PAYMENT - OTHER,"5,913.18",0,CIS
02/04/2020,Adults & Health Operations,Topman Construction Ltd,PRIVATE CONTRACTORS PAYMENT - OTHER,"5,772.77",0,CIS
02/04/2020,Children and Young People Operations & Safeguarding,Unique Support UK Ltd,SUPPORTED OTHER ACCOMMODATION - PRIVATE CONTRACTORS PAYMENT,"40,335.00",0,Commercial Supplier
02/04/2020,"Adults & Health Commissioning, Health & Social Care",Vibrance,DAYCARE - PRIVATE CONTRACTORS PAYMENT,"1,426.00",0,Voluntary Organisation
02/04/2020,"Adults & Health Commissioning, Health & Social Care",Vista Care Solutions,PRIVATE CONTRACTORS PAYMENT - OTHER,"4,417.88",0,Commercial Supplier
02/04/2020,"Adults & Health Commissioning, Health & Social Care",Vista Care Solutions,HOME CARE - PRIVATE CONTRACTORS PAYMENT,"29,882.48",0,Commercial Supplier
02/04/2020,"Adults & Health Commissioning, Health & Social Care",Vista Care Solutions,HOME CARE - PRIVATE CONTRACTORS PAYMENT,945,0,Commercial Supplier
02/04/2020,"Adults & Health Commissioning, Health & Social Care",Vista Care Solutions,HOME CARE - PRIVATE CONTRACTORS PAYMENT,"1,181.25",0,Commercial Supplier
02/04/2020,"Adults & Health Commissioning, Health & Social Care",Vista Care Solutions,DAYCARE - PRIVATE CONTRACTORS PAYMENT,"3,739.52",0,Commercial Supplier
02/04/2020,Inclusive Economy & Housing Community Wealth Building,W Hardy Ltd,MISCELLANEOUS EXPENSES,"5,000.00",0,CIS
02/04/2020,"Adults & Health Commissioning, Health & Social Care",Wood Lane Elite Cars Ltd,OTHER SOCIAL SERVICES TRANSFER PAYMENTS,256,0,Commercial Supplier
02/04/2020,Children and Young People Operations & Safeguarding,Youth Reality Homes Ltd,SUPPORTED OTHER ACCOMMODATION - PRIVATE CONTRACTORS PAYMENT,"4,400.00",0,Non Commercial Supplier
02/04/2020,Children and Young People Operations & Safeguarding,Youth Reality Homes Ltd,SUPPORTED OTHER ACCOMMODATION - PRIVATE CONTRACTORS PAYMENT,"3,980.00",0,Non Commercial Supplier
02/04/2020,Children and Young People Operations & Safeguarding,Youth Reality Homes Ltd,SUPPORTED OTHER ACCOMMODATION - PRIVATE CONTRACTORS PAYMENT,"4,380.00",0,Non Commercial Supplier
02/04/2020,Children and Young People Operations & Safeguarding,Youth Reality Homes Ltd,SUPPORTED OTHER ACCOMMODATION - PRIVATE CONTRACTORS PAYMENT,"4,380.00",0,Non Commercial Supplier
02/04/2020,Children and Young People Operations & Safeguarding,Youth Reality Homes Ltd,SUPPORTED OTHER ACCOMMODATION - PRIVATE CONTRACTORS PAYMENT,"3,980.00",0,Non Commercial Supplier
02/04/2020,Children and Young People Operations & Safeguarding,Youth Reality Homes Ltd,SUPPORTED OTHER ACCOMMODATION - PRIVATE CONTRACTORS PAYMENT,"1,400.00",0,Non Commercial Supplier
02/04/2020,Children and Young People Operations & Safeguarding,Youth Reality Homes Ltd,SUPPORTED OTHER ACCOMMODATION - PRIVATE CONTRACTORS PAYMENT,"1,400.00",0,Non Commercial Supplier
02/04/2020,Children and Young People Operations & Safeguarding,Youth Reality Homes Ltd,SUPPORTED OTHER ACCOMMODATION - PRIVATE CONTRACTORS PAYMENT,"4,400.00",0,Non Commercial Supplier
02/04/2020,Children and Young People Operations & Safeguarding,Youth Reality Homes Ltd,SUPPORTED OTHER ACCOMMODATION - PRIVATE CONTRACTORS PAYMENT,"4,400.00",0,Non Commercial Supplier
02/04/2020,Children and Young People Operations & Safeguarding,Youth Reality Homes Ltd,SUPPORTED OTHER ACCOMMODATION - PRIVATE CONTRACTORS PAYMENT,"4,400.00",0,Non Commercial Supplier
02/04/2020,Children and Young People Operations & Safeguarding,Youth Reality Homes Ltd,SUPPORTED OTHER ACCOMMODATION - PRIVATE CONTRACTORS PAYMENT,"3,300.00",0,Non Commercial Supplier
02/04/2020,Children and Young People Inclusion & Achievement,adam HTT LTd T/A Adam,ADDITIONAL PLACEMENTS - THIRD PARTY,"39,168.35",0,Supplier
02/04/2020,Children and Young People Inclusion & Achievement,adam HTT LTd T/A Adam,ADDITIONAL PLACEMENTS - THIRD PARTY,"16,466.83",0,Supplier
03/04/2020,Housing Revenue Account HRA,AWH Solicitors,LEGAL FEES,"4,225.00",0,Commercial Supplier
03/04/2020,"Adults & Health Commissioning, Health & Social Care",Abbeyfield Society,NURSING HOMES - PRIVATE CONTRACTORS PAYMENT,593.74,0,Commercial Supplier
03/04/2020,"Adults & Health Commissioning, Health & Social Care",Abbeyfield Society,NURSING HOMES - PRIVATE CONTRACTORS PAYMENT,593.74,0,Commercial Supplier
03/04/2020,"Adults & Health Commissioning, Health & Social Care",Abbeyfield Society,NURSING HOMES - PRIVATE CONTRACTORS PAYMENT,593.74,0,Commercial Supplier
03/04/2020,"Adults & Health Commissioning, Health & Social Care",Abbeyfield Society,NURSING HOMES - PRIVATE CONTRACTORS PAYMENT,593.74,0,Commercial Supplier
03/04/2020,"Adults & Health Commissioning, Health & Social Care",Abi Developments 3 Ltd t/a 1 Sewardstone Close,NURSING HOMES - PRIVATE CONTRACTORS PAYMENT,"1,989.29",0,Non Commercial Supplier
03/04/2020,"Adults & Health Commissioning, Health & Social Care",Abi Developments 3 Ltd t/a 1 Sewardstone Close,NURSING HOMES - PRIVATE CONTRACTORS PAYMENT,"1,988.94",0,Non Commercial Supplier
03/04/2020,"Adults & Health Commissioning, Health & Social Care",Abi Developments 3 Ltd t/a 1 Sewardstone Close,NURSING HOMES - PRIVATE CONTRACTORS PAYMENT,"1,989.29",0,Non Commercial Supplier
03/04/2020,"Adults & Health Commissioning, Health & Social Care",Abi Developments 3 Ltd t/a 1 Sewardstone Close,NURSING HOMES - PRIVATE CONTRACTORS PAYMENT,"1,989.29",0,Non Commercial Supplier
03/04/2020,"Adults & Health Commissioning, Health & Social Care",Abi Developments 3 Ltd t/a 1 Sewardstone Close,NURSING HOMES - PRIVATE CONTRACTORS PAYMENT,"1,988.94",0,Non Commercial Supplier
03/04/2020,"Adults & Health Commissioning, Health & Social Care",Abi Developments 3 Ltd t/a 1 Sewardstone Close,NURSING HOMES - PRIVATE CONTRACTORS PAYMENT,"1,643.01",0,Non Commercial Supplier
03/04/2020,"Adults & Health Commissioning, Health & Social Care",Abi Developments 3 Ltd t/a 1 Sewardstone Close,NURSING HOMES - PRIVATE CONTRACTORS PAYMENT,"1,643.01",0,Non Commercial Supplier
03/04/2020,"Adults & Health Commissioning, Health & Social Care",Abi Developments 3 Ltd t/a 1 Sewardstone Close,NURSING HOMES - PRIVATE CONTRACTORS PAYMENT,"1,643.01",0,Non Commercial Supplier
03/04/2020,"Adults & Health Commissioning, Health & Social Care",Abi Developments 3 Ltd t/a 1 Sewardstone Close,NURSING HOMES - PRIVATE CONTRACTORS PAYMENT,"1,643.01",0,Non Commercial Supplier
03/04/2020,"Adults & Health Commissioning, Health & Social Care",Abi Developments 3 Ltd t/a 1 Sewardstone Close,NURSING HOMES - PRIVATE CONTRACTORS PAYMENT,"1,988.94",0,Non Commercial Supplier
03/04/2020,"Adults & Health Commissioning, Health & Social Care",Abi Developments 3 Ltd t/a 1 Sewardstone Close,NURSING HOMES - PRIVATE CONTRACTORS PAYMENT,"1,989.29",0,Non Commercial Supplier
03/04/2020,"Adults & Health Commissioning, Health & Social Care",Abi Developments 3 Ltd t/a 1 Sewardstone Close,NURSING HOMES - PRIVATE CONTRACTORS PAYMENT,"1,988.94",0,Non Commercial Supplier
03/04/2020,"Adults & Health Commissioning, Health & Social Care",Accedo Care Ltd,SUPPORTED OTHER ACCOMMODATION - PRIVATE CONTRACTORS PAYMENT,"1,256.50",0,Supplier
03/04/2020,"Adults & Health Commissioning, Health & Social Care",Accedo Care Ltd,SUPPORTED OTHER ACCOMMODATION - PRIVATE CONTRACTORS PAYMENT,610,0,Supplier
03/04/2020,"Adults & Health Commissioning, Health & Social Care",Accedo Care Ltd,SUPPORTED OTHER ACCOMMODATION - PRIVATE CONTRACTORS PAYMENT,"1,120.00",0,Supplier
03/04/2020,"Adults & Health Commissioning, Health & Social Care",Accedo Care Ltd,SUPPORTED OTHER ACCOMMODATION - PRIVATE CONTRACTORS PAYMENT,"1,256.50",0,Supplier
03/04/2020,"Adults & Health Commissioning, Health & Social Care",Accedo Care Ltd,SUPPORTED OTHER ACCOMMODATION - PRIVATE CONTRACTORS PAYMENT,998,0,Supplier
03/04/2020,"Adults & Health Commissioning, Health & Social Care",Accedo Care Ltd,SUPPORTED OTHER ACCOMMODATION - PRIVATE CONTRACTORS PAYMENT,"1,120.00",0,Supplier
03/04/2020,"Adults & Health Commissioning, Health & Social Care",Accedo Care Ltd,SUPPORTED OTHER ACCOMMODATION - PRIVATE CONTRACTORS PAYMENT,998,0,Supplier
03/04/2020,"Adults & Health Commissioning, Health & Social Care",Accedo Care Ltd,SUPPORTED OTHER ACCOMMODATION - PRIVATE CONTRACTORS PAYMENT,998,0,Supplier
03/04/2020,"Adults & Health Commissioning, Health & Social Care",Accedo Care Ltd,SUPPORTED OTHER ACCOMMODATION - PRIVATE CONTRACTORS PAYMENT,"1,120.00",0,Supplier
03/04/2020,"Adults & Health Commissioning, Health & Social Care",Accedo Care Ltd,SUPPORTED OTHER ACCOMMODATION - PRIVATE CONTRACTORS PAYMENT,"1,120.00",0,Supplier
03/04/2020,"Adults & Health Commissioning, Health & Social Care",Accedo Care Ltd,SUPPORTED OTHER ACCOMMODATION - PRIVATE CONTRACTORS PAYMENT,610,0,Supplier
03/04/2020,"Adults & Health Commissioning, Health & Social Care",Accedo Care Ltd,SUPPORTED OTHER ACCOMMODATION - PRIVATE CONTRACTORS PAYMENT,"1,256.50",0,Supplier
03/04/2020,"Adults & Health Commissioning, Health & Social Care",Accedo Care Ltd,SUPPORTED OTHER ACCOMMODATION - PRIVATE CONTRACTORS PAYMENT,610,0,Supplier
03/04/2020,"Adults & Health Commissioning, Health & Social Care",Accedo Care Ltd,SUPPORTED OTHER ACCOMMODATION - PRIVATE CONTRACTORS PAYMENT,998,0,Supplier
03/04/2020,"Adults & Health Commissioning, Health & Social Care",Accedo Care Ltd,SUPPORTED OTHER ACCOMMODATION - PRIVATE CONTRACTORS PAYMENT,465,0,Supplier
03/04/2020,"Adults & Health Commissioning, Health & Social Care",Accedo Care Ltd,SUPPORTED OTHER ACCOMMODATION - PRIVATE CONTRACTORS PAYMENT,465,0,Supplier
03/04/2020,"Adults & Health Commissioning, Health & Social Care",Accedo Care Ltd,SUPPORTED OTHER ACCOMMODATION - PRIVATE CONTRACTORS PAYMENT,465,0,Supplier
03/04/2020,"Adults & Health Commissioning, Health & Social Care",Accedo Care Ltd,SUPPORTED OTHER ACCOMMODATION - PRIVATE CONTRACTORS PAYMENT,465,0,Supplier
03/04/2020,"Adults & Health Commissioning, Health & Social Care",Accedo Care Ltd,SUPPORTED OTHER ACCOMMODATION - PRIVATE CONTRACTORS PAYMENT,998,0,Supplier
03/04/2020,"Adults & Health Commissioning, Health & Social Care",Accedo Care Ltd,SUPPORTED OTHER ACCOMMODATION - PRIVATE CONTRACTORS PAYMENT,998,0,Supplier
03/04/2020,"Adults & Health Commissioning, Health & Social Care",Accedo Care Ltd,SUPPORTED OTHER ACCOMMODATION - PRIVATE CONTRACTORS PAYMENT,998,0,Supplier
03/04/2020,"Adults & Health Commissioning, Health & Social Care",Accedo Care Ltd,SUPPORTED OTHER ACCOMMODATION - PRIVATE CONTRACTORS PAYMENT,610,0,Supplier
03/04/2020,"Adults & Health Commissioning, Health & Social Care",Accedo Care Ltd,SUPPORTED OTHER ACCOMMODATION - PRIVATE CONTRACTORS PAYMENT,"1,256.50",0,Supplier
03/04/2020,"Adults & Health Commissioning, Health & Social Care",Accedo Care Ltd,SUPPORTED OTHER ACCOMMODATION - PRIVATE CONTRACTORS PAYMENT,998,0,Supplier
03/04/2020,"Adults & Health Commissioning, Health & Social Care",Acorn Care Home,RESIDENTIAL PLACEMENTS - PRIVATE CONTRACTORS PAYMENT,535,0,Supplier
03/04/2020,"Adults & Health Commissioning, Health & Social Care",Acorn Care Home,RESIDENTIAL PLACEMENTS - PRIVATE CONTRACTORS PAYMENT,535,0,Supplier
03/04/2020,"Adults & Health Commissioning, Health & Social Care",Acorn Care Home,RESIDENTIAL PLACEMENTS - PRIVATE CONTRACTORS PAYMENT,535,0,Supplier
03/04/2020,"Adults & Health Commissioning, Health & Social Care",Acorn Care Home,RESIDENTIAL PLACEMENTS - PRIVATE CONTRACTORS PAYMENT,535,0,Supplier
03/04/2020,"Adults & Health Commissioning, Health & Social Care",Acorn Lodge Limited t/a Acorn Lodge CareHome,NURSING HOMES - PRIVATE CONTRACTORS PAYMENT,885.3,0,Commercial Supplier
03/04/2020,"Adults & Health Commissioning, Health & Social Care",Acorn Lodge Limited t/a Acorn Lodge CareHome,NURSING HOMES - PRIVATE CONTRACTORS PAYMENT,885.3,0,Commercial Supplier
03/04/2020,"Adults & Health Commissioning, Health & Social Care",Acorn Lodge Limited t/a Acorn Lodge CareHome,NURSING HOMES - PRIVATE CONTRACTORS PAYMENT,885.3,0,Commercial Supplier
03/04/2020,"Adults & Health Commissioning, Health & Social Care",Acorn Lodge Limited t/a Acorn Lodge CareHome,NURSING HOMES - PRIVATE CONTRACTORS PAYMENT,885.3,0,Commercial Supplier
03/04/2020,"Adults & Health Commissioning, Health & Social Care",Action On Hearing Loss,NURSING HOMES - PRIVATE CONTRACTORS PAYMENT,"2,357.98",0,Commercial Supplier
03/04/2020,"Adults & Health Commissioning, Health & Social Care",Action On Hearing Loss,NURSING HOMES - PRIVATE CONTRACTORS PAYMENT,"2,357.98",0,Commercial Supplier
03/04/2020,"Adults & Health Commissioning, Health & Social Care",Action On Hearing Loss,NURSING HOMES - PRIVATE CONTRACTORS PAYMENT,"2,357.98",0,Commercial Supplier
03/04/2020,"Adults & Health Commissioning, Health & Social Care",Action On Hearing Loss,NURSING HOMES - PRIVATE CONTRACTORS PAYMENT,"2,357.98",0,Commercial Supplier
03/04/2020,"Adults & Health Commissioning, Health & Social Care",Advance Housing & Support Ltd,RESIDENTIAL PLACEMENTS - PRIVATE CONTRACTORS PAYMENT,"2,656.62",0,Supplier
03/04/2020,"Adults & Health Commissioning, Health & Social Care",Advance Housing & Support Ltd,RESIDENTIAL PLACEMENTS - PRIVATE CONTRACTORS PAYMENT,"2,373.34",0,Supplier
03/04/2020,"Adults & Health Commissioning, Health & Social Care",Advance Housing & Support Ltd,RESIDENTIAL PLACEMENTS - PRIVATE CONTRACTORS PAYMENT,"2,373.34",0,Supplier
03/04/2020,"Adults & Health Commissioning, Health & Social Care",Advance Housing & Support Ltd,RESIDENTIAL PLACEMENTS - PRIVATE CONTRACTORS PAYMENT,"2,373.34",0,Supplier
03/04/2020,"Adults & Health Commissioning, Health & Social Care",Advance Housing & Support Ltd,RESIDENTIAL PLACEMENTS - PRIVATE CONTRACTORS PAYMENT,"2,656.62",0,Supplier
03/04/2020,"Adults & Health Commissioning, Health & Social Care",Advance Housing & Support Ltd,RESIDENTIAL PLACEMENTS - PRIVATE CONTRACTORS PAYMENT,"2,656.62",0,Supplier
03/04/2020,"Adults & Health Commissioning, Health & Social Care",Advance Housing & Support Ltd,RESIDENTIAL PLACEMENTS - PRIVATE CONTRACTORS PAYMENT,"2,373.34",0,Supplier
03/04/2020,"Adults & Health Commissioning, Health & Social Care",Advance Housing & Support Ltd,RESIDENTIAL PLACEMENTS - PRIVATE CONTRACTORS PAYMENT,"2,656.62",0,Supplier
03/04/2020,"Adults & Health Commissioning, Health & Social Care",Affinia Health Care,SUPPORTED OTHER ACCOMMODATION - PRIVATE CONTRACTORS PAYMENT,450.03,0,Supplier
03/04/2020,"Adults & Health Commissioning, Health & Social Care",Affinia Health Care,SUPPORTED OTHER ACCOMMODATION - PRIVATE CONTRACTORS PAYMENT,515,0,Supplier
03/04/2020,"Adults & Health Commissioning, Health & Social Care",Affinia Health Care,SUPPORTED OTHER ACCOMMODATION - PRIVATE CONTRACTORS PAYMENT,450.03,0,Supplier
03/04/2020,"Adults & Health Commissioning, Health & Social Care",Affinia Health Care,SUPPORTED OTHER ACCOMMODATION - PRIVATE CONTRACTORS PAYMENT,450.03,0,Supplier
03/04/2020,"Adults & Health Commissioning, Health & Social Care",Affinia Health Care,SUPPORTED OTHER ACCOMMODATION - PRIVATE CONTRACTORS PAYMENT,515,0,Supplier
03/04/2020,"Adults & Health Commissioning, Health & Social Care",Affinia Health Care,SUPPORTED OTHER ACCOMMODATION - PRIVATE CONTRACTORS PAYMENT,515,0,Supplier
03/04/2020,"Adults & Health Commissioning, Health & Social Care",Affinia Health Care,SUPPORTED OTHER ACCOMMODATION - PRIVATE CONTRACTORS PAYMENT,450.03,0,Supplier
03/04/2020,"Adults & Health Commissioning, Health & Social Care",Affinia Health Care,SUPPORTED OTHER ACCOMMODATION - PRIVATE CONTRACTORS PAYMENT,515,0,Supplier
03/04/2020,"Adults & Health Commissioning, Health & Social Care",Airthrie Homes,RESIDENTIAL PLACEMENTS - PRIVATE CONTRACTORS PAYMENT,"1,165.32",0,Supplier
03/04/2020,"Adults & Health Commissioning, Health & Social Care",Airthrie Homes,RESIDENTIAL PLACEMENTS - PRIVATE CONTRACTORS PAYMENT,"1,165.32",0,Supplier
03/04/2020,"Adults & Health Commissioning, Health & Social Care",Airthrie Homes,RESIDENTIAL PLACEMENTS - PRIVATE CONTRACTORS PAYMENT,"1,165.32",0,Supplier
03/04/2020,"Adults & Health Commissioning, Health & Social Care",Airthrie Homes,RESIDENTIAL PLACEMENTS - PRIVATE CONTRACTORS PAYMENT,"1,165.32",0,Supplier
03/04/2020,"Adults & Health Commissioning, Health & Social Care",Aitch Care Homes (London) Ltd,RESIDENTIAL PLACEMENTS - PRIVATE CONTRACTORS PAYMENT,"1,509.75",0,Commercial Supplier
03/04/2020,"Adults & Health Commissioning, Health & Social Care",Aitch Care Homes (London) Ltd,RESIDENTIAL PLACEMENTS - PRIVATE CONTRACTORS PAYMENT,"1,509.75",0,Commercial Supplier
03/04/2020,"Adults & Health Commissioning, Health & Social Care",Aitch Care Homes (London) Ltd,RESIDENTIAL PLACEMENTS - PRIVATE CONTRACTORS PAYMENT,"1,425.00",0,Commercial Supplier
03/04/2020,"Adults & Health Commissioning, Health & Social Care",Aitch Care Homes (London) Ltd,RESIDENTIAL PLACEMENTS - PRIVATE CONTRACTORS PAYMENT,"1,509.75",0,Commercial Supplier
03/04/2020,"Adults & Health Commissioning, Health & Social Care",Aitch Care Homes (London) Ltd,RESIDENTIAL PLACEMENTS - PRIVATE CONTRACTORS PAYMENT,"1,425.00",0,Commercial Supplier
03/04/2020,"Adults & Health Commissioning, Health & Social Care",Aitch Care Homes (London) Ltd,RESIDENTIAL PLACEMENTS - PRIVATE CONTRACTORS PAYMENT,"1,425.00",0,Commercial Supplier
03/04/2020,"Adults & Health Commissioning, Health & Social Care",Aitch Care Homes (London) Ltd,RESIDENTIAL PLACEMENTS - PRIVATE CONTRACTORS PAYMENT,"1,509.75",0,Commercial Supplier
03/04/2020,"Adults & Health Commissioning, Health & Social Care",Aitch Care Homes (London) Ltd,RESIDENTIAL PLACEMENTS - PRIVATE CONTRACTORS PAYMENT,"1,425.00",0,Commercial Supplier
03/04/2020,"Adults & Health Commissioning, Health & Social Care",Aldanat Care,SUPPORTED OTHER ACCOMMODATION - PRIVATE CONTRACTORS PAYMENT,"1,677.24",0,Supplier
03/04/2020,"Adults & Health Commissioning, Health & Social Care",Aldanat Care,SUPPORTED OTHER ACCOMMODATION - PRIVATE CONTRACTORS PAYMENT,"1,677.24",0,Supplier
03/04/2020,"Adults & Health Commissioning, Health & Social Care",Aldanat Care,SUPPORTED OTHER ACCOMMODATION - PRIVATE CONTRACTORS PAYMENT,"1,677.24",0,Supplier
03/04/2020,"Adults & Health Commissioning, Health & Social Care",Aldanat Care,SUPPORTED OTHER ACCOMMODATION - PRIVATE CONTRACTORS PAYMENT,"1,677.24",0,Supplier
03/04/2020,"Adults & Health Commissioning, Health & Social Care",Alfa Homecare Ltd,SUPPORTED OTHER ACCOMMODATION - PRIVATE CONTRACTORS PAYMENT,800,0,Non Commercial Supplier
03/04/2020,"Adults & Health Commissioning, Health & Social Care",Alfa Homecare Ltd,SUPPORTED OTHER ACCOMMODATION - PRIVATE CONTRACTORS PAYMENT,800,0,Non Commercial Supplier
03/04/2020,"Adults & Health Commissioning, Health & Social Care",Alfa Homecare Ltd,SUPPORTED OTHER ACCOMMODATION - PRIVATE CONTRACTORS PAYMENT,800,0,Non Commercial Supplier
03/04/2020,"Adults & Health Commissioning, Health & Social Care",Alfa Homecare Ltd,SUPPORTED OTHER ACCOMMODATION - PRIVATE CONTRACTORS PAYMENT,700,0,Non Commercial Supplier
03/04/2020,"Adults & Health Commissioning, Health & Social Care",Alfa Homecare Ltd,SUPPORTED OTHER ACCOMMODATION - PRIVATE CONTRACTORS PAYMENT,700,0,Non Commercial Supplier
03/04/2020,"Adults & Health Commissioning, Health & Social Care",Alfa Homecare Ltd,SUPPORTED OTHER ACCOMMODATION - PRIVATE CONTRACTORS PAYMENT,700,0,Non Commercial Supplier
03/04/2020,"Adults & Health Commissioning, Health & Social Care",Alfa Homecare Ltd,SUPPORTED OTHER ACCOMMODATION - PRIVATE CONTRACTORS PAYMENT,700,0,Non Commercial Supplier
03/04/2020,"Adults & Health Commissioning, Health & Social Care",Alfa Homecare Ltd,SUPPORTED OTHER ACCOMMODATION - PRIVATE CONTRACTORS PAYMENT,800,0,Non Commercial Supplier
03/04/2020,Housing Revenue Account HRA,Redacted - Personal Data,SUBSISTENCE,440,0,Employee
03/04/2020,Inclusive Economy & Housing Housing,Redacted - Personal Data,SUBSISTENCE,420,0,Employee
03/04/2020,Inclusive Economy & Housing Housing,Redacted - Personal Data,HOTEL AND OTHER ACCOMMODATION COSTS,"4,513.39",0,Employee
03/04/2020,"Adults & Health Commissioning, Health & Social Care",Alpam Homes,RESIDENTIAL PLACEMENTS - PRIVATE CONTRACTORS PAYMENT,"1,585.14",0,Supplier
03/04/2020,"Adults & Health Commissioning, Health & Social Care",Alpam Homes,RESIDENTIAL PLACEMENTS - PRIVATE CONTRACTORS PAYMENT,"1,701.47",0,Supplier
03/04/2020,"Adults & Health Commissioning, Health & Social Care",Alpam Homes,RESIDENTIAL PLACEMENTS - PRIVATE CONTRACTORS PAYMENT,"1,444.28",0,Supplier
03/04/2020,"Adults & Health Commissioning, Health & Social Care",Alpam Homes,RESIDENTIAL PLACEMENTS - PRIVATE CONTRACTORS PAYMENT,"1,441.00",0,Supplier
03/04/2020,"Adults & Health Commissioning, Health & Social Care",Alpam Homes,RESIDENTIAL PLACEMENTS - PRIVATE CONTRACTORS PAYMENT,"1,701.47",0,Supplier
03/04/2020,"Adults & Health Commissioning, Health & Social Care",Alpam Homes,RESIDENTIAL PLACEMENTS - PRIVATE CONTRACTORS PAYMENT,"1,400.00",0,Supplier
03/04/2020,"Adults & Health Commissioning, Health & Social Care",Alpam Homes,RESIDENTIAL PLACEMENTS - PRIVATE CONTRACTORS PAYMENT,"1,444.28",0,Supplier
03/04/2020,"Adults & Health Commissioning, Health & Social Care",Alpam Homes,RESIDENTIAL PLACEMENTS - PRIVATE CONTRACTORS PAYMENT,"1,636.29",0,Supplier
03/04/2020,"Adults & Health Commissioning, Health & Social Care",Alpam Homes,RESIDENTIAL PLACEMENTS - PRIVATE CONTRACTORS PAYMENT,"1,441.00",0,Supplier
03/04/2020,"Adults & Health Commissioning, Health & Social Care",Alpam Homes,RESIDENTIAL PLACEMENTS - PRIVATE CONTRACTORS PAYMENT,"1,400.00",0,Supplier
03/04/2020,"Adults & Health Commissioning, Health & Social Care",Alpam Homes,RESIDENTIAL PLACEMENTS - PRIVATE CONTRACTORS PAYMENT,"1,629.40",0,Supplier
03/04/2020,"Adults & Health Commissioning, Health & Social Care",Alpam Homes,RESIDENTIAL PLACEMENTS - PRIVATE CONTRACTORS PAYMENT,"1,400.00",0,Supplier
03/04/2020,"Adults & Health Commissioning, Health & Social Care",Alpam Homes,RESIDENTIAL PLACEMENTS - PRIVATE CONTRACTORS PAYMENT,"1,441.00",0,Supplier
03/04/2020,"Adults & Health Commissioning, Health & Social Care",Alpam Homes,RESIDENTIAL PLACEMENTS - PRIVATE CONTRACTORS PAYMENT,"1,444.28",0,Supplier
03/04/2020,"Adults & Health Commissioning, Health & Social Care",Alpam Homes,RESIDENTIAL PLACEMENTS - PRIVATE CONTRACTORS PAYMENT,"1,636.29",0,Supplier
03/04/2020,"Adults & Health Commissioning, Health & Social Care",Alpam Homes,RESIDENTIAL PLACEMENTS - PRIVATE CONTRACTORS PAYMENT,"1,585.14",0,Supplier
03/04/2020,"Adults & Health Commissioning, Health & Social Care",Alpam Homes,RESIDENTIAL PLACEMENTS - PRIVATE CONTRACTORS PAYMENT,"1,441.00",0,Supplier
03/04/2020,"Adults & Health Commissioning, Health & Social Care",Alpam Homes,RESIDENTIAL PLACEMENTS - PRIVATE CONTRACTORS PAYMENT,"1,480.00",0,Supplier
03/04/2020,"Adults & Health Commissioning, Health & Social Care",Alpam Homes,RESIDENTIAL PLACEMENTS - PRIVATE CONTRACTORS PAYMENT,"1,480.00",0,Supplier
03/04/2020,"Adults & Health Commissioning, Health & Social Care",Alpam Homes,RESIDENTIAL PLACEMENTS - PRIVATE CONTRACTORS PAYMENT,"1,480.00",0,Supplier
03/04/2020,"Adults & Health Commissioning, Health & Social Care",Alpam Homes,RESIDENTIAL PLACEMENTS - PRIVATE CONTRACTORS PAYMENT,"1,480.00",0,Supplier
03/04/2020,"Adults & Health Commissioning, Health & Social Care",Alpam Homes,RESIDENTIAL PLACEMENTS - PRIVATE CONTRACTORS PAYMENT,"1,636.29",0,Supplier
03/04/2020,"Adults & Health Commissioning, Health & Social Care",Alpam Homes,RESIDENTIAL PLACEMENTS - PRIVATE CONTRACTORS PAYMENT,"1,629.40",0,Supplier
03/04/2020,"Adults & Health Commissioning, Health & Social Care",Alpam Homes,RESIDENTIAL PLACEMENTS - PRIVATE CONTRACTORS PAYMENT,"1,629.40",0,Supplier
03/04/2020,"Adults & Health Commissioning, Health & Social Care",Alpam Homes,RESIDENTIAL PLACEMENTS - PRIVATE CONTRACTORS PAYMENT,"1,441.00",0,Supplier
03/04/2020,"Adults & Health Commissioning, Health & Social Care",Alpam Homes,RESIDENTIAL PLACEMENTS - PRIVATE CONTRACTORS PAYMENT,"1,585.14",0,Supplier
03/04/2020,"Adults & Health Commissioning, Health & Social Care",Alpam Homes,RESIDENTIAL PLACEMENTS - PRIVATE CONTRACTORS PAYMENT,"1,585.14",0,Supplier
03/04/2020,"Adults & Health Commissioning, Health & Social Care",Alpam Homes,RESIDENTIAL PLACEMENTS - PRIVATE CONTRACTORS PAYMENT,"1,441.00",0,Supplier
03/04/2020,"Adults & Health Commissioning, Health & Social Care",Alpam Homes,RESIDENTIAL PLACEMENTS - PRIVATE CONTRACTORS PAYMENT,"1,636.29",0,Supplier
03/04/2020,"Adults & Health Commissioning, Health & Social Care",Alpam Homes,RESIDENTIAL PLACEMENTS - PRIVATE CONTRACTORS PAYMENT,"1,400.00",0,Supplier
03/04/2020,"Adults & Health Commissioning, Health & Social Care",Alpam Homes,RESIDENTIAL PLACEMENTS - PRIVATE CONTRACTORS PAYMENT,"1,441.00",0,Supplier
03/04/2020,"Adults & Health Commissioning, Health & Social Care",Alpam Homes,RESIDENTIAL PLACEMENTS - PRIVATE CONTRACTORS PAYMENT,"1,629.40",0,Supplier
03/04/2020,"Adults & Health Commissioning, Health & Social Care",Alpam Homes,RESIDENTIAL PLACEMENTS - PRIVATE CONTRACTORS PAYMENT,"1,701.47",0,Supplier
03/04/2020,"Adults & Health Commissioning, Health & Social Care",Alpam Homes,RESIDENTIAL PLACEMENTS - PRIVATE CONTRACTORS PAYMENT,"1,701.47",0,Supplier
03/04/2020,"Adults & Health Commissioning, Health & Social Care",Alpam Homes,RESIDENTIAL PLACEMENTS - PRIVATE CONTRACTORS PAYMENT,"1,444.28",0,Supplier
03/04/2020,"Adults & Health Commissioning, Health & Social Care",Alpam Homes,RESIDENTIAL PLACEMENTS - PRIVATE CONTRACTORS PAYMENT,"1,441.00",0,Supplier
03/04/2020,"Adults & Health Commissioning, Health & Social Care",Angel Support Living Ltd,SUPPORTED OTHER ACCOMMODATION - PRIVATE CONTRACTORS PAYMENT,840,0,Non Commercial Supplier
03/04/2020,"Adults & Health Commissioning, Health & Social Care",Angel Support Living Ltd,SUPPORTED OTHER ACCOMMODATION - PRIVATE CONTRACTORS PAYMENT,975,0,Non Commercial Supplier
03/04/2020,"Adults & Health Commissioning, Health & Social Care",Angel Support Living Ltd,SUPPORTED OTHER ACCOMMODATION - PRIVATE CONTRACTORS PAYMENT,840,0,Non Commercial Supplier
03/04/2020,"Adults & Health Commissioning, Health & Social Care",Angel Support Living Ltd,SUPPORTED OTHER ACCOMMODATION - PRIVATE CONTRACTORS PAYMENT,975,0,Non Commercial Supplier
03/04/2020,"Adults & Health Commissioning, Health & Social Care",Angel Support Living Ltd,SUPPORTED OTHER ACCOMMODATION - PRIVATE CONTRACTORS PAYMENT,840,0,Non Commercial Supplier
03/04/2020,"Adults & Health Commissioning, Health & Social Care",Angel Support Living Ltd,SUPPORTED OTHER ACCOMMODATION - PRIVATE CONTRACTORS PAYMENT,975,0,Non Commercial Supplier
03/04/2020,"Adults & Health Commissioning, Health & Social Care",Angel Support Living Ltd,SUPPORTED OTHER ACCOMMODATION - PRIVATE CONTRACTORS PAYMENT,975,0,Non Commercial Supplier
03/04/2020,"Adults & Health Commissioning, Health & Social Care",Angel Support Living Ltd,SUPPORTED OTHER ACCOMMODATION - PRIVATE CONTRACTORS PAYMENT,840,0,Non Commercial Supplier
03/04/2020,"Adults & Health Commissioning, Health & Social Care",Apasen.,RESPITE CARE - PRIVATE CONTRACTORS PAYMENT,660,0,Commercial Supplier
03/04/2020,"Adults & Health Commissioning, Health & Social Care",Appletree Court,NURSING HOMES - PRIVATE CONTRACTORS PAYMENT,542.62,0,Non Commercial Supplier
03/04/2020,"Adults & Health Commissioning, Health & Social Care",Appletree Court,NURSING HOMES - PRIVATE CONTRACTORS PAYMENT,542.62,0,Non Commercial Supplier
03/04/2020,"Adults & Health Commissioning, Health & Social Care",Appletree Court,NURSING HOMES - PRIVATE CONTRACTORS PAYMENT,542.62,0,Non Commercial Supplier
03/04/2020,"Adults & Health Commissioning, Health & Social Care",Appletree Court,NURSING HOMES - PRIVATE CONTRACTORS PAYMENT,542.62,0,Non Commercial Supplier
03/04/2020,Inclusive Economy & Housing Chief Planning Officer,Archant Regional Ltd,EVENTS,900,0,Non Commercial Supplier
03/04/2020,"Adults & Health Commissioning, Health & Social Care",Ashcroft Care Services,RESIDENTIAL PLACEMENTS - PRIVATE CONTRACTORS PAYMENT,"1,649.81",0,Commercial Supplier
03/04/2020,"Adults & Health Commissioning, Health & Social Care",Ashcroft Care Services,RESIDENTIAL PLACEMENTS - PRIVATE CONTRACTORS PAYMENT,"1,649.81",0,Commercial Supplier
03/04/2020,"Adults & Health Commissioning, Health & Social Care",Ashcroft Care Services,RESIDENTIAL PLACEMENTS - PRIVATE CONTRACTORS PAYMENT,"1,649.81",0,Commercial Supplier
03/04/2020,"Adults & Health Commissioning, Health & Social Care",Ashcroft Care Services,SUPPORTED OTHER ACCOMMODATION - PRIVATE CONTRACTORS PAYMENT,"1,211.75",0,Commercial Supplier
03/04/2020,"Adults & Health Commissioning, Health & Social Care",Ashcroft Care Services,SUPPORTED OTHER ACCOMMODATION - PRIVATE CONTRACTORS PAYMENT,"1,211.75",0,Commercial Supplier
03/04/2020,"Adults & Health Commissioning, Health & Social Care",Ashcroft Care Services,RESIDENTIAL PLACEMENTS - PRIVATE CONTRACTORS PAYMENT,"1,649.81",0,Commercial Supplier
03/04/2020,"Adults & Health Commissioning, Health & Social Care",Ashcroft Care Services,SUPPORTED OTHER ACCOMMODATION - PRIVATE CONTRACTORS PAYMENT,"1,211.75",0,Commercial Supplier
03/04/2020,"Adults & Health Commissioning, Health & Social Care",Ashcroft Care Services,SUPPORTED OTHER ACCOMMODATION - PRIVATE CONTRACTORS PAYMENT,"1,211.75",0,Commercial Supplier
03/04/2020,"Adults & Health Commissioning, Health & Social Care",Ashgate House Ltd,RESIDENTIAL PLACEMENTS - PRIVATE CONTRACTORS PAYMENT,"1,590.08",0,Commercial Supplier
03/04/2020,"Adults & Health Commissioning, Health & Social Care",Ashgate House Ltd,RESIDENTIAL PLACEMENTS - PRIVATE CONTRACTORS PAYMENT,"1,590.08",0,Commercial Supplier
03/04/2020,"Adults & Health Commissioning, Health & Social Care",Ashgate House Ltd,RESIDENTIAL PLACEMENTS - PRIVATE CONTRACTORS PAYMENT,"1,590.08",0,Commercial Supplier
03/04/2020,"Adults & Health Commissioning, Health & Social Care",Ashgate House Ltd,RESIDENTIAL PLACEMENTS - PRIVATE CONTRACTORS PAYMENT,"1,590.08",0,Commercial Supplier
03/04/2020,"Adults & Health Commissioning, Health & Social Care",Ashking House,RESIDENTIAL PLACEMENTS - PRIVATE CONTRACTORS PAYMENT,"1,359.36",0,Supplier
03/04/2020,"Adults & Health Commissioning, Health & Social Care",Ashking House,RESIDENTIAL PLACEMENTS - PRIVATE CONTRACTORS PAYMENT,"1,359.36",0,Supplier
03/04/2020,"Adults & Health Commissioning, Health & Social Care",Ashking House,RESIDENTIAL PLACEMENTS - PRIVATE CONTRACTORS PAYMENT,"1,359.36",0,Supplier
03/04/2020,"Adults & Health Commissioning, Health & Social Care",Ashking House,RESIDENTIAL PLACEMENTS - PRIVATE CONTRACTORS PAYMENT,"1,359.36",0,Supplier
03/04/2020,"Adults & Health Commissioning, Health & Social Care",Ashlake Lodge Limited,RESIDENTIAL PLACEMENTS - PRIVATE CONTRACTORS PAYMENT,"1,050.00",0,Supplier
03/04/2020,"Adults & Health Commissioning, Health & Social Care",Ashlake Lodge Limited,RESIDENTIAL PLACEMENTS - PRIVATE CONTRACTORS PAYMENT,"1,050.00",0,Supplier
03/04/2020,"Adults & Health Commissioning, Health & Social Care",Ashlake Lodge Limited,RESIDENTIAL PLACEMENTS - PRIVATE CONTRACTORS PAYMENT,885.41,0,Supplier
03/04/2020,"Adults & Health Commissioning, Health & Social Care",Ashlake Lodge Limited,RESIDENTIAL PLACEMENTS - PRIVATE CONTRACTORS PAYMENT,885.41,0,Supplier
03/04/2020,"Adults & Health Commissioning, Health & Social Care",Ashlake Lodge Limited,RESIDENTIAL PLACEMENTS - PRIVATE CONTRACTORS PAYMENT,885.41,0,Supplier
03/04/2020,"Adults & Health Commissioning, Health & Social Care",Ashlake Lodge Limited,RESIDENTIAL PLACEMENTS - PRIVATE CONTRACTORS PAYMENT,885.41,0,Supplier
03/04/2020,"Adults & Health Commissioning, Health & Social Care",Ashlake Lodge Limited,RESIDENTIAL PLACEMENTS - PRIVATE CONTRACTORS PAYMENT,"1,050.00",0,Supplier
03/04/2020,"Adults & Health Commissioning, Health & Social Care",Ashlake Lodge Limited,RESIDENTIAL PLACEMENTS - PRIVATE CONTRACTORS PAYMENT,"1,050.00",0,Supplier
03/04/2020,"Adults & Health Commissioning, Health & Social Care",Ashling House,RESIDENTIAL PLACEMENTS - PRIVATE CONTRACTORS PAYMENT,579,0,Commercial Supplier
03/04/2020,"Adults & Health Commissioning, Health & Social Care",Ashling House,RESIDENTIAL PLACEMENTS - PRIVATE CONTRACTORS PAYMENT,579,0,Commercial Supplier
03/04/2020,"Adults & Health Commissioning, Health & Social Care",Ashling House,RESIDENTIAL PLACEMENTS - PRIVATE CONTRACTORS PAYMENT,579,0,Commercial Supplier
03/04/2020,"Adults & Health Commissioning, Health & Social Care",Ashling House,RESIDENTIAL PLACEMENTS - PRIVATE CONTRACTORS PAYMENT,579,0,Commercial Supplier
03/04/2020,"Adults & Health Commissioning, Health & Social Care",Ashwood House,RESIDENTIAL PLACEMENTS - PRIVATE CONTRACTORS PAYMENT,600.67,0,Supplier
03/04/2020,"Adults & Health Commissioning, Health & Social Care",Ashwood House,RESIDENTIAL PLACEMENTS - PRIVATE CONTRACTORS PAYMENT,600.67,0,Supplier
03/04/2020,"Adults & Health Commissioning, Health & Social Care",Ashwood House,RESIDENTIAL PLACEMENTS - PRIVATE CONTRACTORS PAYMENT,600.67,0,Supplier
03/04/2020,"Adults & Health Commissioning, Health & Social Care",Ashwood House,RESIDENTIAL PLACEMENTS - PRIVATE CONTRACTORS PAYMENT,600.67,0,Supplier
03/04/2020,Inclusive Economy & Housing Community Wealth Building,Redacted - Personal Data,PROFESSIONAL SERVICES - GENERAL,952,0,Employee
03/04/2020,Inclusive Economy & Housing Community Wealth Building,Redacted - Personal Data,BUILDING ALTERATIONS AND MATERIALS,333.34,0,Employee
03/04/2020,"Adults & Health Commissioning, Health & Social Care",BNHL-Havering Court,NURSING HOMES - PRIVATE CONTRACTORS PAYMENT,"1,038.00",0,Supplier
03/04/2020,"Adults & Health Commissioning, Health & Social Care",BNHL-Havering Court,NURSING HOMES - PRIVATE CONTRACTORS PAYMENT,940.21,0,Supplier
03/04/2020,"Adults & Health Commissioning, Health & Social Care",BNHL-Havering Court,NURSING HOMES - PRIVATE CONTRACTORS PAYMENT,"1,038.00",0,Supplier
03/04/2020,"Adults & Health Commissioning, Health & Social Care",BNHL-Havering Court,NURSING HOMES - PRIVATE CONTRACTORS PAYMENT,940.21,0,Supplier
03/04/2020,"Adults & Health Commissioning, Health & Social Care",BNHL-Havering Court,NURSING HOMES - PRIVATE CONTRACTORS PAYMENT,"1,038.00",0,Supplier
03/04/2020,"Adults & Health Commissioning, Health & Social Care",BNHL-Havering Court,NURSING HOMES - PRIVATE CONTRACTORS PAYMENT,940.21,0,Supplier
03/04/2020,"Adults & Health Commissioning, Health & Social Care",BNHL-Havering Court,NURSING HOMES - PRIVATE CONTRACTORS PAYMENT,940.21,0,Supplier
03/04/2020,"Adults & Health Commissioning, Health & Social Care",BNHL-Havering Court,NURSING HOMES - PRIVATE CONTRACTORS PAYMENT,"1,038.00",0,Supplier
03/04/2020,"Adults & Health Commissioning, Health & Social Care",Barchester Healthcare Homes Limited t/a Westgate House,NURSING HOMES - PRIVATE CONTRACTORS PAYMENT,573.88,0,Non Commercial Supplier
03/04/2020,"Adults & Health Commissioning, Health & Social Care",Barchester Healthcare Homes Limited t/a Westgate House,NURSING HOMES - PRIVATE CONTRACTORS PAYMENT,565.12,0,Non Commercial Supplier
03/04/2020,"Adults & Health Commissioning, Health & Social Care",Barchester Healthcare Homes Limited t/a Westgate House,NURSING HOMES - PRIVATE CONTRACTORS PAYMENT,573.88,0,Non Commercial Supplier
03/04/2020,"Adults & Health Commissioning, Health & Social Care",Barchester Healthcare Homes Limited t/a Westgate House,NURSING HOMES - PRIVATE CONTRACTORS PAYMENT,566.56,0,Non Commercial Supplier
03/04/2020,"Adults & Health Commissioning, Health & Social Care",Barchester Healthcare Homes Limited t/a Westgate House,RESIDENTIAL PLACEMENTS - PRIVATE CONTRACTORS PAYMENT,534.63,0,Non Commercial Supplier
03/04/2020,"Adults & Health Commissioning, Health & Social Care",Barchester Healthcare Homes Limited t/a Westgate House,NURSING HOMES - PRIVATE CONTRACTORS PAYMENT,573.88,0,Non Commercial Supplier
03/04/2020,"Adults & Health Commissioning, Health & Social Care",Barchester Healthcare Homes Limited t/a Westgate House,NURSING HOMES - PRIVATE CONTRACTORS PAYMENT,564.64,0,Non Commercial Supplier
03/04/2020,"Adults & Health Commissioning, Health & Social Care",Barchester Healthcare Homes Limited t/a Westgate House,NURSING HOMES - PRIVATE CONTRACTORS PAYMENT,573.88,0,Non Commercial Supplier
03/04/2020,"Adults & Health Commissioning, Health & Social Care",Barchester Healthcare Homes Limited t/a Westgate House,NURSING HOMES - PRIVATE CONTRACTORS PAYMENT,566.56,0,Non Commercial Supplier
03/04/2020,"Adults & Health Commissioning, Health & Social Care",Barchester Healthcare Homes Limited t/a Westgate House,NURSING HOMES - PRIVATE CONTRACTORS PAYMENT,564.64,0,Non Commercial Supplier
03/04/2020,"Adults & Health Commissioning, Health & Social Care",Barchester Healthcare Homes Limited t/a Westgate House,NURSING HOMES - PRIVATE CONTRACTORS PAYMENT,564.64,0,Non Commercial Supplier
03/04/2020,"Adults & Health Commissioning, Health & Social Care",Barchester Healthcare Homes Limited t/a Westgate House,RESIDENTIAL PLACEMENTS - PRIVATE CONTRACTORS PAYMENT,534.63,0,Non Commercial Supplier
03/04/2020,"Adults & Health Commissioning, Health & Social Care",Barchester Healthcare Homes Limited t/a Westgate House,RESIDENTIAL PLACEMENTS - PRIVATE CONTRACTORS PAYMENT,534.63,0,Non Commercial Supplier
03/04/2020,"Adults & Health Commissioning, Health & Social Care",Barchester Healthcare Homes Limited t/a Westgate House,RESIDENTIAL PLACEMENTS - PRIVATE CONTRACTORS PAYMENT,534.63,0,Non Commercial Supplier
03/04/2020,"Adults & Health Commissioning, Health & Social Care",Barchester Healthcare Homes Limited t/a Westgate House,RESIDENTIAL PLACEMENTS - PRIVATE CONTRACTORS PAYMENT,558.15,0,Non Commercial Supplier
03/04/2020,"Adults & Health Commissioning, Health & Social Care",Barchester Healthcare Homes Limited t/a Westgate House,RESIDENTIAL PLACEMENTS - PRIVATE CONTRACTORS PAYMENT,534.63,0,Non Commercial Supplier
03/04/2020,"Adults & Health Commissioning, Health & Social Care",Barchester Healthcare Homes Limited t/a Westgate House,NURSING HOMES - PRIVATE CONTRACTORS PAYMENT,566.56,0,Non Commercial Supplier
03/04/2020,"Adults & Health Commissioning, Health & Social Care",Barchester Healthcare Homes Limited t/a Westgate House,RESIDENTIAL PLACEMENTS - PRIVATE CONTRACTORS PAYMENT,558.15,0,Non Commercial Supplier
03/04/2020,"Adults & Health Commissioning, Health & Social Care",Barchester Healthcare Homes Limited t/a Westgate House,RESIDENTIAL PLACEMENTS - PRIVATE CONTRACTORS PAYMENT,558.15,0,Non Commercial Supplier
03/04/2020,"Adults & Health Commissioning, Health & Social Care",Barchester Healthcare Homes Limited t/a Westgate House,NURSING HOMES - PRIVATE CONTRACTORS PAYMENT,573.88,0,Non Commercial Supplier
03/04/2020,"Adults & Health Commissioning, Health & Social Care",Barchester Healthcare Homes Limited t/a Westgate House,NURSING HOMES - PRIVATE CONTRACTORS PAYMENT,565.12,0,Non Commercial Supplier
03/04/2020,"Adults & Health Commissioning, Health & Social Care",Barchester Healthcare Homes Limited t/a Westgate House,NURSING HOMES - PRIVATE CONTRACTORS PAYMENT,573.88,0,Non Commercial Supplier
03/04/2020,"Adults & Health Commissioning, Health & Social Care",Barchester Healthcare Homes Limited t/a Westgate House,NURSING HOMES - PRIVATE CONTRACTORS PAYMENT,573.88,0,Non Commercial Supplier
03/04/2020,"Adults & Health Commissioning, Health & Social Care",Barchester Healthcare Homes Limited t/a Westgate House,NURSING HOMES - PRIVATE CONTRACTORS PAYMENT,820,0,Non Commercial Supplier
03/04/2020,"Adults & Health Commissioning, Health & Social Care",Barchester Healthcare Homes Limited t/a Westgate House,RESIDENTIAL PLACEMENTS - PRIVATE CONTRACTORS PAYMENT,558.15,0,Non Commercial Supplier
03/04/2020,"Adults & Health Commissioning, Health & Social Care",Barchester Healthcare Homes Limited t/a Westgate House,NURSING HOMES - PRIVATE CONTRACTORS PAYMENT,573.88,0,Non Commercial Supplier
03/04/2020,"Adults & Health Commissioning, Health & Social Care",Barchester Healthcare Homes Limited t/a Westgate House,RESIDENTIAL PLACEMENTS - PRIVATE CONTRACTORS PAYMENT,534.63,0,Non Commercial Supplier
03/04/2020,"Adults & Health Commissioning, Health & Social Care",Barchester Healthcare Homes Limited t/a Westgate House,NURSING HOMES - PRIVATE CONTRACTORS PAYMENT,702.44,0,Non Commercial Supplier
03/04/2020,"Adults & Health Commissioning, Health & Social Care",Barchester Healthcare Homes Limited t/a Westgate House,NURSING HOMES - PRIVATE CONTRACTORS PAYMENT,573.88,0,Non Commercial Supplier
03/04/2020,"Adults & Health Commissioning, Health & Social Care",Barchester Healthcare Homes Limited t/a Westgate House,NURSING HOMES - PRIVATE CONTRACTORS PAYMENT,573.88,0,Non Commercial Supplier
03/04/2020,"Adults & Health Commissioning, Health & Social Care",Barchester Healthcare Homes Limited t/a Westgate House,NURSING HOMES - PRIVATE CONTRACTORS PAYMENT,565.12,0,Non Commercial Supplier
03/04/2020,"Adults & Health Commissioning, Health & Social Care",Barchester Healthcare Homes Limited t/a Westgate House,NURSING HOMES - PRIVATE CONTRACTORS PAYMENT,573.88,0,Non Commercial Supplier
03/04/2020,"Adults & Health Commissioning, Health & Social Care",Barchester Healthcare Homes Limited t/a Westgate House,NURSING HOMES - PRIVATE CONTRACTORS PAYMENT,702.44,0,Non Commercial Supplier
03/04/2020,"Adults & Health Commissioning, Health & Social Care",Barchester Healthcare Homes Limited t/a Westgate House,NURSING HOMES - PRIVATE CONTRACTORS PAYMENT,573.88,0,Non Commercial Supplier
03/04/2020,"Adults & Health Commissioning, Health & Social Care",Barchester Healthcare Homes Limited t/a Westgate House,NURSING HOMES - PRIVATE CONTRACTORS PAYMENT,702.44,0,Non Commercial Supplier
03/04/2020,"Adults & Health Commissioning, Health & Social Care",Barchester Healthcare Homes Limited t/a Westgate House,NURSING HOMES - PRIVATE CONTRACTORS PAYMENT,573.88,0,Non Commercial Supplier
03/04/2020,"Adults & Health Commissioning, Health & Social Care",Barchester Healthcare Homes Limited t/a Westgate House,NURSING HOMES - PRIVATE CONTRACTORS PAYMENT,573.88,0,Non Commercial Supplier
03/04/2020,"Adults & Health Commissioning, Health & Social Care",Barchester Healthcare Homes Limited t/a Westgate House,NURSING HOMES - PRIVATE CONTRACTORS PAYMENT,573.88,0,Non Commercial Supplier
03/04/2020,"Adults & Health Commissioning, Health & Social Care",Barchester Healthcare Homes Limited t/a Westgate House,NURSING HOMES - PRIVATE CONTRACTORS PAYMENT,573.88,0,Non Commercial Supplier
03/04/2020,"Adults & Health Commissioning, Health & Social Care",Barchester Healthcare Homes Limited t/a Westgate House,NURSING HOMES - PRIVATE CONTRACTORS PAYMENT,564.64,0,Non Commercial Supplier
03/04/2020,"Adults & Health Commissioning, Health & Social Care",Barchester Healthcare Homes Limited t/a Westgate House,NURSING HOMES - PRIVATE CONTRACTORS PAYMENT,573.88,0,Non Commercial Supplier
03/04/2020,"Adults & Health Commissioning, Health & Social Care",Barchester Healthcare Homes Limited t/a Westgate House,NURSING HOMES - PRIVATE CONTRACTORS PAYMENT,736.82,0,Non Commercial Supplier
03/04/2020,"Adults & Health Commissioning, Health & Social Care",Barchester Healthcare Homes Limited t/a Westgate House,RESIDENTIAL PLACEMENTS - PRIVATE CONTRACTORS PAYMENT,"1,340.27",0,Non Commercial Supplier
03/04/2020,"Adults & Health Commissioning, Health & Social Care",Barchester Healthcare Homes Limited t/a Westgate House,NURSING HOMES - PRIVATE CONTRACTORS PAYMENT,566.56,0,Non Commercial Supplier
03/04/2020,"Adults & Health Commissioning, Health & Social Care",Barchester Healthcare Homes Limited t/a Westgate House,RESIDENTIAL PLACEMENTS - PRIVATE CONTRACTORS PAYMENT,534.63,0,Non Commercial Supplier
03/04/2020,"Adults & Health Commissioning, Health & Social Care",Barchester Healthcare Homes Limited t/a Westgate House,RESIDENTIAL PLACEMENTS - PRIVATE CONTRACTORS PAYMENT,"1,340.27",0,Non Commercial Supplier
03/04/2020,"Adults & Health Commissioning, Health & Social Care",Barchester Healthcare Homes Limited t/a Westgate House,RESIDENTIAL PLACEMENTS - PRIVATE CONTRACTORS PAYMENT,525,0,Non Commercial Supplier
03/04/2020,"Adults & Health Commissioning, Health & Social Care",Barchester Healthcare Homes Limited t/a Westgate House,RESIDENTIAL PLACEMENTS - PRIVATE CONTRACTORS PAYMENT,"1,340.27",0,Non Commercial Supplier
03/04/2020,"Adults & Health Commissioning, Health & Social Care",Barchester Healthcare Homes Limited t/a Westgate House,RESIDENTIAL PLACEMENTS - PRIVATE CONTRACTORS PAYMENT,525,0,Non Commercial Supplier
03/04/2020,"Adults & Health Commissioning, Health & Social Care",Barchester Healthcare Homes Limited t/a Westgate House,NURSING HOMES - PRIVATE CONTRACTORS PAYMENT,702.44,0,Non Commercial Supplier
03/04/2020,"Adults & Health Commissioning, Health & Social Care",Barchester Healthcare Homes Limited t/a Westgate House,NURSING HOMES - PRIVATE CONTRACTORS PAYMENT,573.88,0,Non Commercial Supplier
03/04/2020,"Adults & Health Commissioning, Health & Social Care",Barchester Healthcare Homes Limited t/a Westgate House,RESIDENTIAL PLACEMENTS - PRIVATE CONTRACTORS PAYMENT,534.63,0,Non Commercial Supplier
03/04/2020,"Adults & Health Commissioning, Health & Social Care",Barchester Healthcare Homes Limited t/a Westgate House,RESIDENTIAL PLACEMENTS - PRIVATE CONTRACTORS PAYMENT,"1,340.27",0,Non Commercial Supplier
03/04/2020,"Adults & Health Commissioning, Health & Social Care",Barchester Healthcare Homes Limited t/a Westgate House,RESIDENTIAL PLACEMENTS - PRIVATE CONTRACTORS PAYMENT,525,0,Non Commercial Supplier
03/04/2020,"Adults & Health Commissioning, Health & Social Care",Barchester Healthcare Homes Limited t/a Westgate House,RESIDENTIAL PLACEMENTS - PRIVATE CONTRACTORS PAYMENT,525,0,Non Commercial Supplier
03/04/2020,"Adults & Health Commissioning, Health & Social Care",Barchester Healthcare Homes Limited t/a Westgate House,NURSING HOMES - PRIVATE CONTRACTORS PAYMENT,301.05,0,Non Commercial Supplier
03/04/2020,"Adults & Health Commissioning, Health & Social Care",Barchester Healthcare Homes Limited t/a Westgate House,NURSING HOMES - PRIVATE CONTRACTORS PAYMENT,702.44,0,Non Commercial Supplier
03/04/2020,"Adults & Health Commissioning, Health & Social Care",Barchester Healthcare Homes Limited t/a Westgate House,NURSING HOMES - PRIVATE CONTRACTORS PAYMENT,573.88,0,Non Commercial Supplier
03/04/2020,"Adults & Health Commissioning, Health & Social Care",Barchester Healthcare Homes Limited t/a Westgate House,NURSING HOMES - PRIVATE CONTRACTORS PAYMENT,573.88,0,Non Commercial Supplier
03/04/2020,"Adults & Health Commissioning, Health & Social Care",Barchester Healthcare Homes Limited t/a Westgate House,NURSING HOMES - PRIVATE CONTRACTORS PAYMENT,601.87,0,Non Commercial Supplier
03/04/2020,"Adults & Health Commissioning, Health & Social Care",Barchester Healthcare Homes Limited t/a Westgate House,NURSING HOMES - PRIVATE CONTRACTORS PAYMENT,564.64,0,Non Commercial Supplier
03/04/2020,"Adults & Health Commissioning, Health & Social Care",Barchester Healthcare Homes Limited t/a Westgate House,NURSING HOMES - PRIVATE CONTRACTORS PAYMENT,601.87,0,Non Commercial Supplier
03/04/2020,"Adults & Health Commissioning, Health & Social Care",Barchester Healthcare Homes Limited t/a Westgate House,NURSING HOMES - PRIVATE CONTRACTORS PAYMENT,573.88,0,Non Commercial Supplier
03/04/2020,"Adults & Health Commissioning, Health & Social Care",Barchester Healthcare Homes Limited t/a Westgate House,NURSING HOMES - PRIVATE CONTRACTORS PAYMENT,573.88,0,Non Commercial Supplier
03/04/2020,"Adults & Health Commissioning, Health & Social Care",Barchester Healthcare Homes Limited t/a Westgate House,NURSING HOMES - PRIVATE CONTRACTORS PAYMENT,564.64,0,Non Commercial Supplier
03/04/2020,"Adults & Health Commissioning, Health & Social Care",Barchester Healthcare Homes Limited t/a Westgate House,NURSING HOMES - PRIVATE CONTRACTORS PAYMENT,564.64,0,Non Commercial Supplier
03/04/2020,"Adults & Health Commissioning, Health & Social Care",Barchester Healthcare Homes Limited t/a Westgate House,NURSING HOMES - PRIVATE CONTRACTORS PAYMENT,601.87,0,Non Commercial Supplier
03/04/2020,"Adults & Health Commissioning, Health & Social Care",Barchester Healthcare Homes Limited t/a Westgate House,NURSING HOMES - PRIVATE CONTRACTORS PAYMENT,601.87,0,Non Commercial Supplier
03/04/2020,"Adults & Health Commissioning, Health & Social Care",Barchester Healthcare Homes Limited t/a Westgate House,NURSING HOMES - PRIVATE CONTRACTORS PAYMENT,601.87,0,Non Commercial Supplier
03/04/2020,"Adults & Health Commissioning, Health & Social Care",Barchester Healthcare Homes Limited t/a Westgate House,NURSING HOMES - PRIVATE CONTRACTORS PAYMENT,601.87,0,Non Commercial Supplier
03/04/2020,"Adults & Health Commissioning, Health & Social Care",Barchester Healthcare Homes Limited t/a Westgate House,NURSING HOMES - PRIVATE CONTRACTORS PAYMENT,601.87,0,Non Commercial Supplier
03/04/2020,"Adults & Health Commissioning, Health & Social Care",Barchester Healthcare Homes Limited t/a Westgate House,NURSING HOMES - PRIVATE CONTRACTORS PAYMENT,573.88,0,Non Commercial Supplier
03/04/2020,"Adults & Health Commissioning, Health & Social Care",Barchester Healthcare Homes Limited t/a Westgate House,NURSING HOMES - PRIVATE CONTRACTORS PAYMENT,601.87,0,Non Commercial Supplier
03/04/2020,"Adults & Health Commissioning, Health & Social Care",Barchester Healthcare Homes Limited t/a Westgate House,NURSING HOMES - PRIVATE CONTRACTORS PAYMENT,601.87,0,Non Commercial Supplier
03/04/2020,"Adults & Health Commissioning, Health & Social Care",Barchester Healthcare Homes Limited t/a Westgate House,NURSING HOMES - PRIVATE CONTRACTORS PAYMENT,601.87,0,Non Commercial Supplier
03/04/2020,"Adults & Health Commissioning, Health & Social Care",Barchester Healthcare Homes Limited t/a Westgate House,NURSING HOMES - PRIVATE CONTRACTORS PAYMENT,601.87,0,Non Commercial Supplier
03/04/2020,"Adults & Health Commissioning, Health & Social Care",Barchester Healthcare Homes Limited t/a Westgate House,NURSING HOMES - PRIVATE CONTRACTORS PAYMENT,601.87,0,Non Commercial Supplier
03/04/2020,"Adults & Health Commissioning, Health & Social Care",Barchester Healthcare Homes Limited t/a Westgate House,NURSING HOMES - PRIVATE CONTRACTORS PAYMENT,601.87,0,Non Commercial Supplier
03/04/2020,"Adults & Health Commissioning, Health & Social Care",Barchester Healthcare Homes Limited t/a Westgate House,NURSING HOMES - PRIVATE CONTRACTORS PAYMENT,601.87,0,Non Commercial Supplier
03/04/2020,"Adults & Health Commissioning, Health & Social Care",Barchester Healthcare Homes Limited t/a Westgate House,NURSING HOMES - PRIVATE CONTRACTORS PAYMENT,601.87,0,Non Commercial Supplier
03/04/2020,"Adults & Health Commissioning, Health & Social Care",Barchester Healthcare Homes Limited t/a Westgate House,NURSING HOMES - PRIVATE CONTRACTORS PAYMENT,601.87,0,Non Commercial Supplier
03/04/2020,"Adults & Health Commissioning, Health & Social Care",Barchester Healthcare Homes Limited t/a Westgate House,NURSING HOMES - PRIVATE CONTRACTORS PAYMENT,601.87,0,Non Commercial Supplier
03/04/2020,"Adults & Health Commissioning, Health & Social Care",Barchester Healthcare Homes Limited t/a Westgate House,NURSING HOMES - PRIVATE CONTRACTORS PAYMENT,820,0,Non Commercial Supplier
03/04/2020,"Adults & Health Commissioning, Health & Social Care",Barchester Healthcare Homes Limited t/a Westgate House,NURSING HOMES - PRIVATE CONTRACTORS PAYMENT,885,0,Non Commercial Supplier
03/04/2020,"Adults & Health Commissioning, Health & Social Care",Barchester Healthcare Homes Limited t/a Westgate House,NURSING HOMES - PRIVATE CONTRACTORS PAYMENT,840.75,0,Non Commercial Supplier
03/04/2020,"Adults & Health Commissioning, Health & Social Care",Barchester Healthcare Homes Limited t/a Westgate House,NURSING HOMES - PRIVATE CONTRACTORS PAYMENT,885,0,Non Commercial Supplier
03/04/2020,"Adults & Health Commissioning, Health & Social Care",Barchester Healthcare Homes Limited t/a Westgate House,NURSING HOMES - PRIVATE CONTRACTORS PAYMENT,554.3,0,Non Commercial Supplier
03/04/2020,"Adults & Health Commissioning, Health & Social Care",Barchester Healthcare Homes Limited t/a Westgate House,NURSING HOMES - PRIVATE CONTRACTORS PAYMENT,840.75,0,Non Commercial Supplier
03/04/2020,"Adults & Health Commissioning, Health & Social Care",Barchester Healthcare Homes Limited t/a Westgate House,NURSING HOMES - PRIVATE CONTRACTORS PAYMENT,554.3,0,Non Commercial Supplier
03/04/2020,"Adults & Health Commissioning, Health & Social Care",Barchester Healthcare Homes Limited t/a Westgate House,NURSING HOMES - PRIVATE CONTRACTORS PAYMENT,885,0,Non Commercial Supplier
03/04/2020,"Adults & Health Commissioning, Health & Social Care",Barchester Healthcare Homes Limited t/a Westgate House,NURSING HOMES - PRIVATE CONTRACTORS PAYMENT,885,0,Non Commercial Supplier
03/04/2020,"Adults & Health Commissioning, Health & Social Care",Barchester Healthcare Homes Limited t/a Westgate House,NURSING HOMES - PRIVATE CONTRACTORS PAYMENT,840.75,0,Non Commercial Supplier
03/04/2020,"Adults & Health Commissioning, Health & Social Care",Barchester Healthcare Homes Limited t/a Westgate House,NURSING HOMES - PRIVATE CONTRACTORS PAYMENT,573.88,0,Non Commercial Supplier
03/04/2020,"Adults & Health Commissioning, Health & Social Care",Barchester Healthcare Homes Limited t/a Westgate House,NURSING HOMES - PRIVATE CONTRACTORS PAYMENT,554.3,0,Non Commercial Supplier
03/04/2020,"Adults & Health Commissioning, Health & Social Care",Barchester Healthcare Homes Limited t/a Westgate House,NURSING HOMES - PRIVATE CONTRACTORS PAYMENT,601.87,0,Non Commercial Supplier
03/04/2020,"Adults & Health Commissioning, Health & Social Care",Barchester Healthcare Homes Limited t/a Westgate House,NURSING HOMES - PRIVATE CONTRACTORS PAYMENT,820,0,Non Commercial Supplier
03/04/2020,"Adults & Health Commissioning, Health & Social Care",Barchester Healthcare Homes Limited t/a Westgate House,NURSING HOMES - PRIVATE CONTRACTORS PAYMENT,820,0,Non Commercial Supplier
03/04/2020,"Adults & Health Commissioning, Health & Social Care",Barchester Healthcare Homes Limited t/a Westgate House,NURSING HOMES - PRIVATE CONTRACTORS PAYMENT,820,0,Non Commercial Supplier
03/04/2020,"Adults & Health Commissioning, Health & Social Care",Barchester Healthcare Homes Limited t/a Westgate House,NURSING HOMES - PRIVATE CONTRACTORS PAYMENT,820,0,Non Commercial Supplier
03/04/2020,"Adults & Health Commissioning, Health & Social Care",Barchester Healthcare Homes Limited t/a Westgate House,NURSING HOMES - PRIVATE CONTRACTORS PAYMENT,820,0,Non Commercial Supplier
03/04/2020,"Adults & Health Commissioning, Health & Social Care",Barchester Healthcare Homes Limited t/a Westgate House,NURSING HOMES - PRIVATE CONTRACTORS PAYMENT,820,0,Non Commercial Supplier
03/04/2020,"Adults & Health Commissioning, Health & Social Care",Barchester Healthcare Homes Limited t/a Westgate House,NURSING HOMES - PRIVATE CONTRACTORS PAYMENT,840.75,0,Non Commercial Supplier
03/04/2020,"Adults & Health Commissioning, Health & Social Care",Barchester Healthcare Homes Limited t/a Westgate House,NURSING HOMES - PRIVATE CONTRACTORS PAYMENT,601.87,0,Non Commercial Supplier
03/04/2020,"Adults & Health Commissioning, Health & Social Care",Barchester Healthcare Homes Limited t/a Westgate House,NURSING HOMES - PRIVATE CONTRACTORS PAYMENT,573.88,0,Non Commercial Supplier
03/04/2020,"Adults & Health Commissioning, Health & Social Care",Barchester Healthcare Homes Limited t/a Westgate House,NURSING HOMES - PRIVATE CONTRACTORS PAYMENT,601.87,0,Non Commercial Supplier
03/04/2020,"Adults & Health Commissioning, Health & Social Care",Barchester Healthcare Homes Limited t/a Westgate House,NURSING HOMES - PRIVATE CONTRACTORS PAYMENT,554.3,0,Non Commercial Supplier
03/04/2020,"Adults & Health Commissioning, Health & Social Care",Barchester Healthcare Homes Limited t/a Westgate House,NURSING HOMES - PRIVATE CONTRACTORS PAYMENT,573.88,0,Non Commercial Supplier
03/04/2020,"Adults & Health Commissioning, Health & Social Care",Barchester Healthcare Homes Limited t/a Westgate House,NURSING HOMES - PRIVATE CONTRACTORS PAYMENT,601.87,0,Non Commercial Supplier
03/04/2020,"Adults & Health Commissioning, Health & Social Care",Barchester Healthcare Homes Limited t/a Westgate House,NURSING HOMES - PRIVATE CONTRACTORS PAYMENT,601.87,0,Non Commercial Supplier
03/04/2020,"Adults & Health Commissioning, Health & Social Care",Barchester Healthcare Homes Limited t/a Westgate House,NURSING HOMES - PRIVATE CONTRACTORS PAYMENT,601.87,0,Non Commercial Supplier
03/04/2020,"Adults & Health Commissioning, Health & Social Care",Barchester Healthcare Homes Limited t/a Westgate House,NURSING HOMES - PRIVATE CONTRACTORS PAYMENT,601.87,0,Non Commercial Supplier
03/04/2020,"Adults & Health Commissioning, Health & Social Care",Barchester Healthcare Homes Limited t/a Westgate House,NURSING HOMES - PRIVATE CONTRACTORS PAYMENT,601.87,0,Non Commercial Supplier
03/04/2020,"Adults & Health Commissioning, Health & Social Care",Barchester Healthcare Homes Limited t/a Westgate House,NURSING HOMES - PRIVATE CONTRACTORS PAYMENT,601.87,0,Non Commercial Supplier
03/04/2020,"Adults & Health Commissioning, Health & Social Care",Barchester Healthcare Homes Limited t/a Westgate House,NURSING HOMES - PRIVATE CONTRACTORS PAYMENT,601.87,0,Non Commercial Supplier
03/04/2020,"Adults & Health Commissioning, Health & Social Care",Barchester Healthcare Homes Limited t/a Westgate House,NURSING HOMES - PRIVATE CONTRACTORS PAYMENT,601.87,0,Non Commercial Supplier
03/04/2020,"Adults & Health Commissioning, Health & Social Care",Barchester Healthcare Homes Limited t/a Westgate House,NURSING HOMES - PRIVATE CONTRACTORS PAYMENT,601.87,0,Non Commercial Supplier
03/04/2020,"Adults & Health Commissioning, Health & Social Care",Barchester Healthcare Homes Limited t/a Westgate House,NURSING HOMES - PRIVATE CONTRACTORS PAYMENT,564.64,0,Non Commercial Supplier
03/04/2020,"Adults & Health Commissioning, Health & Social Care",Barchester Healthcare Homes Limited t/a Westgate House,NURSING HOMES - PRIVATE CONTRACTORS PAYMENT,601.87,0,Non Commercial Supplier
03/04/2020,"Adults & Health Commissioning, Health & Social Care",Barchester Healthcare Homes Limited t/a Westgate House,NURSING HOMES - PRIVATE CONTRACTORS PAYMENT,601.87,0,Non Commercial Supplier
03/04/2020,"Adults & Health Commissioning, Health & Social Care",Barchester Healthcare Homes Limited t/a Westgate House,NURSING HOMES - PRIVATE CONTRACTORS PAYMENT,601.87,0,Non Commercial Supplier
03/04/2020,"Adults & Health Commissioning, Health & Social Care",Barchester Healthcare Homes Limited t/a Westgate House,NURSING HOMES - PRIVATE CONTRACTORS PAYMENT,573.88,0,Non Commercial Supplier
03/04/2020,"Adults & Health Commissioning, Health & Social Care",Barchester Healthcare Homes Limited t/a Westgate House,NURSING HOMES - PRIVATE CONTRACTORS PAYMENT,601.87,0,Non Commercial Supplier
03/04/2020,"Adults & Health Commissioning, Health & Social Care",Barchester Healthcare Homes Limited t/a Westgate House,NURSING HOMES - PRIVATE CONTRACTORS PAYMENT,573.88,0,Non Commercial Supplier
03/04/2020,"Adults & Health Commissioning, Health & Social Care",Barchester Healthcare Homes Limited t/a Westgate House,NURSING HOMES - PRIVATE CONTRACTORS PAYMENT,573.88,0,Non Commercial Supplier
03/04/2020,"Adults & Health Commissioning, Health & Social Care",Barchester Healthcare Homes Limited t/a Westgate House,NURSING HOMES - PRIVATE CONTRACTORS PAYMENT,601.87,0,Non Commercial Supplier
03/04/2020,"Adults & Health Commissioning, Health & Social Care",Barchester Healthcare Homes Limited t/a Westgate House,NURSING HOMES - PRIVATE CONTRACTORS PAYMENT,573.88,0,Non Commercial Supplier
03/04/2020,"Adults & Health Commissioning, Health & Social Care",Barchester Healthcare Homes Limited t/a Westgate House,NURSING HOMES - PRIVATE CONTRACTORS PAYMENT,601.87,0,Non Commercial Supplier
03/04/2020,"Adults & Health Commissioning, Health & Social Care",Barchester Healthcare Homes Limited t/a Westgate House,NURSING HOMES - PRIVATE CONTRACTORS PAYMENT,573.88,0,Non Commercial Supplier
03/04/2020,"Adults & Health Commissioning, Health & Social Care",Barchester Healthcare Homes Limited t/a Westgate House,NURSING HOMES - PRIVATE CONTRACTORS PAYMENT,601.87,0,Non Commercial Supplier
03/04/2020,"Adults & Health Commissioning, Health & Social Care",Barchester Healthcare Homes Limited t/a Westgate House,NURSING HOMES - PRIVATE CONTRACTORS PAYMENT,573.88,0,Non Commercial Supplier
03/04/2020,"Adults & Health Commissioning, Health & Social Care",Barchester Healthcare Homes Limited t/a Westgate House,NURSING HOMES - PRIVATE CONTRACTORS PAYMENT,601.87,0,Non Commercial Supplier
03/04/2020,"Adults & Health Commissioning, Health & Social Care",Barchester Healthcare Homes Limited t/a Westgate House,NURSING HOMES - PRIVATE CONTRACTORS PAYMENT,601.87,0,Non Commercial Supplier
03/04/2020,"Adults & Health Commissioning, Health & Social Care",Barchester Healthcare Homes Limited t/a Westgate House,NURSING HOMES - PRIVATE CONTRACTORS PAYMENT,601.87,0,Non Commercial Supplier
03/04/2020,"Adults & Health Commissioning, Health & Social Care",Barchester Healthcare Homes Limited t/a Westgate House,NURSING HOMES - PRIVATE CONTRACTORS PAYMENT,601.87,0,Non Commercial Supplier
03/04/2020,"Adults & Health Commissioning, Health & Social Care",Barchester Healthcare Homes Limited t/a Westgate House,NURSING HOMES - PRIVATE CONTRACTORS PAYMENT,601.87,0,Non Commercial Supplier
03/04/2020,"Adults & Health Commissioning, Health & Social Care",Barchester Healthcare Homes Limited t/a Westgate House,NURSING HOMES - PRIVATE CONTRACTORS PAYMENT,601.87,0,Non Commercial Supplier
03/04/2020,"Adults & Health Commissioning, Health & Social Care",Barchester Healthcare Homes Limited t/a Westgate House,NURSING HOMES - PRIVATE CONTRACTORS PAYMENT,601.87,0,Non Commercial Supplier
03/04/2020,"Adults & Health Commissioning, Health & Social Care",Barchester Healthcare Homes Limited t/a Westgate House,NURSING HOMES - PRIVATE CONTRACTORS PAYMENT,601.87,0,Non Commercial Supplier
03/04/2020,"Adults & Health Commissioning, Health & Social Care",Barchester Healthcare Homes Limited t/a Westgate House,NURSING HOMES - PRIVATE CONTRACTORS PAYMENT,601.87,0,Non Commercial Supplier
03/04/2020,"Adults & Health Commissioning, Health & Social Care",Barchester Healthcare Homes Limited t/a Westgate House,NURSING HOMES - PRIVATE CONTRACTORS PAYMENT,601.87,0,Non Commercial Supplier
03/04/2020,"Adults & Health Commissioning, Health & Social Care",Barchester Healthcare Homes Limited t/a Westgate House,NURSING HOMES - PRIVATE CONTRACTORS PAYMENT,601.87,0,Non Commercial Supplier
03/04/2020,"Adults & Health Commissioning, Health & Social Care",Barchester Healthcare Homes Limited t/a Westgate House,NURSING HOMES - PRIVATE CONTRACTORS PAYMENT,601.87,0,Non Commercial Supplier
03/04/2020,"Adults & Health Commissioning, Health & Social Care",Barchester Healthcare Homes Limited t/a Westgate House,NURSING HOMES - PRIVATE CONTRACTORS PAYMENT,601.87,0,Non Commercial Supplier
03/04/2020,"Adults & Health Commissioning, Health & Social Care",Barchester Healthcare Homes Limited t/a Westgate House,NURSING HOMES - PRIVATE CONTRACTORS PAYMENT,601.87,0,Non Commercial Supplier
03/04/2020,"Adults & Health Commissioning, Health & Social Care",Barchester Healthcare Homes Limited t/a Westgate House,NURSING HOMES - PRIVATE CONTRACTORS PAYMENT,601.87,0,Non Commercial Supplier
03/04/2020,"Adults & Health Commissioning, Health & Social Care",Barchester Healthcare Homes Limited t/a Westgate House,NURSING HOMES - PRIVATE CONTRACTORS PAYMENT,601.87,0,Non Commercial Supplier
03/04/2020,"Adults & Health Commissioning, Health & Social Care",Barchester Healthcare Homes Limited t/a Westgate House,NURSING HOMES - PRIVATE CONTRACTORS PAYMENT,601.87,0,Non Commercial Supplier
03/04/2020,"Adults & Health Commissioning, Health & Social Care",Barchester Healthcare Homes Limited t/a Westgate House,NURSING HOMES - PRIVATE CONTRACTORS PAYMENT,601.87,0,Non Commercial Supplier
03/04/2020,"Adults & Health Commissioning, Health & Social Care",Barchester Healthcare Homes Limited t/a Westgate House,NURSING HOMES - PRIVATE CONTRACTORS PAYMENT,601.87,0,Non Commercial Supplier
03/04/2020,"Adults & Health Commissioning, Health & Social Care",Barchester Healthcare Homes Limited t/a Westgate House,NURSING HOMES - PRIVATE CONTRACTORS PAYMENT,601.87,0,Non Commercial Supplier
03/04/2020,"Adults & Health Commissioning, Health & Social Care",Barchester Healthcare Homes Ltd Re- Ashlar House,NURSING HOMES - PRIVATE CONTRACTORS PAYMENT,540,0,Non Commercial Supplier
03/04/2020,"Adults & Health Commissioning, Health & Social Care",Barchester Healthcare Homes Ltd Re- Ashlar House,NURSING HOMES - PRIVATE CONTRACTORS PAYMENT,540,0,Non Commercial Supplier
03/04/2020,"Adults & Health Commissioning, Health & Social Care",Barchester Healthcare Homes Ltd Re- Ashlar House,NURSING HOMES - PRIVATE CONTRACTORS PAYMENT,540,0,Non Commercial Supplier
03/04/2020,"Adults & Health Commissioning, Health & Social Care",Barchester Healthcare Homes Ltd Re- Ashlar House,NURSING HOMES - PRIVATE CONTRACTORS PAYMENT,540,0,Non Commercial Supplier
03/04/2020,"Adults & Health Commissioning, Health & Social Care",Barleycroft Care Home Ltd,NURSING HOMES - PRIVATE CONTRACTORS PAYMENT,580,0,Supplier
03/04/2020,"Adults & Health Commissioning, Health & Social Care",Barleycroft Care Home Ltd,NURSING HOMES - PRIVATE CONTRACTORS PAYMENT,580,0,Supplier
03/04/2020,"Adults & Health Commissioning, Health & Social Care",Barleycroft Care Home Ltd,NURSING HOMES - PRIVATE CONTRACTORS PAYMENT,580,0,Supplier
03/04/2020,"Adults & Health Commissioning, Health & Social Care",Barleycroft Care Home Ltd,RESIDENTIAL PLACEMENTS - PRIVATE CONTRACTORS PAYMENT,453.2,0,Supplier
03/04/2020,"Adults & Health Commissioning, Health & Social Care",Barleycroft Care Home Ltd,RESIDENTIAL PLACEMENTS - PRIVATE CONTRACTORS PAYMENT,453.2,0,Supplier
03/04/2020,"Adults & Health Commissioning, Health & Social Care",Barleycroft Care Home Ltd,RESIDENTIAL PLACEMENTS - PRIVATE CONTRACTORS PAYMENT,453.2,0,Supplier
03/04/2020,"Adults & Health Commissioning, Health & Social Care",Barleycroft Care Home Ltd,RESIDENTIAL PLACEMENTS - PRIVATE CONTRACTORS PAYMENT,453.2,0,Supplier
03/04/2020,"Adults & Health Commissioning, Health & Social Care",Barleycroft Care Home Ltd,RESIDENTIAL PLACEMENTS - PRIVATE CONTRACTORS PAYMENT,604,0,Supplier
03/04/2020,"Adults & Health Commissioning, Health & Social Care",Barleycroft Care Home Ltd,RESIDENTIAL PLACEMENTS - PRIVATE CONTRACTORS PAYMENT,604,0,Supplier
03/04/2020,"Adults & Health Commissioning, Health & Social Care",Barleycroft Care Home Ltd,RESIDENTIAL PLACEMENTS - PRIVATE CONTRACTORS PAYMENT,604,0,Supplier
03/04/2020,"Adults & Health Commissioning, Health & Social Care",Barleycroft Care Home Ltd,RESIDENTIAL PLACEMENTS - PRIVATE CONTRACTORS PAYMENT,604,0,Supplier
03/04/2020,"Adults & Health Commissioning, Health & Social Care",Barleycroft Care Home Ltd,NURSING HOMES - PRIVATE CONTRACTORS PAYMENT,754.56,0,Supplier
03/04/2020,"Adults & Health Commissioning, Health & Social Care",Barleycroft Care Home Ltd,RESIDENTIAL PLACEMENTS - PRIVATE CONTRACTORS PAYMENT,604,0,Supplier
03/04/2020,"Adults & Health Commissioning, Health & Social Care",Barleycroft Care Home Ltd,RESIDENTIAL PLACEMENTS - PRIVATE CONTRACTORS PAYMENT,604,0,Supplier
03/04/2020,"Adults & Health Commissioning, Health & Social Care",Barleycroft Care Home Ltd,RESIDENTIAL PLACEMENTS - PRIVATE CONTRACTORS PAYMENT,604,0,Supplier
03/04/2020,"Adults & Health Commissioning, Health & Social Care",Barleycroft Care Home Ltd,RESIDENTIAL PLACEMENTS - PRIVATE CONTRACTORS PAYMENT,604,0,Supplier
03/04/2020,"Adults & Health Commissioning, Health & Social Care",Barleycroft Care Home Ltd,RESIDENTIAL PLACEMENTS - PRIVATE CONTRACTORS PAYMENT,604,0,Supplier
03/04/2020,"Adults & Health Commissioning, Health & Social Care",Barleycroft Care Home Ltd,RESIDENTIAL PLACEMENTS - PRIVATE CONTRACTORS PAYMENT,604,0,Supplier
03/04/2020,"Adults & Health Commissioning, Health & Social Care",Barleycroft Care Home Ltd,RESIDENTIAL PLACEMENTS - PRIVATE CONTRACTORS PAYMENT,604,0,Supplier
03/04/2020,"Adults & Health Commissioning, Health & Social Care",Barleycroft Care Home Ltd,RESIDENTIAL PLACEMENTS - PRIVATE CONTRACTORS PAYMENT,604,0,Supplier
03/04/2020,"Adults & Health Commissioning, Health & Social Care",Barleycroft Care Home Ltd,RESIDENTIAL PLACEMENTS - PRIVATE CONTRACTORS PAYMENT,604,0,Supplier
03/04/2020,"Adults & Health Commissioning, Health & Social Care",Barleycroft Care Home Ltd,NURSING HOMES - PRIVATE CONTRACTORS PAYMENT,754.56,0,Supplier
03/04/2020,"Adults & Health Commissioning, Health & Social Care",Barleycroft Care Home Ltd,RESIDENTIAL PLACEMENTS - PRIVATE CONTRACTORS PAYMENT,604,0,Supplier
03/04/2020,"Adults & Health Commissioning, Health & Social Care",Barleycroft Care Home Ltd,NURSING HOMES - PRIVATE CONTRACTORS PAYMENT,754.56,0,Supplier
03/04/2020,"Adults & Health Commissioning, Health & Social Care",Barleycroft Care Home Ltd,RESIDENTIAL PLACEMENTS - PRIVATE CONTRACTORS PAYMENT,604,0,Supplier
03/04/2020,"Adults & Health Commissioning, Health & Social Care",Barleycroft Care Home Ltd,NURSING HOMES - PRIVATE CONTRACTORS PAYMENT,754.56,0,Supplier
03/04/2020,"Adults & Health Commissioning, Health & Social Care",Barleycroft Care Home Ltd,RESIDENTIAL PLACEMENTS - PRIVATE CONTRACTORS PAYMENT,604,0,Supplier
03/04/2020,"Adults & Health Commissioning, Health & Social Care",Barleycroft Care Home Ltd,RESPITE CARE - PRIVATE CONTRACTORS PAYMENT,"2,416.00",0,Supplier
03/04/2020,"Adults & Health Commissioning, Health & Social Care",Barleycroft Care Home Ltd,NURSING HOMES - PRIVATE CONTRACTORS PAYMENT,580,0,Supplier
03/04/2020,"Adults & Health Commissioning, Health & Social Care",Beechwood Residential Home,RESIDENTIAL PLACEMENTS - PRIVATE CONTRACTORS PAYMENT,"1,480.69",0,Supplier
03/04/2020,"Adults & Health Commissioning, Health & Social Care",Beechwood Residential Home,RESIDENTIAL PLACEMENTS - PRIVATE CONTRACTORS PAYMENT,"1,280.00",0,Supplier
03/04/2020,"Adults & Health Commissioning, Health & Social Care",Beechwood Residential Home,RESIDENTIAL PLACEMENTS - PRIVATE CONTRACTORS PAYMENT,"1,280.00",0,Supplier
03/04/2020,"Adults & Health Commissioning, Health & Social Care",Beechwood Residential Home,RESIDENTIAL PLACEMENTS - PRIVATE CONTRACTORS PAYMENT,"1,480.69",0,Supplier
03/04/2020,"Adults & Health Commissioning, Health & Social Care",Beechwood Residential Home,RESIDENTIAL PLACEMENTS - PRIVATE CONTRACTORS PAYMENT,"1,280.00",0,Supplier
03/04/2020,"Adults & Health Commissioning, Health & Social Care",Beechwood Residential Home,RESIDENTIAL PLACEMENTS - PRIVATE CONTRACTORS PAYMENT,"1,480.69",0,Supplier
03/04/2020,"Adults & Health Commissioning, Health & Social Care",Beechwood Residential Home,RESIDENTIAL PLACEMENTS - PRIVATE CONTRACTORS PAYMENT,"1,480.69",0,Supplier
03/04/2020,"Adults & Health Commissioning, Health & Social Care",Beechwood Residential Home,RESIDENTIAL PLACEMENTS - PRIVATE CONTRACTORS PAYMENT,"1,280.00",0,Supplier
03/04/2020,"Adults & Health Commissioning, Health & Social Care",Bennetts Castle Ltd,NURSING HOMES - PRIVATE CONTRACTORS PAYMENT,527.19,0,Supplier
03/04/2020,"Adults & Health Commissioning, Health & Social Care",Bennetts Castle Ltd,NURSING HOMES - PRIVATE CONTRACTORS PAYMENT,527.19,0,Supplier
03/04/2020,"Adults & Health Commissioning, Health & Social Care",Bennetts Castle Ltd,NURSING HOMES - PRIVATE CONTRACTORS PAYMENT,575,0,Supplier
03/04/2020,"Adults & Health Commissioning, Health & Social Care",Bennetts Castle Ltd,NURSING HOMES - PRIVATE CONTRACTORS PAYMENT,527.19,0,Supplier
03/04/2020,"Adults & Health Commissioning, Health & Social Care",Bennetts Castle Ltd,NURSING HOMES - PRIVATE CONTRACTORS PAYMENT,527.19,0,Supplier
03/04/2020,"Adults & Health Commissioning, Health & Social Care",Bennetts Castle Ltd,NURSING HOMES - PRIVATE CONTRACTORS PAYMENT,575,0,Supplier
03/04/2020,"Adults & Health Commissioning, Health & Social Care",Bennetts Castle Ltd,NURSING HOMES - PRIVATE CONTRACTORS PAYMENT,575,0,Supplier
03/04/2020,"Adults & Health Commissioning, Health & Social Care",Bennetts Castle Ltd,NURSING HOMES - PRIVATE CONTRACTORS PAYMENT,575,0,Supplier
03/04/2020,"Adults & Health Commissioning, Health & Social Care",Bettertogether Limited,ADULT PLACEMENT SCHEME - PRIVATE CONTRACTORS PAYMENT,"12,420.00",0,Non Commercial Supplier
03/04/2020,"Adults & Health Commissioning, Health & Social Care",Black Swan International Group,RESIDENTIAL PLACEMENTS - PRIVATE CONTRACTORS PAYMENT,820.11,0,Commercial Supplier
03/04/2020,"Adults & Health Commissioning, Health & Social Care",Black Swan International Group,RESIDENTIAL PLACEMENTS - PRIVATE CONTRACTORS PAYMENT,600,0,Commercial Supplier
03/04/2020,"Adults & Health Commissioning, Health & Social Care",Black Swan International Group,RESIDENTIAL PLACEMENTS - PRIVATE CONTRACTORS PAYMENT,820.11,0,Commercial Supplier
03/04/2020,"Adults & Health Commissioning, Health & Social Care",Black Swan International Group,RESIDENTIAL PLACEMENTS - PRIVATE CONTRACTORS PAYMENT,600,0,Commercial Supplier
03/04/2020,"Adults & Health Commissioning, Health & Social Care",Black Swan International Group,RESIDENTIAL PLACEMENTS - PRIVATE CONTRACTORS PAYMENT,820.11,0,Commercial Supplier
03/04/2020,"Adults & Health Commissioning, Health & Social Care",Black Swan International Group,RESIDENTIAL PLACEMENTS - PRIVATE CONTRACTORS PAYMENT,600,0,Commercial Supplier
03/04/2020,"Adults & Health Commissioning, Health & Social Care",Black Swan International Group,RESIDENTIAL PLACEMENTS - PRIVATE CONTRACTORS PAYMENT,600,0,Commercial Supplier
03/04/2020,"Adults & Health Commissioning, Health & Social Care",Black Swan International Group,RESIDENTIAL PLACEMENTS - PRIVATE CONTRACTORS PAYMENT,820.11,0,Commercial Supplier
03/04/2020,oneSource oS Finance,Bloom Procurement Services Ltd,CONSULTANCY FEES,"9,726.36",0,Commercial Supplier
03/04/2020,"Adults & Health Commissioning, Health & Social Care",Blossom House Specialized Care & Support Services Ltd,RESIDENTIAL PLACEMENTS - PRIVATE CONTRACTORS PAYMENT,"1,800.00",0,Supplier
03/04/2020,"Adults & Health Commissioning, Health & Social Care",Blossom House Specialized Care & Support Services Ltd,RESIDENTIAL PLACEMENTS - PRIVATE CONTRACTORS PAYMENT,"1,800.00",0,Supplier
03/04/2020,"Adults & Health Commissioning, Health & Social Care",Blossom House Specialized Care & Support Services Ltd,RESIDENTIAL PLACEMENTS - PRIVATE CONTRACTORS PAYMENT,"1,800.00",0,Supplier
03/04/2020,"Adults & Health Commissioning, Health & Social Care",Blossom House Specialized Care & Support Services Ltd,RESIDENTIAL PLACEMENTS - PRIVATE CONTRACTORS PAYMENT,"1,800.00",0,Supplier
03/04/2020,"Adults & Health Commissioning, Health & Social Care",Blossomwood,RESIDENTIAL PLACEMENTS - PRIVATE CONTRACTORS PAYMENT,"1,014.70",0,Commercial Supplier
03/04/2020,"Adults & Health Commissioning, Health & Social Care",Blossomwood,RESIDENTIAL PLACEMENTS - PRIVATE CONTRACTORS PAYMENT,"1,014.70",0,Commercial Supplier
03/04/2020,"Adults & Health Commissioning, Health & Social Care",Blossomwood,RESIDENTIAL PLACEMENTS - PRIVATE CONTRACTORS PAYMENT,"1,014.70",0,Commercial Supplier
03/04/2020,"Adults & Health Commissioning, Health & Social Care",Blossomwood,RESIDENTIAL PLACEMENTS - PRIVATE CONTRACTORS PAYMENT,"1,014.70",0,Commercial Supplier
03/04/2020,"Adults & Health Commissioning, Health & Social Care",Bluebell Nursing & Residential Home,RESIDENTIAL PLACEMENTS - PRIVATE CONTRACTORS PAYMENT,560,0,Supplier
03/04/2020,"Adults & Health Commissioning, Health & Social Care",Bluebell Nursing & Residential Home,RESIDENTIAL PLACEMENTS - PRIVATE CONTRACTORS PAYMENT,560,0,Supplier
03/04/2020,"Adults & Health Commissioning, Health & Social Care",Bluebell Nursing & Residential Home,RESIDENTIAL PLACEMENTS - PRIVATE CONTRACTORS PAYMENT,560,0,Supplier
03/04/2020,"Adults & Health Commissioning, Health & Social Care",Bluebell Nursing & Residential Home,RESIDENTIAL PLACEMENTS - PRIVATE CONTRACTORS PAYMENT,560,0,Supplier
03/04/2020,"Adults & Health Commissioning, Health & Social Care",Bondcare(London)Alexander Court,RESIDENTIAL PLACEMENTS - PRIVATE CONTRACTORS PAYMENT,570,0,Non Commercial Supplier
03/04/2020,"Adults & Health Commissioning, Health & Social Care",Bondcare(London)Alexander Court,RESIDENTIAL PLACEMENTS - PRIVATE CONTRACTORS PAYMENT,570,0,Non Commercial Supplier
03/04/2020,"Adults & Health Commissioning, Health & Social Care",Bondcare(London)Alexander Court,RESIDENTIAL PLACEMENTS - PRIVATE CONTRACTORS PAYMENT,570,0,Non Commercial Supplier
03/04/2020,"Adults & Health Commissioning, Health & Social Care",Bondcare(London)Alexander Court,RESIDENTIAL PLACEMENTS - PRIVATE CONTRACTORS PAYMENT,570,0,Non Commercial Supplier
03/04/2020,"Adults & Health Commissioning, Health & Social Care",Bondcare(London)Beech Court,NURSING HOMES - PRIVATE CONTRACTORS PAYMENT,589,0,Non Commercial Supplier
03/04/2020,"Adults & Health Commissioning, Health & Social Care",Bondcare(London)Beech Court,NURSING HOMES - PRIVATE CONTRACTORS PAYMENT,565,0,Non Commercial Supplier
03/04/2020,"Adults & Health Commissioning, Health & Social Care",Bondcare(London)Beech Court,NURSING HOMES - PRIVATE CONTRACTORS PAYMENT,565,0,Non Commercial Supplier
03/04/2020,"Adults & Health Commissioning, Health & Social Care",Bondcare(London)Beech Court,NURSING HOMES - PRIVATE CONTRACTORS PAYMENT,589,0,Non Commercial Supplier
03/04/2020,"Adults & Health Commissioning, Health & Social Care",Bondcare(London)Beech Court,NURSING HOMES - PRIVATE CONTRACTORS PAYMENT,589,0,Non Commercial Supplier
03/04/2020,"Adults & Health Commissioning, Health & Social Care",Bondcare(London)Beech Court,NURSING HOMES - PRIVATE CONTRACTORS PAYMENT,589,0,Non Commercial Supplier
03/04/2020,"Adults & Health Commissioning, Health & Social Care",Bondcare(London)Beech Court,NURSING HOMES - PRIVATE CONTRACTORS PAYMENT,565,0,Non Commercial Supplier
03/04/2020,"Adults & Health Commissioning, Health & Social Care",Bondcare(London)Beech Court,NURSING HOMES - PRIVATE CONTRACTORS PAYMENT,565,0,Non Commercial Supplier
03/04/2020,"Adults & Health Commissioning, Health & Social Care",Bondcare(London)Springfield Main,NURSING HOMES - PRIVATE CONTRACTORS PAYMENT,516.85,0,Commercial Supplier
03/04/2020,"Adults & Health Commissioning, Health & Social Care",Bondcare(London)Springfield Main,NURSING HOMES - PRIVATE CONTRACTORS PAYMENT,516.85,0,Commercial Supplier
03/04/2020,"Adults & Health Commissioning, Health & Social Care",Bondcare(London)Springfield Main,NURSING HOMES - PRIVATE CONTRACTORS PAYMENT,516.85,0,Commercial Supplier
03/04/2020,"Adults & Health Commissioning, Health & Social Care",Bondcare(London)Springfield Main,NURSING HOMES - PRIVATE CONTRACTORS PAYMENT,516.85,0,Commercial Supplier
03/04/2020,"Adults & Health Commissioning, Health & Social Care",Bondcare(London)Springfield Main,NURSING HOMES - PRIVATE CONTRACTORS PAYMENT,516.85,0,Commercial Supplier
03/04/2020,"Adults & Health Commissioning, Health & Social Care",Bondcare(London)Springfield Main,NURSING HOMES - PRIVATE CONTRACTORS PAYMENT,516.85,0,Commercial Supplier
03/04/2020,"Adults & Health Commissioning, Health & Social Care",Bondcare(London)Springfield Main,NURSING HOMES - PRIVATE CONTRACTORS PAYMENT,516.85,0,Commercial Supplier
03/04/2020,"Adults & Health Commissioning, Health & Social Care",Bondcare(London)Springfield Main,NURSING HOMES - PRIVATE CONTRACTORS PAYMENT,516.85,0,Commercial Supplier
03/04/2020,"Adults & Health Commissioning, Health & Social Care",Bondcare(London)The Fountains,NURSING HOMES - PRIVATE CONTRACTORS PAYMENT,800,0,Commercial Supplier
03/04/2020,"Adults & Health Commissioning, Health & Social Care",Bondcare(London)The Fountains,NURSING HOMES - PRIVATE CONTRACTORS PAYMENT,800,0,Commercial Supplier
03/04/2020,"Adults & Health Commissioning, Health & Social Care",Bondcare(London)The Fountains,NURSING HOMES - PRIVATE CONTRACTORS PAYMENT,800,0,Commercial Supplier
03/04/2020,"Adults & Health Commissioning, Health & Social Care",Bondcare(London)The Fountains,NURSING HOMES - PRIVATE CONTRACTORS PAYMENT,800,0,Commercial Supplier
03/04/2020,"Adults & Health Commissioning, Health & Social Care",Bondcare(London)The Fountains,NURSING HOMES - PRIVATE CONTRACTORS PAYMENT,800,0,Commercial Supplier
03/04/2020,"Adults & Health Commissioning, Health & Social Care",Bondcare(London)The Fountains,NURSING HOMES - PRIVATE CONTRACTORS PAYMENT,800,0,Commercial Supplier
03/04/2020,"Adults & Health Commissioning, Health & Social Care",Bondcare(London)The Fountains,RESIDENTIAL PLACEMENTS - PRIVATE CONTRACTORS PAYMENT,700,0,Commercial Supplier
03/04/2020,"Adults & Health Commissioning, Health & Social Care",Bondcare(London)The Fountains,NURSING HOMES - PRIVATE CONTRACTORS PAYMENT,800,0,Commercial Supplier
03/04/2020,"Adults & Health Commissioning, Health & Social Care",Bondcare(London)The Fountains,RESIDENTIAL PLACEMENTS - PRIVATE CONTRACTORS PAYMENT,700,0,Commercial Supplier
03/04/2020,"Adults & Health Commissioning, Health & Social Care",Bondcare(London)The Fountains,RESIDENTIAL PLACEMENTS - PRIVATE CONTRACTORS PAYMENT,700,0,Commercial Supplier
03/04/2020,"Adults & Health Commissioning, Health & Social Care",Bondcare(London)The Fountains,RESIDENTIAL PLACEMENTS - PRIVATE CONTRACTORS PAYMENT,700,0,Commercial Supplier
03/04/2020,"Adults & Health Commissioning, Health & Social Care",Bondcare(London)The Fountains,NURSING HOMES - PRIVATE CONTRACTORS PAYMENT,800,0,Commercial Supplier
03/04/2020,"Adults & Health Commissioning, Health & Social Care",Bondcare(London)The Fountains,NURSING HOMES - PRIVATE CONTRACTORS PAYMENT,800,0,Commercial Supplier
03/04/2020,"Adults & Health Commissioning, Health & Social Care",Bondcare(London)The Fountains,NURSING HOMES - PRIVATE CONTRACTORS PAYMENT,800,0,Commercial Supplier
03/04/2020,"Adults & Health Commissioning, Health & Social Care",Bondcare(London)The Fountains,NURSING HOMES - PRIVATE CONTRACTORS PAYMENT,800,0,Commercial Supplier
03/04/2020,"Adults & Health Commissioning, Health & Social Care",Bondcare(London)The Fountains,RESPITE CARE - PRIVATE CONTRACTORS PAYMENT,485.71,0,Commercial Supplier
03/04/2020,"Adults & Health Commissioning, Health & Social Care",Bondcare(London)The Fountains,NURSING HOMES - PRIVATE CONTRACTORS PAYMENT,800,0,Commercial Supplier
03/04/2020,"Adults & Health Commissioning, Health & Social Care",Bondcare(London)The Fountains,NURSING HOMES - PRIVATE CONTRACTORS PAYMENT,800,0,Commercial Supplier
03/04/2020,"Adults & Health Commissioning, Health & Social Care",Bondcare(London)The Fountains,NURSING HOMES - PRIVATE CONTRACTORS PAYMENT,800,0,Commercial Supplier
03/04/2020,"Adults & Health Commissioning, Health & Social Care",Bondcare(London)The Fountains,NURSING HOMES - PRIVATE CONTRACTORS PAYMENT,800,0,Commercial Supplier
03/04/2020,"Adults & Health Commissioning, Health & Social Care",Bondcare(London)The Fountains,NURSING HOMES - PRIVATE CONTRACTORS PAYMENT,800,0,Commercial Supplier
03/04/2020,"Adults & Health Commissioning, Health & Social Care",Bondcare(London)The Fountains,NURSING HOMES - PRIVATE CONTRACTORS PAYMENT,601.97,0,Commercial Supplier
03/04/2020,"Adults & Health Commissioning, Health & Social Care",Bondcare(London)The Fountains,NURSING HOMES - PRIVATE CONTRACTORS PAYMENT,601.97,0,Commercial Supplier
03/04/2020,"Adults & Health Commissioning, Health & Social Care",Bondcare(London)The Fountains,NURSING HOMES - PRIVATE CONTRACTORS PAYMENT,457.14,0,Commercial Supplier
03/04/2020,"Adults & Health Commissioning, Health & Social Care",Bondcare(London)The Fountains,NURSING HOMES - PRIVATE CONTRACTORS PAYMENT,601.97,0,Commercial Supplier
03/04/2020,"Adults & Health Commissioning, Health & Social Care",Bondcare(London)The Fountains,NURSING HOMES - PRIVATE CONTRACTORS PAYMENT,601.97,0,Commercial Supplier
03/04/2020,"Adults & Health Commissioning, Health & Social Care",Bondcare(London)The Fountains,NURSING HOMES - PRIVATE CONTRACTORS PAYMENT,800,0,Commercial Supplier
03/04/2020,"Adults & Health Commissioning, Health & Social Care",Bondcare(London)The Fountains,NURSING HOMES - PRIVATE CONTRACTORS PAYMENT,800,0,Commercial Supplier
03/04/2020,"Adults & Health Commissioning, Health & Social Care",Bondcare(London)The Fountains,NURSING HOMES - PRIVATE CONTRACTORS PAYMENT,800,0,Commercial Supplier
03/04/2020,"Adults & Health Commissioning, Health & Social Care",Bondcare(London)The Fountains,NURSING HOMES - PRIVATE CONTRACTORS PAYMENT,800,0,Commercial Supplier
03/04/2020,"Adults & Health Commissioning, Health & Social Care",Bondcare(London)The Fountains,NURSING HOMES - PRIVATE CONTRACTORS PAYMENT,800,0,Commercial Supplier
03/04/2020,"Adults & Health Commissioning, Health & Social Care",Bondcare(London)The Fountains,NURSING HOMES - PRIVATE CONTRACTORS PAYMENT,800,0,Commercial Supplier
03/04/2020,"Adults & Health Commissioning, Health & Social Care",Brain Injury Rehabilitation Trust,RESIDENTIAL PLACEMENTS - PRIVATE CONTRACTORS PAYMENT,"1,051.64",0,Commercial Supplier
03/04/2020,"Adults & Health Commissioning, Health & Social Care",Brain Injury Rehabilitation Trust,RESIDENTIAL PLACEMENTS - PRIVATE CONTRACTORS PAYMENT,"1,051.64",0,Commercial Supplier
03/04/2020,"Adults & Health Commissioning, Health & Social Care",Brain Injury Rehabilitation Trust,RESIDENTIAL PLACEMENTS - PRIVATE CONTRACTORS PAYMENT,"1,051.64",0,Commercial Supplier
03/04/2020,"Adults & Health Commissioning, Health & Social Care",Brain Injury Rehabilitation Trust,RESIDENTIAL PLACEMENTS - PRIVATE CONTRACTORS PAYMENT,"1,051.64",0,Commercial Supplier
03/04/2020,"Adults & Health Commissioning, Health & Social Care",Bramblings (Kent) Ltd,RESIDENTIAL PLACEMENTS - PRIVATE CONTRACTORS PAYMENT,600,0,Commercial Supplier
03/04/2020,"Adults & Health Commissioning, Health & Social Care",Bramblings (Kent) Ltd,RESIDENTIAL PLACEMENTS - PRIVATE CONTRACTORS PAYMENT,600,0,Commercial Supplier
03/04/2020,"Adults & Health Commissioning, Health & Social Care",Bramblings (Kent) Ltd,RESIDENTIAL PLACEMENTS - PRIVATE CONTRACTORS PAYMENT,600,0,Commercial Supplier
03/04/2020,"Adults & Health Commissioning, Health & Social Care",Bramblings (Kent) Ltd,RESIDENTIAL PLACEMENTS - PRIVATE CONTRACTORS PAYMENT,600,0,Commercial Supplier
03/04/2020,"Adults & Health Commissioning, Health & Social Care",Brenalwood Care Home t/a Regal Care Trading,RESIDENTIAL PLACEMENTS - PRIVATE CONTRACTORS PAYMENT,600,0,Commercial Supplier
03/04/2020,"Adults & Health Commissioning, Health & Social Care",Brenalwood Care Home t/a Regal Care Trading,RESIDENTIAL PLACEMENTS - PRIVATE CONTRACTORS PAYMENT,600,0,Commercial Supplier
03/04/2020,"Adults & Health Commissioning, Health & Social Care",Brenalwood Care Home t/a Regal Care Trading,RESIDENTIAL PLACEMENTS - PRIVATE CONTRACTORS PAYMENT,600,0,Commercial Supplier
03/04/2020,"Adults & Health Commissioning, Health & Social Care",Brenalwood Care Home t/a Regal Care Trading,RESIDENTIAL PLACEMENTS - PRIVATE CONTRACTORS PAYMENT,600,0,Commercial Supplier
03/04/2020,Inclusive Economy & Housing Community Wealth Building,British Gas Business,GAS,"1,654.33",0,Commercial Supplier
03/04/2020,Inclusive Economy & Housing Community Wealth Building,British Gas Business,GAS,"1,654.33",0,Commercial Supplier
03/04/2020,"Adults & Health Commissioning, Health & Social Care",C Wong T/A Criss Cross Potters,DAYCARE - PRIVATE CONTRACTORS PAYMENT,320,0,Supplier
03/04/2020,"Adults & Health Commissioning, Health & Social Care",C Wong T/A Criss Cross Potters,DAYCARE - PRIVATE CONTRACTORS PAYMENT,320,0,Supplier
03/04/2020,"Adults & Health Commissioning, Health & Social Care",C Wong T/A Criss Cross Potters,DAYCARE - PRIVATE CONTRACTORS PAYMENT,320,0,Supplier
03/04/2020,"Adults & Health Commissioning, Health & Social Care",CAS Learning Disabilities Ltd,RESIDENTIAL PLACEMENTS - PRIVATE CONTRACTORS PAYMENT,"1,596.00",0,Commercial Supplier
03/04/2020,"Adults & Health Commissioning, Health & Social Care",CAS Learning Disabilities Ltd,RESIDENTIAL PLACEMENTS - PRIVATE CONTRACTORS PAYMENT,"1,357.09",0,Commercial Supplier
03/04/2020,"Adults & Health Commissioning, Health & Social Care",CAS Learning Disabilities Ltd,RESIDENTIAL PLACEMENTS - PRIVATE CONTRACTORS PAYMENT,"1,500.00",0,Commercial Supplier
03/04/2020,"Adults & Health Commissioning, Health & Social Care",CAS Learning Disabilities Ltd,RESIDENTIAL PLACEMENTS - PRIVATE CONTRACTORS PAYMENT,"1,500.00",0,Commercial Supplier
03/04/2020,"Adults & Health Commissioning, Health & Social Care",CAS Learning Disabilities Ltd,RESIDENTIAL PLACEMENTS - PRIVATE CONTRACTORS PAYMENT,"1,357.09",0,Commercial Supplier
03/04/2020,"Adults & Health Commissioning, Health & Social Care",CAS Learning Disabilities Ltd,RESIDENTIAL PLACEMENTS - PRIVATE CONTRACTORS PAYMENT,"1,357.09",0,Commercial Supplier
03/04/2020,"Adults & Health Commissioning, Health & Social Care",CAS Learning Disabilities Ltd,RESIDENTIAL PLACEMENTS - PRIVATE CONTRACTORS PAYMENT,"1,500.00",0,Commercial Supplier
03/04/2020,"Adults & Health Commissioning, Health & Social Care",CAS Learning Disabilities Ltd,RESIDENTIAL PLACEMENTS - PRIVATE CONTRACTORS PAYMENT,"1,596.00",0,Commercial Supplier
03/04/2020,"Adults & Health Commissioning, Health & Social Care",CAS Learning Disabilities Ltd,RESIDENTIAL PLACEMENTS - PRIVATE CONTRACTORS PAYMENT,"1,500.00",0,Commercial Supplier
03/04/2020,"Adults & Health Commissioning, Health & Social Care",CAS Learning Disabilities Ltd,RESIDENTIAL PLACEMENTS - PRIVATE CONTRACTORS PAYMENT,"1,596.00",0,Commercial Supplier
03/04/2020,"Adults & Health Commissioning, Health & Social Care",CAS Learning Disabilities Ltd,RESIDENTIAL PLACEMENTS - PRIVATE CONTRACTORS PAYMENT,"1,596.00",0,Commercial Supplier
03/04/2020,"Adults & Health Commissioning, Health & Social Care",CAS Learning Disabilities Ltd,RESIDENTIAL PLACEMENTS - PRIVATE CONTRACTORS PAYMENT,"1,357.09",0,Commercial Supplier
03/04/2020,Housing Revenue Account HRA,CEL Solicitors,LEGAL FEES,"5,500.00",0,Commercial Supplier
03/04/2020,"Adults & Health Commissioning, Health & Social Care",CMG Limited,RESIDENTIAL PLACEMENTS - PRIVATE CONTRACTORS PAYMENT,"1,636.00",0,Supplier
03/04/2020,"Adults & Health Commissioning, Health & Social Care",CMG Limited,RESIDENTIAL PLACEMENTS - PRIVATE CONTRACTORS PAYMENT,"1,737.00",0,Supplier
03/04/2020,"Adults & Health Commissioning, Health & Social Care",CMG Limited,RESIDENTIAL PLACEMENTS - PRIVATE CONTRACTORS PAYMENT,"1,636.00",0,Supplier
03/04/2020,"Adults & Health Commissioning, Health & Social Care",CMG Limited,RESIDENTIAL PLACEMENTS - PRIVATE CONTRACTORS PAYMENT,"1,446.00",0,Supplier
03/04/2020,"Adults & Health Commissioning, Health & Social Care",CMG Limited,RESIDENTIAL PLACEMENTS - PRIVATE CONTRACTORS PAYMENT,"1,549.00",0,Supplier
03/04/2020,"Adults & Health Commissioning, Health & Social Care",CMG Limited,RESIDENTIAL PLACEMENTS - PRIVATE CONTRACTORS PAYMENT,"1,446.00",0,Supplier
03/04/2020,"Adults & Health Commissioning, Health & Social Care",CMG Limited,RESIDENTIAL PLACEMENTS - PRIVATE CONTRACTORS PAYMENT,"1,446.00",0,Supplier
03/04/2020,"Adults & Health Commissioning, Health & Social Care",CMG Limited,RESIDENTIAL PLACEMENTS - PRIVATE CONTRACTORS PAYMENT,"1,446.00",0,Supplier
03/04/2020,"Adults & Health Commissioning, Health & Social Care",CMG Limited,RESIDENTIAL PLACEMENTS - PRIVATE CONTRACTORS PAYMENT,"1,350.00",0,Supplier
03/04/2020,"Adults & Health Commissioning, Health & Social Care",CMG Limited,RESIDENTIAL PLACEMENTS - PRIVATE CONTRACTORS PAYMENT,"1,549.00",0,Supplier
03/04/2020,"Adults & Health Commissioning, Health & Social Care",CMG Limited,RESIDENTIAL PLACEMENTS - PRIVATE CONTRACTORS PAYMENT,"1,350.00",0,Supplier
03/04/2020,"Adults & Health Commissioning, Health & Social Care",CMG Limited,RESIDENTIAL PLACEMENTS - PRIVATE CONTRACTORS PAYMENT,"1,737.00",0,Supplier
03/04/2020,"Adults & Health Commissioning, Health & Social Care",CMG Limited,RESIDENTIAL PLACEMENTS - PRIVATE CONTRACTORS PAYMENT,"1,549.00",0,Supplier
03/04/2020,"Adults & Health Commissioning, Health & Social Care",CMG Limited,RESIDENTIAL PLACEMENTS - PRIVATE CONTRACTORS PAYMENT,"1,549.00",0,Supplier
03/04/2020,"Adults & Health Commissioning, Health & Social Care",CMG Limited,RESIDENTIAL PLACEMENTS - PRIVATE CONTRACTORS PAYMENT,"1,636.00",0,Supplier
03/04/2020,"Adults & Health Commissioning, Health & Social Care",CMG Limited,RESIDENTIAL PLACEMENTS - PRIVATE CONTRACTORS PAYMENT,"1,636.00",0,Supplier
03/04/2020,"Adults & Health Commissioning, Health & Social Care",CMG Limited,RESIDENTIAL PLACEMENTS - PRIVATE CONTRACTORS PAYMENT,"1,408.00",0,Supplier
03/04/2020,"Adults & Health Commissioning, Health & Social Care",CMG Limited,RESIDENTIAL PLACEMENTS - PRIVATE CONTRACTORS PAYMENT,"1,737.00",0,Supplier
03/04/2020,"Adults & Health Commissioning, Health & Social Care",CMG Limited,RESIDENTIAL PLACEMENTS - PRIVATE CONTRACTORS PAYMENT,"1,737.00",0,Supplier
03/04/2020,"Adults & Health Commissioning, Health & Social Care",CMG Limited,RESIDENTIAL PLACEMENTS - PRIVATE CONTRACTORS PAYMENT,"1,370.00",0,Supplier
03/04/2020,"Adults & Health Commissioning, Health & Social Care",CMG Limited,RESIDENTIAL PLACEMENTS - PRIVATE CONTRACTORS PAYMENT,"1,370.00",0,Supplier
03/04/2020,"Adults & Health Commissioning, Health & Social Care",CMG Limited,RESIDENTIAL PLACEMENTS - PRIVATE CONTRACTORS PAYMENT,"1,370.00",0,Supplier
03/04/2020,"Adults & Health Commissioning, Health & Social Care",CMG Limited,RESIDENTIAL PLACEMENTS - PRIVATE CONTRACTORS PAYMENT,"1,408.00",0,Supplier
03/04/2020,"Adults & Health Commissioning, Health & Social Care",CMG Limited,RESIDENTIAL PLACEMENTS - PRIVATE CONTRACTORS PAYMENT,"1,408.00",0,Supplier
03/04/2020,"Adults & Health Commissioning, Health & Social Care",CMG Limited,RESIDENTIAL PLACEMENTS - PRIVATE CONTRACTORS PAYMENT,"1,370.00",0,Supplier
03/04/2020,"Adults & Health Commissioning, Health & Social Care",CMG Limited,RESIDENTIAL PLACEMENTS - PRIVATE CONTRACTORS PAYMENT,"1,385.67",0,Supplier
03/04/2020,"Adults & Health Commissioning, Health & Social Care",CMG Limited,RESIDENTIAL PLACEMENTS - PRIVATE CONTRACTORS PAYMENT,"1,408.00",0,Supplier
03/04/2020,"Adults & Health Commissioning, Health & Social Care",CMG Limited,RESIDENTIAL PLACEMENTS - PRIVATE CONTRACTORS PAYMENT,"1,385.67",0,Supplier
03/04/2020,"Adults & Health Commissioning, Health & Social Care",CMG Limited,RESIDENTIAL PLACEMENTS - PRIVATE CONTRACTORS PAYMENT,"1,350.00",0,Supplier
03/04/2020,"Adults & Health Commissioning, Health & Social Care",CMG Limited,RESIDENTIAL PLACEMENTS - PRIVATE CONTRACTORS PAYMENT,"1,385.67",0,Supplier
03/04/2020,"Adults & Health Commissioning, Health & Social Care",CMG Limited,RESIDENTIAL PLACEMENTS - PRIVATE CONTRACTORS PAYMENT,"1,385.67",0,Supplier
03/04/2020,"Adults & Health Commissioning, Health & Social Care",CMG Limited,RESIDENTIAL PLACEMENTS - PRIVATE CONTRACTORS PAYMENT,"1,350.00",0,Supplier
03/04/2020,Children and Young People Operations & Safeguarding,Cambian Group Ltd,RESIDENTIAL PLACEMENTS - PRIVATE CONTRACTORS PAYMENT,"2,485.72",0,Commercial Supplier
03/04/2020,Children and Young People Operations & Safeguarding,Cambian Group Ltd,RESIDENTIAL PLACEMENTS - PRIVATE CONTRACTORS PAYMENT,"18,021.47",0,Commercial Supplier
03/04/2020,Children and Young People Operations & Safeguarding,Cambian Group Ltd,RESIDENTIAL PLACEMENTS - PRIVATE CONTRACTORS PAYMENT,"19,264.33",0,Commercial Supplier
03/04/2020,"Adults & Health Commissioning, Health & Social Care",Cambridge Nursing Home,NURSING HOMES - PRIVATE CONTRACTORS PAYMENT,545.17,0,Supplier
03/04/2020,"Adults & Health Commissioning, Health & Social Care",Cambridge Nursing Home,NURSING HOMES - PRIVATE CONTRACTORS PAYMENT,644.95,0,Supplier
03/04/2020,"Adults & Health Commissioning, Health & Social Care",Cambridge Nursing Home,NURSING HOMES - PRIVATE CONTRACTORS PAYMENT,644.95,0,Supplier
03/04/2020,"Adults & Health Commissioning, Health & Social Care",Cambridge Nursing Home,NURSING HOMES - PRIVATE CONTRACTORS PAYMENT,545.17,0,Supplier
03/04/2020,"Adults & Health Commissioning, Health & Social Care",Cambridge Nursing Home,NURSING HOMES - PRIVATE CONTRACTORS PAYMENT,900,0,Supplier
03/04/2020,"Adults & Health Commissioning, Health & Social Care",Cambridge Nursing Home,NURSING HOMES - PRIVATE CONTRACTORS PAYMENT,900,0,Supplier
03/04/2020,"Adults & Health Commissioning, Health & Social Care",Cambridge Nursing Home,NURSING HOMES - PRIVATE CONTRACTORS PAYMENT,545.17,0,Supplier
03/04/2020,"Adults & Health Commissioning, Health & Social Care",Cambridge Nursing Home,NURSING HOMES - PRIVATE CONTRACTORS PAYMENT,644.95,0,Supplier
03/04/2020,"Adults & Health Commissioning, Health & Social Care",Cambridge Nursing Home,NURSING HOMES - PRIVATE CONTRACTORS PAYMENT,545.17,0,Supplier
03/04/2020,"Adults & Health Commissioning, Health & Social Care",Cambridge Nursing Home,NURSING HOMES - PRIVATE CONTRACTORS PAYMENT,900,0,Supplier
03/04/2020,"Adults & Health Commissioning, Health & Social Care",Cambridge Nursing Home,NURSING HOMES - PRIVATE CONTRACTORS PAYMENT,900,0,Supplier
03/04/2020,"Adults & Health Commissioning, Health & Social Care",Cambridge Nursing Home,NURSING HOMES - PRIVATE CONTRACTORS PAYMENT,700,0,Supplier
03/04/2020,"Adults & Health Commissioning, Health & Social Care",Cambridge Nursing Home,NURSING HOMES - PRIVATE CONTRACTORS PAYMENT,700,0,Supplier
03/04/2020,"Adults & Health Commissioning, Health & Social Care",Cambridge Nursing Home,NURSING HOMES - PRIVATE CONTRACTORS PAYMENT,700,0,Supplier
03/04/2020,"Adults & Health Commissioning, Health & Social Care",Cambridge Nursing Home,NURSING HOMES - PRIVATE CONTRACTORS PAYMENT,700,0,Supplier
03/04/2020,"Adults & Health Commissioning, Health & Social Care",Cambridge Nursing Home,NURSING HOMES - PRIVATE CONTRACTORS PAYMENT,644.95,0,Supplier
03/04/2020,"Adults & Health Commissioning, Health & Social Care",Care & Normalisation Ltd,RESIDENTIAL PLACEMENTS - PRIVATE CONTRACTORS PAYMENT,"1,100.00",0,Supplier
03/04/2020,"Adults & Health Commissioning, Health & Social Care",Care & Normalisation Ltd,RESIDENTIAL PLACEMENTS - PRIVATE CONTRACTORS PAYMENT,"1,100.00",0,Supplier
03/04/2020,"Adults & Health Commissioning, Health & Social Care",Care & Normalisation Ltd,RESIDENTIAL PLACEMENTS - PRIVATE CONTRACTORS PAYMENT,"1,100.00",0,Supplier
03/04/2020,"Adults & Health Commissioning, Health & Social Care",Care & Normalisation Ltd,RESIDENTIAL PLACEMENTS - PRIVATE CONTRACTORS PAYMENT,"1,100.00",0,Supplier
03/04/2020,"Adults & Health Commissioning, Health & Social Care",Care London Ltd,SUPPORTED OTHER ACCOMMODATION - PRIVATE CONTRACTORS PAYMENT,650,0,Supplier
03/04/2020,"Adults & Health Commissioning, Health & Social Care",Care London Ltd,SUPPORTED OTHER ACCOMMODATION - PRIVATE CONTRACTORS PAYMENT,650,0,Supplier
03/04/2020,"Adults & Health Commissioning, Health & Social Care",Care London Ltd,SUPPORTED OTHER ACCOMMODATION - PRIVATE CONTRACTORS PAYMENT,650,0,Supplier
03/04/2020,"Adults & Health Commissioning, Health & Social Care",Care London Ltd,SUPPORTED OTHER ACCOMMODATION - PRIVATE CONTRACTORS PAYMENT,650,0,Supplier
03/04/2020,"Adults & Health Commissioning, Health & Social Care",Care London Ltd,SUPPORTED OTHER ACCOMMODATION - PRIVATE CONTRACTORS PAYMENT,650,0,Supplier
03/04/2020,"Adults & Health Commissioning, Health & Social Care",Care London Ltd,SUPPORTED OTHER ACCOMMODATION - PRIVATE CONTRACTORS PAYMENT,"4,500.00",0,Supplier
03/04/2020,"Adults & Health Commissioning, Health & Social Care",Care London Ltd,SUPPORTED OTHER ACCOMMODATION - PRIVATE CONTRACTORS PAYMENT,690,0,Supplier
03/04/2020,"Adults & Health Commissioning, Health & Social Care",Care London Ltd,SUPPORTED OTHER ACCOMMODATION - PRIVATE CONTRACTORS PAYMENT,650,0,Supplier
03/04/2020,"Adults & Health Commissioning, Health & Social Care",Care London Ltd,SUPPORTED OTHER ACCOMMODATION - PRIVATE CONTRACTORS PAYMENT,690,0,Supplier
03/04/2020,"Adults & Health Commissioning, Health & Social Care",Care London Ltd,SUPPORTED OTHER ACCOMMODATION - PRIVATE CONTRACTORS PAYMENT,650,0,Supplier
03/04/2020,"Adults & Health Commissioning, Health & Social Care",Care London Ltd,SUPPORTED OTHER ACCOMMODATION - PRIVATE CONTRACTORS PAYMENT,650,0,Supplier
03/04/2020,"Adults & Health Commissioning, Health & Social Care",Care London Ltd,SUPPORTED OTHER ACCOMMODATION - PRIVATE CONTRACTORS PAYMENT,650,0,Supplier
03/04/2020,"Adults & Health Commissioning, Health & Social Care",Care London Ltd,SUPPORTED OTHER ACCOMMODATION - PRIVATE CONTRACTORS PAYMENT,650,0,Supplier
03/04/2020,"Adults & Health Commissioning, Health & Social Care",Care London Ltd,SUPPORTED OTHER ACCOMMODATION - PRIVATE CONTRACTORS PAYMENT,690,0,Supplier
03/04/2020,"Adults & Health Commissioning, Health & Social Care",Care London Ltd,SUPPORTED OTHER ACCOMMODATION - PRIVATE CONTRACTORS PAYMENT,890,0,Supplier
03/04/2020,"Adults & Health Commissioning, Health & Social Care",Care London Ltd,SUPPORTED OTHER ACCOMMODATION - PRIVATE CONTRACTORS PAYMENT,650,0,Supplier
03/04/2020,"Adults & Health Commissioning, Health & Social Care",Care London Ltd,SUPPORTED OTHER ACCOMMODATION - PRIVATE CONTRACTORS PAYMENT,650,0,Supplier
03/04/2020,"Adults & Health Commissioning, Health & Social Care",Care London Ltd,SUPPORTED OTHER ACCOMMODATION - PRIVATE CONTRACTORS PAYMENT,650,0,Supplier
03/04/2020,"Adults & Health Commissioning, Health & Social Care",Care London Ltd,SUPPORTED OTHER ACCOMMODATION - PRIVATE CONTRACTORS PAYMENT,650,0,Supplier
03/04/2020,"Adults & Health Commissioning, Health & Social Care",Care London Ltd,SUPPORTED OTHER ACCOMMODATION - PRIVATE CONTRACTORS PAYMENT,890,0,Supplier
03/04/2020,"Adults & Health Commissioning, Health & Social Care",Care London Ltd,SUPPORTED OTHER ACCOMMODATION - PRIVATE CONTRACTORS PAYMENT,890,0,Supplier
03/04/2020,"Adults & Health Commissioning, Health & Social Care",Care London Ltd,SUPPORTED OTHER ACCOMMODATION - PRIVATE CONTRACTORS PAYMENT,650,0,Supplier
03/04/2020,"Adults & Health Commissioning, Health & Social Care",Care London Ltd,SUPPORTED OTHER ACCOMMODATION - PRIVATE CONTRACTORS PAYMENT,650,0,Supplier
03/04/2020,"Adults & Health Commissioning, Health & Social Care",Care London Ltd,SUPPORTED OTHER ACCOMMODATION - PRIVATE CONTRACTORS PAYMENT,650,0,Supplier
03/04/2020,"Adults & Health Commissioning, Health & Social Care",Care London Ltd,SUPPORTED OTHER ACCOMMODATION - PRIVATE CONTRACTORS PAYMENT,890,0,Supplier
03/04/2020,"Adults & Health Commissioning, Health & Social Care",Care London Ltd,SUPPORTED OTHER ACCOMMODATION - PRIVATE CONTRACTORS PAYMENT,650,0,Supplier
03/04/2020,"Adults & Health Commissioning, Health & Social Care",Care London Ltd,SUPPORTED OTHER ACCOMMODATION - PRIVATE CONTRACTORS PAYMENT,690,0,Supplier
03/04/2020,"Adults & Health Commissioning, Health & Social Care",Care London Ltd,SUPPORTED OTHER ACCOMMODATION - PRIVATE CONTRACTORS PAYMENT,650,0,Supplier
03/04/2020,"Adults & Health Commissioning, Health & Social Care",Care London Ltd,SUPPORTED OTHER ACCOMMODATION - PRIVATE CONTRACTORS PAYMENT,650,0,Supplier
03/04/2020,"Adults & Health Commissioning, Health & Social Care",Care London Ltd,SUPPORTED OTHER ACCOMMODATION - PRIVATE CONTRACTORS PAYMENT,650,0,Supplier
03/04/2020,"Adults & Health Commissioning, Health & Social Care",Care London Ltd,SUPPORTED OTHER ACCOMMODATION - PRIVATE CONTRACTORS PAYMENT,750,0,Supplier
03/04/2020,"Adults & Health Commissioning, Health & Social Care",Care London Ltd,SUPPORTED OTHER ACCOMMODATION - PRIVATE CONTRACTORS PAYMENT,650,0,Supplier
03/04/2020,"Adults & Health Commissioning, Health & Social Care",Care London Ltd,SUPPORTED OTHER ACCOMMODATION - PRIVATE CONTRACTORS PAYMENT,650,0,Supplier
03/04/2020,"Adults & Health Commissioning, Health & Social Care",Care London Ltd,SUPPORTED OTHER ACCOMMODATION - PRIVATE CONTRACTORS PAYMENT,650,0,Supplier
03/04/2020,"Adults & Health Commissioning, Health & Social Care",Care London Ltd,SUPPORTED OTHER ACCOMMODATION - PRIVATE CONTRACTORS PAYMENT,650,0,Supplier
03/04/2020,"Adults & Health Commissioning, Health & Social Care",Care London Ltd,SUPPORTED OTHER ACCOMMODATION - PRIVATE CONTRACTORS PAYMENT,650,0,Supplier
03/04/2020,"Adults & Health Commissioning, Health & Social Care",Care London Ltd,SUPPORTED OTHER ACCOMMODATION - PRIVATE CONTRACTORS PAYMENT,665,0,Supplier
03/04/2020,"Adults & Health Commissioning, Health & Social Care",Care London Ltd,SUPPORTED OTHER ACCOMMODATION - PRIVATE CONTRACTORS PAYMENT,665,0,Supplier
03/04/2020,"Adults & Health Commissioning, Health & Social Care",Care London Ltd,SUPPORTED OTHER ACCOMMODATION - PRIVATE CONTRACTORS PAYMENT,665,0,Supplier
03/04/2020,"Adults & Health Commissioning, Health & Social Care",Care London Ltd,SUPPORTED OTHER ACCOMMODATION - PRIVATE CONTRACTORS PAYMENT,750,0,Supplier
03/04/2020,"Adults & Health Commissioning, Health & Social Care",Care London Ltd,SUPPORTED OTHER ACCOMMODATION - PRIVATE CONTRACTORS PAYMENT,750,0,Supplier
03/04/2020,"Adults & Health Commissioning, Health & Social Care",Care London Ltd,SUPPORTED OTHER ACCOMMODATION - PRIVATE CONTRACTORS PAYMENT,665,0,Supplier
03/04/2020,"Adults & Health Commissioning, Health & Social Care",Care London Ltd,SUPPORTED OTHER ACCOMMODATION - PRIVATE CONTRACTORS PAYMENT,650,0,Supplier
03/04/2020,"Adults & Health Commissioning, Health & Social Care",Care London Ltd,SUPPORTED OTHER ACCOMMODATION - PRIVATE CONTRACTORS PAYMENT,650,0,Supplier
03/04/2020,"Adults & Health Commissioning, Health & Social Care",Care London Ltd,SUPPORTED OTHER ACCOMMODATION - PRIVATE CONTRACTORS PAYMENT,650,0,Supplier
03/04/2020,"Adults & Health Commissioning, Health & Social Care",Care London Ltd,SUPPORTED OTHER ACCOMMODATION - PRIVATE CONTRACTORS PAYMENT,650,0,Supplier
03/04/2020,"Adults & Health Commissioning, Health & Social Care",Care London Ltd,SUPPORTED OTHER ACCOMMODATION - PRIVATE CONTRACTORS PAYMENT,650,0,Supplier
03/04/2020,"Adults & Health Commissioning, Health & Social Care",Care London Ltd,SUPPORTED OTHER ACCOMMODATION - PRIVATE CONTRACTORS PAYMENT,750,0,Supplier
03/04/2020,"Adults & Health Commissioning, Health & Social Care",Care London Ltd,SUPPORTED OTHER ACCOMMODATION - PRIVATE CONTRACTORS PAYMENT,650,0,Supplier
03/04/2020,"Adults & Health Commissioning, Health & Social Care",Care London Ltd,SUPPORTED OTHER ACCOMMODATION - PRIVATE CONTRACTORS PAYMENT,650,0,Supplier
03/04/2020,"Adults & Health Commissioning, Health & Social Care",Care London Ltd,SUPPORTED OTHER ACCOMMODATION - PRIVATE CONTRACTORS PAYMENT,650,0,Supplier
03/04/2020,"Adults & Health Commissioning, Health & Social Care",Care London Ltd,SUPPORTED OTHER ACCOMMODATION - PRIVATE CONTRACTORS PAYMENT,650,0,Supplier
03/04/2020,"Adults & Health Commissioning, Health & Social Care",Care London Ltd,SUPPORTED OTHER ACCOMMODATION - PRIVATE CONTRACTORS PAYMENT,650,0,Supplier
03/04/2020,"Adults & Health Commissioning, Health & Social Care",Care London Ltd,SUPPORTED OTHER ACCOMMODATION - PRIVATE CONTRACTORS PAYMENT,650,0,Supplier
03/04/2020,"Adults & Health Commissioning, Health & Social Care",Care London Ltd,SUPPORTED OTHER ACCOMMODATION - PRIVATE CONTRACTORS PAYMENT,650,0,Supplier
03/04/2020,"Adults & Health Commissioning, Health & Social Care",Care London Ltd,SUPPORTED OTHER ACCOMMODATION - PRIVATE CONTRACTORS PAYMENT,665,0,Supplier
03/04/2020,"Adults & Health Commissioning, Health & Social Care",Care London Ltd,SUPPORTED OTHER ACCOMMODATION - PRIVATE CONTRACTORS PAYMENT,665,0,Supplier
03/04/2020,"Adults & Health Commissioning, Health & Social Care",Care London Ltd,SUPPORTED OTHER ACCOMMODATION - PRIVATE CONTRACTORS PAYMENT,665,0,Supplier
03/04/2020,"Adults & Health Commissioning, Health & Social Care",Care London Ltd,SUPPORTED OTHER ACCOMMODATION - PRIVATE CONTRACTORS PAYMENT,665,0,Supplier
03/04/2020,"Adults & Health Commissioning, Health & Social Care",Care London Ltd,SUPPORTED OTHER ACCOMMODATION - PRIVATE CONTRACTORS PAYMENT,650,0,Supplier
03/04/2020,"Adults & Health Commissioning, Health & Social Care",Care London Ltd,SUPPORTED OTHER ACCOMMODATION - PRIVATE CONTRACTORS PAYMENT,650,0,Supplier
03/04/2020,"Adults & Health Commissioning, Health & Social Care",Care Support,HOME CARE - PRIVATE CONTRACTORS PAYMENT,262.4,0,Commercial Supplier
03/04/2020,"Adults & Health Commissioning, Health & Social Care",Care Support,HOME CARE - PRIVATE CONTRACTORS PAYMENT,410,0,Commercial Supplier
03/04/2020,"Adults & Health Commissioning, Health & Social Care",Care Support,HOME CARE - PRIVATE CONTRACTORS PAYMENT,410,0,Commercial Supplier
03/04/2020,"Adults & Health Commissioning, Health & Social Care",Care Support,HOME CARE - PRIVATE CONTRACTORS PAYMENT,410,0,Commercial Supplier
03/04/2020,"Adults & Health Commissioning, Health & Social Care",Care Support,HOME CARE - PRIVATE CONTRACTORS PAYMENT,410,0,Commercial Supplier
03/04/2020,"Adults & Health Commissioning, Health & Social Care",Care Support,HOME CARE - PRIVATE CONTRACTORS PAYMENT,287,0,Commercial Supplier
03/04/2020,"Adults & Health Commissioning, Health & Social Care",Care Support,HOME CARE - PRIVATE CONTRACTORS PAYMENT,287,0,Commercial Supplier
03/04/2020,"Adults & Health Commissioning, Health & Social Care",Care Support,HOME CARE - PRIVATE CONTRACTORS PAYMENT,287,0,Commercial Supplier
03/04/2020,"Adults & Health Commissioning, Health & Social Care",Care Support,HOME CARE - PRIVATE CONTRACTORS PAYMENT,410,0,Commercial Supplier
03/04/2020,"Adults & Health Commissioning, Health & Social Care",Care Support,HOME CARE - PRIVATE CONTRACTORS PAYMENT,287,0,Commercial Supplier
03/04/2020,"Adults & Health Commissioning, Health & Social Care",Care Support,HOME CARE - PRIVATE CONTRACTORS PAYMENT,410,0,Commercial Supplier
03/04/2020,"Adults & Health Commissioning, Health & Social Care",Care Support,HOME CARE - PRIVATE CONTRACTORS PAYMENT,410,0,Commercial Supplier
03/04/2020,"Adults & Health Commissioning, Health & Social Care",Care Support,HOME CARE - PRIVATE CONTRACTORS PAYMENT,410,0,Commercial Supplier
03/04/2020,"Adults & Health Commissioning, Health & Social Care",Care Support,HOME CARE - PRIVATE CONTRACTORS PAYMENT,586.3,0,Commercial Supplier
03/04/2020,"Adults & Health Commissioning, Health & Social Care",Care Support,HOME CARE - PRIVATE CONTRACTORS PAYMENT,410,0,Commercial Supplier
03/04/2020,"Adults & Health Commissioning, Health & Social Care",Care Support,HOME CARE - PRIVATE CONTRACTORS PAYMENT,410,0,Commercial Supplier
03/04/2020,"Adults & Health Commissioning, Health & Social Care",Care Support,HOME CARE - PRIVATE CONTRACTORS PAYMENT,410,0,Commercial Supplier
03/04/2020,"Adults & Health Commissioning, Health & Social Care",Care Support,HOME CARE - PRIVATE CONTRACTORS PAYMENT,410,0,Commercial Supplier
03/04/2020,"Adults & Health Commissioning, Health & Social Care",Care Support,HOME CARE - PRIVATE CONTRACTORS PAYMENT,410,0,Commercial Supplier
03/04/2020,"Adults & Health Commissioning, Health & Social Care",Care Support,HOME CARE - PRIVATE CONTRACTORS PAYMENT,410,0,Commercial Supplier
03/04/2020,"Adults & Health Commissioning, Health & Social Care",Care Support,HOME CARE - PRIVATE CONTRACTORS PAYMENT,410,0,Commercial Supplier
03/04/2020,"Adults & Health Commissioning, Health & Social Care",Care Support,HOME CARE - PRIVATE CONTRACTORS PAYMENT,410,0,Commercial Supplier
03/04/2020,"Adults & Health Commissioning, Health & Social Care",Care Support,HOME CARE - PRIVATE CONTRACTORS PAYMENT,410,0,Commercial Supplier
03/04/2020,"Adults & Health Commissioning, Health & Social Care",Care Support,HOME CARE - PRIVATE CONTRACTORS PAYMENT,410,0,Commercial Supplier
03/04/2020,"Adults & Health Commissioning, Health & Social Care",Care Support,HOME CARE - PRIVATE CONTRACTORS PAYMENT,410,0,Commercial Supplier
03/04/2020,"Adults & Health Commissioning, Health & Social Care",Care Support,HOME CARE - PRIVATE CONTRACTORS PAYMENT,410,0,Commercial Supplier
03/04/2020,"Adults & Health Commissioning, Health & Social Care",Care Support,HOME CARE - PRIVATE CONTRACTORS PAYMENT,516.6,0,Commercial Supplier
03/04/2020,"Adults & Health Commissioning, Health & Social Care",Care Support,HOME CARE - PRIVATE CONTRACTORS PAYMENT,385.4,0,Commercial Supplier
03/04/2020,"Adults & Health Commissioning, Health & Social Care",Care Support,HOME CARE - PRIVATE CONTRACTORS PAYMENT,586.3,0,Commercial Supplier
03/04/2020,"Adults & Health Commissioning, Health & Social Care",Care Support,HOME CARE - PRIVATE CONTRACTORS PAYMENT,385.4,0,Commercial Supplier
03/04/2020,"Adults & Health Commissioning, Health & Social Care",Care Support,HOME CARE - PRIVATE CONTRACTORS PAYMENT,"1,213.60",0,Commercial Supplier
03/04/2020,"Adults & Health Commissioning, Health & Social Care",Care Support,HOME CARE - PRIVATE CONTRACTORS PAYMENT,"1,328.40",0,Commercial Supplier
03/04/2020,"Adults & Health Commissioning, Health & Social Care",Care Support,HOME CARE - PRIVATE CONTRACTORS PAYMENT,475.6,0,Commercial Supplier
03/04/2020,"Adults & Health Commissioning, Health & Social Care",Care Support,HOME CARE - PRIVATE CONTRACTORS PAYMENT,475.6,0,Commercial Supplier
03/04/2020,"Adults & Health Commissioning, Health & Social Care",Care Support,HOME CARE - PRIVATE CONTRACTORS PAYMENT,270.6,0,Commercial Supplier
03/04/2020,"Adults & Health Commissioning, Health & Social Care",Care Support,HOME CARE - PRIVATE CONTRACTORS PAYMENT,"1,328.40",0,Commercial Supplier
03/04/2020,"Adults & Health Commissioning, Health & Social Care",Care Support,HOME CARE - PRIVATE CONTRACTORS PAYMENT,295.2,0,Commercial Supplier
03/04/2020,"Adults & Health Commissioning, Health & Social Care",Care Support,HOME CARE - PRIVATE CONTRACTORS PAYMENT,"1,213.60",0,Commercial Supplier
03/04/2020,"Adults & Health Commissioning, Health & Social Care",Care Support,HOME CARE - PRIVATE CONTRACTORS PAYMENT,516.6,0,Commercial Supplier
03/04/2020,"Adults & Health Commissioning, Health & Social Care",Care Support,HOME CARE - PRIVATE CONTRACTORS PAYMENT,438.7,0,Commercial Supplier
03/04/2020,"Adults & Health Commissioning, Health & Social Care",Care Support,HOME CARE - PRIVATE CONTRACTORS PAYMENT,"1,328.40",0,Commercial Supplier
03/04/2020,"Adults & Health Commissioning, Health & Social Care",Care Support,HOME CARE - PRIVATE CONTRACTORS PAYMENT,516.6,0,Commercial Supplier
03/04/2020,"Adults & Health Commissioning, Health & Social Care",Care Support,HOME CARE - PRIVATE CONTRACTORS PAYMENT,516.6,0,Commercial Supplier
03/04/2020,"Adults & Health Commissioning, Health & Social Care",Care Support,HOME CARE - PRIVATE CONTRACTORS PAYMENT,"1,213.60",0,Commercial Supplier
03/04/2020,"Adults & Health Commissioning, Health & Social Care",Care Support,HOME CARE - PRIVATE CONTRACTORS PAYMENT,438.7,0,Commercial Supplier
03/04/2020,"Adults & Health Commissioning, Health & Social Care",Care Support,HOME CARE - PRIVATE CONTRACTORS PAYMENT,385.4,0,Commercial Supplier
03/04/2020,"Adults & Health Commissioning, Health & Social Care",Care Support,HOME CARE - PRIVATE CONTRACTORS PAYMENT,295.2,0,Commercial Supplier
03/04/2020,"Adults & Health Commissioning, Health & Social Care",Care Support,HOME CARE - PRIVATE CONTRACTORS PAYMENT,426.4,0,Commercial Supplier
03/04/2020,"Adults & Health Commissioning, Health & Social Care",Care Support,HOME CARE - PRIVATE CONTRACTORS PAYMENT,270.6,0,Commercial Supplier
03/04/2020,"Adults & Health Commissioning, Health & Social Care",Care Support,HOME CARE - PRIVATE CONTRACTORS PAYMENT,426.4,0,Commercial Supplier
03/04/2020,"Adults & Health Commissioning, Health & Social Care",Care Support,HOME CARE - PRIVATE CONTRACTORS PAYMENT,475.6,0,Commercial Supplier
03/04/2020,"Adults & Health Commissioning, Health & Social Care",Care Support,HOME CARE - PRIVATE CONTRACTORS PAYMENT,475.6,0,Commercial Supplier
03/04/2020,"Adults & Health Commissioning, Health & Social Care",Care Support,HOME CARE - PRIVATE CONTRACTORS PAYMENT,270.6,0,Commercial Supplier
03/04/2020,"Adults & Health Commissioning, Health & Social Care",Care Support,HOME CARE - PRIVATE CONTRACTORS PAYMENT,586.3,0,Commercial Supplier
03/04/2020,"Adults & Health Commissioning, Health & Social Care",Care Support,HOME CARE - PRIVATE CONTRACTORS PAYMENT,270.6,0,Commercial Supplier
03/04/2020,"Adults & Health Commissioning, Health & Social Care",Care Support,HOME CARE - PRIVATE CONTRACTORS PAYMENT,295.2,0,Commercial Supplier
03/04/2020,"Adults & Health Commissioning, Health & Social Care",Care Support,HOME CARE - PRIVATE CONTRACTORS PAYMENT,"1,328.40",0,Commercial Supplier
03/04/2020,"Adults & Health Commissioning, Health & Social Care",Care Support,HOME CARE - PRIVATE CONTRACTORS PAYMENT,426.4,0,Commercial Supplier
03/04/2020,"Adults & Health Commissioning, Health & Social Care",Care Support,HOME CARE - PRIVATE CONTRACTORS PAYMENT,586.3,0,Commercial Supplier
03/04/2020,"Adults & Health Commissioning, Health & Social Care",Care Support,HOME CARE - PRIVATE CONTRACTORS PAYMENT,295.2,0,Commercial Supplier
03/04/2020,"Adults & Health Commissioning, Health & Social Care",Care Support,HOME CARE - PRIVATE CONTRACTORS PAYMENT,438.7,0,Commercial Supplier
03/04/2020,"Adults & Health Commissioning, Health & Social Care",Care Support,HOME CARE - PRIVATE CONTRACTORS PAYMENT,262.4,0,Commercial Supplier
03/04/2020,"Adults & Health Commissioning, Health & Social Care",Care Support,HOME CARE - PRIVATE CONTRACTORS PAYMENT,262.4,0,Commercial Supplier
03/04/2020,"Adults & Health Commissioning, Health & Social Care",Care Support,HOME CARE - PRIVATE CONTRACTORS PAYMENT,262.4,0,Commercial Supplier
03/04/2020,"Adults & Health Commissioning, Health & Social Care",Care Support,HOME CARE - PRIVATE CONTRACTORS PAYMENT,438.7,0,Commercial Supplier
03/04/2020,"Adults & Health Commissioning, Health & Social Care",Care Support,HOME CARE - PRIVATE CONTRACTORS PAYMENT,385.4,0,Commercial Supplier
03/04/2020,"Adults & Health Commissioning, Health & Social Care",Care Support,HOME CARE - PRIVATE CONTRACTORS PAYMENT,"1,213.60",0,Commercial Supplier
03/04/2020,"Adults & Health Commissioning, Health & Social Care",Care Support,HOME CARE - PRIVATE CONTRACTORS PAYMENT,426.4,0,Commercial Supplier
03/04/2020,"Adults & Health Commissioning, Health & Social Care",Carmen Lodge Residential Home,RESIDENTIAL PLACEMENTS - PRIVATE CONTRACTORS PAYMENT,650,0,Supplier
03/04/2020,"Adults & Health Commissioning, Health & Social Care",Carmen Lodge Residential Home,RESIDENTIAL PLACEMENTS - PRIVATE CONTRACTORS PAYMENT,510.05,0,Supplier
03/04/2020,"Adults & Health Commissioning, Health & Social Care",Carmen Lodge Residential Home,RESIDENTIAL PLACEMENTS - PRIVATE CONTRACTORS PAYMENT,510.05,0,Supplier
03/04/2020,"Adults & Health Commissioning, Health & Social Care",Carmen Lodge Residential Home,RESIDENTIAL PLACEMENTS - PRIVATE CONTRACTORS PAYMENT,510.05,0,Supplier
03/04/2020,"Adults & Health Commissioning, Health & Social Care",Carmen Lodge Residential Home,RESIDENTIAL PLACEMENTS - PRIVATE CONTRACTORS PAYMENT,510.05,0,Supplier
03/04/2020,"Adults & Health Commissioning, Health & Social Care",Carmen Lodge Residential Home,RESIDENTIAL PLACEMENTS - PRIVATE CONTRACTORS PAYMENT,625,0,Supplier
03/04/2020,"Adults & Health Commissioning, Health & Social Care",Carmen Lodge Residential Home,RESIDENTIAL PLACEMENTS - PRIVATE CONTRACTORS PAYMENT,625,0,Supplier
03/04/2020,"Adults & Health Commissioning, Health & Social Care",Carmen Lodge Residential Home,RESIDENTIAL PLACEMENTS - PRIVATE CONTRACTORS PAYMENT,510.05,0,Supplier
03/04/2020,"Adults & Health Commissioning, Health & Social Care",Carmen Lodge Residential Home,RESIDENTIAL PLACEMENTS - PRIVATE CONTRACTORS PAYMENT,510.05,0,Supplier
03/04/2020,"Adults & Health Commissioning, Health & Social Care",Carmen Lodge Residential Home,RESIDENTIAL PLACEMENTS - PRIVATE CONTRACTORS PAYMENT,625,0,Supplier
03/04/2020,"Adults & Health Commissioning, Health & Social Care",Carmen Lodge Residential Home,RESIDENTIAL PLACEMENTS - PRIVATE CONTRACTORS PAYMENT,650,0,Supplier
03/04/2020,"Adults & Health Commissioning, Health & Social Care",Carmen Lodge Residential Home,RESIDENTIAL PLACEMENTS - PRIVATE CONTRACTORS PAYMENT,510.05,0,Supplier
03/04/2020,"Adults & Health Commissioning, Health & Social Care",Carmen Lodge Residential Home,RESIDENTIAL PLACEMENTS - PRIVATE CONTRACTORS PAYMENT,650,0,Supplier
03/04/2020,"Adults & Health Commissioning, Health & Social Care",Carmen Lodge Residential Home,RESIDENTIAL PLACEMENTS - PRIVATE CONTRACTORS PAYMENT,625,0,Supplier
03/04/2020,"Adults & Health Commissioning, Health & Social Care",Carmen Lodge Residential Home,RESIDENTIAL PLACEMENTS - PRIVATE CONTRACTORS PAYMENT,510.05,0,Supplier
03/04/2020,"Adults & Health Commissioning, Health & Social Care",Carmen Lodge Residential Home,RESIDENTIAL PLACEMENTS - PRIVATE CONTRACTORS PAYMENT,650,0,Supplier
03/04/2020,"Adults & Health Commissioning, Health & Social Care",Central England Healthcare (Coventry) Ltd,NURSING HOMES - PRIVATE CONTRACTORS PAYMENT,486.66,0,Supplier
03/04/2020,"Adults & Health Commissioning, Health & Social Care",Central England Healthcare (Coventry) Ltd,NURSING HOMES - PRIVATE CONTRACTORS PAYMENT,486.66,0,Supplier
03/04/2020,"Adults & Health Commissioning, Health & Social Care",Central England Healthcare (Coventry) Ltd,NURSING HOMES - PRIVATE CONTRACTORS PAYMENT,486.66,0,Supplier
03/04/2020,"Adults & Health Commissioning, Health & Social Care",Central England Healthcare (Coventry) Ltd,NURSING HOMES - PRIVATE CONTRACTORS PAYMENT,486.66,0,Supplier
03/04/2020,"Adults & Health Commissioning, Health & Social Care",Chestnut Court Care Home,RESIDENTIAL PLACEMENTS - PRIVATE CONTRACTORS PAYMENT,565,0,Supplier
03/04/2020,"Adults & Health Commissioning, Health & Social Care",Chestnut Court Care Home,RESIDENTIAL PLACEMENTS - PRIVATE CONTRACTORS PAYMENT,565,0,Supplier
03/04/2020,"Adults & Health Commissioning, Health & Social Care",Chestnut Court Care Home,RESIDENTIAL PLACEMENTS - PRIVATE CONTRACTORS PAYMENT,565,0,Supplier
03/04/2020,"Adults & Health Commissioning, Health & Social Care",Chestnut Court Care Home,RESIDENTIAL PLACEMENTS - PRIVATE CONTRACTORS PAYMENT,565,0,Supplier
03/04/2020,"Adults & Health Commissioning, Health & Social Care",Chigwell Homes Ltd,RESIDENTIAL PLACEMENTS - PRIVATE CONTRACTORS PAYMENT,472.57,0,Supplier
03/04/2020,"Adults & Health Commissioning, Health & Social Care",Chigwell Homes Ltd,RESIDENTIAL PLACEMENTS - PRIVATE CONTRACTORS PAYMENT,472.57,0,Supplier
03/04/2020,"Adults & Health Commissioning, Health & Social Care",Chigwell Homes Ltd,RESIDENTIAL PLACEMENTS - PRIVATE CONTRACTORS PAYMENT,476.49,0,Supplier
03/04/2020,"Adults & Health Commissioning, Health & Social Care",Chigwell Homes Ltd,RESIDENTIAL PLACEMENTS - PRIVATE CONTRACTORS PAYMENT,476.49,0,Supplier
03/04/2020,"Adults & Health Commissioning, Health & Social Care",Chigwell Homes Ltd,RESIDENTIAL PLACEMENTS - PRIVATE CONTRACTORS PAYMENT,472.57,0,Supplier
03/04/2020,"Adults & Health Commissioning, Health & Social Care",Chigwell Homes Ltd,RESIDENTIAL PLACEMENTS - PRIVATE CONTRACTORS PAYMENT,476.49,0,Supplier
03/04/2020,"Adults & Health Commissioning, Health & Social Care",Chigwell Homes Ltd,RESIDENTIAL PLACEMENTS - PRIVATE CONTRACTORS PAYMENT,476.49,0,Supplier
03/04/2020,"Adults & Health Commissioning, Health & Social Care",Chigwell Homes Ltd,RESIDENTIAL PLACEMENTS - PRIVATE CONTRACTORS PAYMENT,472.57,0,Supplier
03/04/2020,"Adults & Health Commissioning, Health & Social Care",Chosen Care Group Ltd,HOME CARE - PRIVATE CONTRACTORS PAYMENT,352.6,0,Supplier
03/04/2020,"Adults & Health Commissioning, Health & Social Care",Chosen Care Group Ltd,HOME CARE - PRIVATE CONTRACTORS PAYMENT,319.8,0,Supplier
03/04/2020,"Adults & Health Commissioning, Health & Social Care",Chosen Care Group Ltd,HOME CARE - PRIVATE CONTRACTORS PAYMENT,319.8,0,Supplier
03/04/2020,"Adults & Health Commissioning, Health & Social Care",Chosen Care Group Ltd,HOME CARE - PRIVATE CONTRACTORS PAYMENT,295.2,0,Supplier
03/04/2020,"Adults & Health Commissioning, Health & Social Care",Chosen Care Group Ltd,HOME CARE - PRIVATE CONTRACTORS PAYMENT,319.8,0,Supplier
03/04/2020,"Adults & Health Commissioning, Health & Social Care",Chosen Care Group Ltd,HOME CARE - PRIVATE CONTRACTORS PAYMENT,315.7,0,Supplier
03/04/2020,"Adults & Health Commissioning, Health & Social Care",Chosen Care Group Ltd,HOME CARE - PRIVATE CONTRACTORS PAYMENT,254.2,0,Supplier
03/04/2020,"Adults & Health Commissioning, Health & Social Care",Chosen Care Group Ltd,HOME CARE - PRIVATE CONTRACTORS PAYMENT,619.1,0,Supplier
03/04/2020,"Adults & Health Commissioning, Health & Social Care",Chosen Care Group Ltd,HOME CARE - PRIVATE CONTRACTORS PAYMENT,254.2,0,Supplier
03/04/2020,"Adults & Health Commissioning, Health & Social Care",Chosen Care Group Ltd,HOME CARE - PRIVATE CONTRACTORS PAYMENT,619.1,0,Supplier
03/04/2020,"Adults & Health Commissioning, Health & Social Care",Chosen Care Group Ltd,HOME CARE - PRIVATE CONTRACTORS PAYMENT,619.1,0,Supplier
03/04/2020,"Adults & Health Commissioning, Health & Social Care",Chosen Care Group Ltd,HOME CARE - PRIVATE CONTRACTORS PAYMENT,254.2,0,Supplier
03/04/2020,"Adults & Health Commissioning, Health & Social Care",Chosen Care Group Ltd,HOME CARE - PRIVATE CONTRACTORS PAYMENT,619.1,0,Supplier
03/04/2020,"Adults & Health Commissioning, Health & Social Care",Chosen Care Group Ltd,HOME CARE - PRIVATE CONTRACTORS PAYMENT,254.2,0,Supplier
03/04/2020,"Adults & Health Commissioning, Health & Social Care",Chosen Care Group Ltd,HOME CARE - PRIVATE CONTRACTORS PAYMENT,746.2,0,Supplier
03/04/2020,"Adults & Health Commissioning, Health & Social Care",Chosen Care Group Ltd,HOME CARE - PRIVATE CONTRACTORS PAYMENT,479.7,0,Supplier
03/04/2020,"Adults & Health Commissioning, Health & Social Care",Chosen Care Group Ltd,HOME CARE - PRIVATE CONTRACTORS PAYMENT,319.8,0,Supplier
03/04/2020,"Adults & Health Commissioning, Health & Social Care",Chosen Care Group Ltd,HOME CARE - PRIVATE CONTRACTORS PAYMENT,479.7,0,Supplier
03/04/2020,"Adults & Health Commissioning, Health & Social Care",Chosen Care Group Ltd,HOME CARE - PRIVATE CONTRACTORS PAYMENT,746.2,0,Supplier
03/04/2020,"Adults & Health Commissioning, Health & Social Care",Chosen Care Group Ltd,HOME CARE - PRIVATE CONTRACTORS PAYMENT,348.5,0,Supplier
03/04/2020,"Adults & Health Commissioning, Health & Social Care",Chosen Care Group Ltd,HOME CARE - PRIVATE CONTRACTORS PAYMENT,500.2,0,Supplier
03/04/2020,"Adults & Health Commissioning, Health & Social Care",Chosen Care Group Ltd,HOME CARE - PRIVATE CONTRACTORS PAYMENT,746.2,0,Supplier
03/04/2020,"Adults & Health Commissioning, Health & Social Care",Chosen Care Group Ltd,HOME CARE - PRIVATE CONTRACTORS PAYMENT,746.2,0,Supplier
03/04/2020,"Adults & Health Commissioning, Health & Social Care",Chosen Care Group Ltd,HOME CARE - PRIVATE CONTRACTORS PAYMENT,479.7,0,Supplier
03/04/2020,"Adults & Health Commissioning, Health & Social Care",Chosen Care Group Ltd,HOME CARE - PRIVATE CONTRACTORS PAYMENT,479.7,0,Supplier
03/04/2020,"Adults & Health Commissioning, Health & Social Care",Chosen Care Group Ltd,HOME CARE - PRIVATE CONTRACTORS PAYMENT,434.6,0,Supplier
03/04/2020,"Adults & Health Commissioning, Health & Social Care",Chosen Care Group Ltd,HOME CARE - PRIVATE CONTRACTORS PAYMENT,586.3,0,Supplier
03/04/2020,"Adults & Health Commissioning, Health & Social Care",Chosen Care Group Ltd,HOME CARE - PRIVATE CONTRACTORS PAYMENT,574,0,Supplier
03/04/2020,"Adults & Health Commissioning, Health & Social Care",Chosen Care Group Ltd,HOME CARE - PRIVATE CONTRACTORS PAYMENT,500.2,0,Supplier
03/04/2020,"Adults & Health Commissioning, Health & Social Care",Chosen Care Group Ltd,HOME CARE - PRIVATE CONTRACTORS PAYMENT,574,0,Supplier
03/04/2020,"Adults & Health Commissioning, Health & Social Care",Chosen Care Group Ltd,HOME CARE - PRIVATE CONTRACTORS PAYMENT,373.1,0,Supplier
03/04/2020,"Adults & Health Commissioning, Health & Social Care",Chosen Care Group Ltd,HOME CARE - PRIVATE CONTRACTORS PAYMENT,373.1,0,Supplier
03/04/2020,"Adults & Health Commissioning, Health & Social Care",Chosen Care Group Ltd,HOME CARE - PRIVATE CONTRACTORS PAYMENT,373.1,0,Supplier
03/04/2020,"Adults & Health Commissioning, Health & Social Care",Chosen Care Group Ltd,HOME CARE - PRIVATE CONTRACTORS PAYMENT,373.1,0,Supplier
03/04/2020,"Adults & Health Commissioning, Health & Social Care",Chosen Care Group Ltd,HOME CARE - PRIVATE CONTRACTORS PAYMENT,434.6,0,Supplier
03/04/2020,"Adults & Health Commissioning, Health & Social Care",Chosen Care Group Ltd,HOME CARE - PRIVATE CONTRACTORS PAYMENT,500.2,0,Supplier
03/04/2020,"Adults & Health Commissioning, Health & Social Care",Chosen Care Group Ltd,HOME CARE - PRIVATE CONTRACTORS PAYMENT,434.6,0,Supplier
03/04/2020,"Adults & Health Commissioning, Health & Social Care",Chosen Care Group Ltd,HOME CARE - PRIVATE CONTRACTORS PAYMENT,574,0,Supplier
03/04/2020,"Adults & Health Commissioning, Health & Social Care",Chosen Care Group Ltd,HOME CARE - PRIVATE CONTRACTORS PAYMENT,315.7,0,Supplier
03/04/2020,"Adults & Health Commissioning, Health & Social Care",Chosen Care Group Ltd,HOME CARE - PRIVATE CONTRACTORS PAYMENT,315.7,0,Supplier
03/04/2020,"Adults & Health Commissioning, Health & Social Care",Chosen Care Group Ltd,HOME CARE - PRIVATE CONTRACTORS PAYMENT,315.7,0,Supplier
03/04/2020,"Adults & Health Commissioning, Health & Social Care",Chosen Care Group Ltd,HOME CARE - PRIVATE CONTRACTORS PAYMENT,315.7,0,Supplier
03/04/2020,"Adults & Health Commissioning, Health & Social Care",Chosen Care Group Ltd,HOME CARE - PRIVATE CONTRACTORS PAYMENT,352.6,0,Supplier
03/04/2020,"Adults & Health Commissioning, Health & Social Care",Chosen Care Group Ltd,HOME CARE - PRIVATE CONTRACTORS PAYMENT,352.6,0,Supplier
03/04/2020,"Adults & Health Commissioning, Health & Social Care",Chosen Care Group Ltd,HOME CARE - PRIVATE CONTRACTORS PAYMENT,352.6,0,Supplier
03/04/2020,"Adults & Health Commissioning, Health & Social Care",Chosen Care Group Ltd,HOME CARE - PRIVATE CONTRACTORS PAYMENT,352.6,0,Supplier
03/04/2020,"Adults & Health Commissioning, Health & Social Care",Chosen Care Group Ltd,HOME CARE - PRIVATE CONTRACTORS PAYMENT,274.7,0,Supplier
03/04/2020,"Adults & Health Commissioning, Health & Social Care",Chosen Care Group Ltd,HOME CARE - PRIVATE CONTRACTORS PAYMENT,274.7,0,Supplier
03/04/2020,"Adults & Health Commissioning, Health & Social Care",Chosen Care Group Ltd,HOME CARE - PRIVATE CONTRACTORS PAYMENT,434.6,0,Supplier
03/04/2020,"Adults & Health Commissioning, Health & Social Care",Chosen Care Group Ltd,HOME CARE - PRIVATE CONTRACTORS PAYMENT,405.9,0,Supplier
03/04/2020,"Adults & Health Commissioning, Health & Social Care",Chosen Care Group Ltd,HOME CARE - PRIVATE CONTRACTORS PAYMENT,319.8,0,Supplier
03/04/2020,"Adults & Health Commissioning, Health & Social Care",Chosen Care Group Ltd,HOME CARE - PRIVATE CONTRACTORS PAYMENT,319.8,0,Supplier
03/04/2020,"Adults & Health Commissioning, Health & Social Care",Chosen Care Group Ltd,HOME CARE - PRIVATE CONTRACTORS PAYMENT,348.5,0,Supplier
03/04/2020,"Adults & Health Commissioning, Health & Social Care",Chosen Care Group Ltd,HOME CARE - PRIVATE CONTRACTORS PAYMENT,348.5,0,Supplier
03/04/2020,"Adults & Health Commissioning, Health & Social Care",Chosen Care Group Ltd,HOME CARE - PRIVATE CONTRACTORS PAYMENT,319.8,0,Supplier
03/04/2020,"Adults & Health Commissioning, Health & Social Care",Chosen Care Group Ltd,HOME CARE - PRIVATE CONTRACTORS PAYMENT,319.8,0,Supplier
03/04/2020,"Adults & Health Commissioning, Health & Social Care",Chosen Care Group Ltd,HOME CARE - PRIVATE CONTRACTORS PAYMENT,487.9,0,Supplier
03/04/2020,"Adults & Health Commissioning, Health & Social Care",Chosen Care Group Ltd,HOME CARE - PRIVATE CONTRACTORS PAYMENT,487.9,0,Supplier
03/04/2020,"Adults & Health Commissioning, Health & Social Care",Chosen Care Group Ltd,HOME CARE - PRIVATE CONTRACTORS PAYMENT,405.9,0,Supplier
03/04/2020,"Adults & Health Commissioning, Health & Social Care",Chosen Care Group Ltd,HOME CARE - PRIVATE CONTRACTORS PAYMENT,574,0,Supplier
03/04/2020,"Adults & Health Commissioning, Health & Social Care",Chosen Care Group Ltd,HOME CARE - PRIVATE CONTRACTORS PAYMENT,405.9,0,Supplier
03/04/2020,"Adults & Health Commissioning, Health & Social Care",Chosen Care Group Ltd,HOME CARE - PRIVATE CONTRACTORS PAYMENT,348.5,0,Supplier
03/04/2020,"Adults & Health Commissioning, Health & Social Care",Chosen Care Group Ltd,HOME CARE - PRIVATE CONTRACTORS PAYMENT,487.9,0,Supplier
03/04/2020,"Adults & Health Commissioning, Health & Social Care",Chosen Care Group Ltd,HOME CARE - PRIVATE CONTRACTORS PAYMENT,405.9,0,Supplier
03/04/2020,"Adults & Health Commissioning, Health & Social Care",Chosen Care Group Ltd,HOME CARE - PRIVATE CONTRACTORS PAYMENT,586.3,0,Supplier
03/04/2020,"Adults & Health Commissioning, Health & Social Care",Chosen Care Group Ltd,HOME CARE - PRIVATE CONTRACTORS PAYMENT,553.5,0,Supplier
03/04/2020,"Adults & Health Commissioning, Health & Social Care",Chosen Care Group Ltd,HOME CARE - PRIVATE CONTRACTORS PAYMENT,586.3,0,Supplier
03/04/2020,"Adults & Health Commissioning, Health & Social Care",Chosen Care Group Ltd,HOME CARE - PRIVATE CONTRACTORS PAYMENT,553.5,0,Supplier
03/04/2020,"Adults & Health Commissioning, Health & Social Care",Chosen Care Group Ltd,HOME CARE - PRIVATE CONTRACTORS PAYMENT,586.3,0,Supplier
03/04/2020,"Adults & Health Commissioning, Health & Social Care",Chosen Care Group Ltd,HOME CARE - PRIVATE CONTRACTORS PAYMENT,553.5,0,Supplier
03/04/2020,"Adults & Health Commissioning, Health & Social Care",Chosen Care Group Ltd,HOME CARE - PRIVATE CONTRACTORS PAYMENT,553.5,0,Supplier
03/04/2020,"Adults & Health Commissioning, Health & Social Care",Chosen Care Group Ltd,HOME CARE - PRIVATE CONTRACTORS PAYMENT,500.2,0,Supplier
03/04/2020,"Adults & Health Commissioning, Health & Social Care",Chosen Care Group Ltd,HOME CARE - PRIVATE CONTRACTORS PAYMENT,487.9,0,Supplier
03/04/2020,"Adults & Health Commissioning, Health & Social Care",Chosen Care Group Ltd,HOME CARE - PRIVATE CONTRACTORS PAYMENT,315.7,0,Supplier
03/04/2020,"Adults & Health Commissioning, Health & Social Care",Chosen Care Group Ltd,HOME CARE - PRIVATE CONTRACTORS PAYMENT,389.5,0,Supplier
03/04/2020,"Adults & Health Commissioning, Health & Social Care",Chosen Care Group Ltd,HOME CARE - PRIVATE CONTRACTORS PAYMENT,856.9,0,Supplier
03/04/2020,"Adults & Health Commissioning, Health & Social Care",Chosen Care Group Ltd,HOME CARE - PRIVATE CONTRACTORS PAYMENT,389.5,0,Supplier
03/04/2020,"Adults & Health Commissioning, Health & Social Care",Chosen Care Group Ltd,HOME CARE - PRIVATE CONTRACTORS PAYMENT,274.7,0,Supplier
03/04/2020,"Adults & Health Commissioning, Health & Social Care",Chosen Care Group Ltd,HOME CARE - PRIVATE CONTRACTORS PAYMENT,274.7,0,Supplier
03/04/2020,"Adults & Health Commissioning, Health & Social Care",Chosen Care Group Ltd,HOME CARE - PRIVATE CONTRACTORS PAYMENT,274.7,0,Supplier
03/04/2020,"Adults & Health Commissioning, Health & Social Care",Chosen Care Group Ltd,HOME CARE - PRIVATE CONTRACTORS PAYMENT,274.7,0,Supplier
03/04/2020,"Adults & Health Commissioning, Health & Social Care",Chosen Care Group Ltd,HOME CARE - PRIVATE CONTRACTORS PAYMENT,274.7,0,Supplier
03/04/2020,"Adults & Health Commissioning, Health & Social Care",Chosen Care Group Ltd,HOME CARE - PRIVATE CONTRACTORS PAYMENT,315.7,0,Supplier
03/04/2020,"Adults & Health Commissioning, Health & Social Care",Chosen Care Group Ltd,HOME CARE - PRIVATE CONTRACTORS PAYMENT,389.5,0,Supplier
03/04/2020,"Adults & Health Commissioning, Health & Social Care",Chosen Care Group Ltd,HOME CARE - PRIVATE CONTRACTORS PAYMENT,315.7,0,Supplier
03/04/2020,"Adults & Health Commissioning, Health & Social Care",Chosen Care Group Ltd,HOME CARE - PRIVATE CONTRACTORS PAYMENT,315.7,0,Supplier
03/04/2020,"Adults & Health Commissioning, Health & Social Care",Chosen Care Group Ltd,HOME CARE - PRIVATE CONTRACTORS PAYMENT,352.6,0,Supplier
03/04/2020,"Adults & Health Commissioning, Health & Social Care",Chosen Care Group Ltd,HOME CARE - PRIVATE CONTRACTORS PAYMENT,315.7,0,Supplier
03/04/2020,"Adults & Health Commissioning, Health & Social Care",Chosen Care Group Ltd,HOME CARE - PRIVATE CONTRACTORS PAYMENT,295.2,0,Supplier
03/04/2020,"Adults & Health Commissioning, Health & Social Care",Chosen Care Group Ltd,HOME CARE - PRIVATE CONTRACTORS PAYMENT,315.7,0,Supplier
03/04/2020,"Adults & Health Commissioning, Health & Social Care",Chosen Care Group Ltd,HOME CARE - PRIVATE CONTRACTORS PAYMENT,274.7,0,Supplier
03/04/2020,"Adults & Health Commissioning, Health & Social Care",Chosen Care Group Ltd,HOME CARE - PRIVATE CONTRACTORS PAYMENT,254.2,0,Supplier
03/04/2020,"Adults & Health Commissioning, Health & Social Care",Chosen Care Group Ltd,HOME CARE - PRIVATE CONTRACTORS PAYMENT,254.2,0,Supplier
03/04/2020,"Adults & Health Commissioning, Health & Social Care",Chosen Care Group Ltd,HOME CARE - PRIVATE CONTRACTORS PAYMENT,287,0,Supplier
03/04/2020,"Adults & Health Commissioning, Health & Social Care",Chosen Care Group Ltd,HOME CARE - PRIVATE CONTRACTORS PAYMENT,369,0,Supplier
03/04/2020,"Adults & Health Commissioning, Health & Social Care",Chosen Care Group Ltd,HOME CARE - PRIVATE CONTRACTORS PAYMENT,254.2,0,Supplier
03/04/2020,"Adults & Health Commissioning, Health & Social Care",Chosen Care Group Ltd,HOME CARE - PRIVATE CONTRACTORS PAYMENT,282.9,0,Supplier
03/04/2020,"Adults & Health Commissioning, Health & Social Care",Chosen Care Group Ltd,HOME CARE - PRIVATE CONTRACTORS PAYMENT,389.5,0,Supplier
03/04/2020,"Adults & Health Commissioning, Health & Social Care",Chosen Care Group Ltd,HOME CARE - PRIVATE CONTRACTORS PAYMENT,254.2,0,Supplier
03/04/2020,"Adults & Health Commissioning, Health & Social Care",Chosen Care Group Ltd,HOME CARE - PRIVATE CONTRACTORS PAYMENT,328,0,Supplier
03/04/2020,"Adults & Health Commissioning, Health & Social Care",Chosen Care Group Ltd,HOME CARE - PRIVATE CONTRACTORS PAYMENT,328,0,Supplier
03/04/2020,"Adults & Health Commissioning, Health & Social Care",Chosen Care Group Ltd,HOME CARE - PRIVATE CONTRACTORS PAYMENT,287,0,Supplier
03/04/2020,"Adults & Health Commissioning, Health & Social Care",Chosen Care Group Ltd,HOME CARE - PRIVATE CONTRACTORS PAYMENT,328,0,Supplier
03/04/2020,"Adults & Health Commissioning, Health & Social Care",Chosen Care Group Ltd,HOME CARE - PRIVATE CONTRACTORS PAYMENT,352.6,0,Supplier
03/04/2020,"Adults & Health Commissioning, Health & Social Care",Chosen Care Group Ltd,HOME CARE - PRIVATE CONTRACTORS PAYMENT,295.2,0,Supplier
03/04/2020,"Adults & Health Commissioning, Health & Social Care",Chosen Care Group Ltd,HOME CARE - PRIVATE CONTRACTORS PAYMENT,352.6,0,Supplier
03/04/2020,"Adults & Health Commissioning, Health & Social Care",Chosen Care Group Ltd,HOME CARE - PRIVATE CONTRACTORS PAYMENT,315.7,0,Supplier
03/04/2020,"Adults & Health Commissioning, Health & Social Care",Chosen Care Group Ltd,HOME CARE - PRIVATE CONTRACTORS PAYMENT,295.2,0,Supplier
03/04/2020,"Adults & Health Commissioning, Health & Social Care",Churchill House,RESIDENTIAL PLACEMENTS - PRIVATE CONTRACTORS PAYMENT,980,0,Non Commercial Supplier
03/04/2020,"Adults & Health Commissioning, Health & Social Care",Churchill House,RESIDENTIAL PLACEMENTS - PRIVATE CONTRACTORS PAYMENT,980,0,Non Commercial Supplier
03/04/2020,"Adults & Health Commissioning, Health & Social Care",Churchill House,RESIDENTIAL PLACEMENTS - PRIVATE CONTRACTORS PAYMENT,625.71,0,Non Commercial Supplier
03/04/2020,"Adults & Health Commissioning, Health & Social Care",Churchill House,RESIDENTIAL PLACEMENTS - PRIVATE CONTRACTORS PAYMENT,900,0,Non Commercial Supplier
03/04/2020,"Adults & Health Commissioning, Health & Social Care",Churchill House,RESIDENTIAL PLACEMENTS - PRIVATE CONTRACTORS PAYMENT,900,0,Non Commercial Supplier
03/04/2020,"Adults & Health Commissioning, Health & Social Care",Churchill House,RESIDENTIAL PLACEMENTS - PRIVATE CONTRACTORS PAYMENT,980,0,Non Commercial Supplier
03/04/2020,"Adults & Health Commissioning, Health & Social Care",Churchill House,RESIDENTIAL PLACEMENTS - PRIVATE CONTRACTORS PAYMENT,950,0,Non Commercial Supplier
03/04/2020,"Adults & Health Commissioning, Health & Social Care",Churchill House,RESIDENTIAL PLACEMENTS - PRIVATE CONTRACTORS PAYMENT,950,0,Non Commercial Supplier
03/04/2020,"Adults & Health Commissioning, Health & Social Care",Churchill House,RESIDENTIAL PLACEMENTS - PRIVATE CONTRACTORS PAYMENT,980,0,Non Commercial Supplier
03/04/2020,"Adults & Health Commissioning, Health & Social Care",Churchill House,RESIDENTIAL PLACEMENTS - PRIVATE CONTRACTORS PAYMENT,625.71,0,Non Commercial Supplier
03/04/2020,"Adults & Health Commissioning, Health & Social Care",Churchill House,RESIDENTIAL PLACEMENTS - PRIVATE CONTRACTORS PAYMENT,900,0,Non Commercial Supplier
03/04/2020,"Adults & Health Commissioning, Health & Social Care",Churchill House,RESIDENTIAL PLACEMENTS - PRIVATE CONTRACTORS PAYMENT,950,0,Non Commercial Supplier
03/04/2020,"Adults & Health Commissioning, Health & Social Care",Churchill House,RESIDENTIAL PLACEMENTS - PRIVATE CONTRACTORS PAYMENT,625.71,0,Non Commercial Supplier
